Publisher Label,Publisher URI,Body Name,Service Area Categorisation,Service Division Categorisation,Expenses Type,Date,Transaction Number,Amount,Capital or Revenue,Supplier Name,Merchant Category
Peterborough,http://opendatacommunities.org/id/unitary-authority/peterborough,Peterborough City Council,Corporate,Corporate,Supplies & Services,03/11/2015 00:00,30013478,7517.81,Balance Sheet,Heath Farm Family Services Ltd,Boarding  Out Allowances
Peterborough,http://opendatacommunities.org/id/unitary-authority/peterborough,Peterborough City Council,Corporate,Corporate,Supplies & Services,03/11/2015 00:00,30016642,4200,Balance Sheet,Everprint Ltd,Printing
Peterborough,http://opendatacommunities.org/id/unitary-authority/peterborough,Peterborough City Council,Corporate,Corporate,Supplies & Services,03/11/2015 00:00,30026372,1461,Balance Sheet,Peterborough Association For The Blind,Grant - Third Party
Peterborough,http://opendatacommunities.org/id/unitary-authority/peterborough,Peterborough City Council,Corporate,Corporate,Supplies & Services,03/11/2015 00:00,30027583,1298.83,Balance Sheet,Everprint Ltd,Printing
Peterborough,http://opendatacommunities.org/id/unitary-authority/peterborough,Peterborough City Council,Corporate,Corporate,Supplies & Services,03/11/2015 00:00,30037526,1800,Balance Sheet,CWS Sound & Lighting,Hired Services
Peterborough,http://opendatacommunities.org/id/unitary-authority/peterborough,Peterborough City Council,Corporate,Corporate,Supplies & Services,03/11/2015 00:00,30046395,10000,Balance Sheet,Peterborough Womens Aid,Grant - Third Party
Peterborough,http://opendatacommunities.org/id/unitary-authority/peterborough,Peterborough City Council,Corporate,Corporate,Supplies & Services,03/11/2015 00:00,30049132,540,Balance Sheet,Local Government Association,Conferences/Events
Peterborough,http://opendatacommunities.org/id/unitary-authority/peterborough,Peterborough City Council,Corporate,Corporate,Supplies & Services,04/11/2015 00:00,30034363,900,Balance Sheet,Best Answer Subsidence Engineering Ltd,Insurance Claims
Peterborough,http://opendatacommunities.org/id/unitary-authority/peterborough,Peterborough City Council,Corporate,Corporate,Supplies & Services,04/11/2015 00:00,30039487,850,Balance Sheet,Redacted Personal Data,Deposits Refunded
Peterborough,http://opendatacommunities.org/id/unitary-authority/peterborough,Peterborough City Council,Corporate,Corporate,Supplies & Services,04/11/2015 00:00,30042020,530,Balance Sheet,Redacted Personal Data,Grant Payment
Peterborough,http://opendatacommunities.org/id/unitary-authority/peterborough,Peterborough City Council,Corporate,Corporate,Supplies & Services,04/11/2015 00:00,30044498,216000,Balance Sheet,Peterborough Citizens Advice Bureau,Grant - Third Party
Peterborough,http://opendatacommunities.org/id/unitary-authority/peterborough,Peterborough City Council,Children�s & Safeguarding,Children's Social Care,Employees,04/11/2015 00:00,30050288,1052.44,Revenue,Service Care Solutions Ltd,External Temporary Staff
Peterborough,http://opendatacommunities.org/id/unitary-authority/peterborough,Peterborough City Council,Adults and Communities - Communities,Early Help ASC/CSC,Employees,04/11/2015 00:00,30050297,925,Revenue,Service Care Solutions Ltd,External Temporary Staff
Peterborough,http://opendatacommunities.org/id/unitary-authority/peterborough,Peterborough City Council,Adult Services & Communities - Adults,Day Opportunities / In House,Employees,04/11/2015 00:00,30050332,1295,Revenue,Caritas Recruitment,External Temporary Staff
Peterborough,http://opendatacommunities.org/id/unitary-authority/peterborough,Peterborough City Council,Adult Services & Communities - Adults,Day Opportunities / In House,Employees,04/11/2015 00:00,30050337,2000,Revenue,Caritas Recruitment,External Temporary Staff
Peterborough,http://opendatacommunities.org/id/unitary-authority/peterborough,Peterborough City Council,Adult Services & Communities - Adults,Day Opportunities / In House,Employees,04/11/2015 00:00,30050338,710.4,Revenue,Medicare First,External Temporary Staff
Peterborough,http://opendatacommunities.org/id/unitary-authority/peterborough,Peterborough City Council,Adult Services & Communities - Adults,Day Opportunities / In House,Employees,04/11/2015 00:00,30050345,1162.8,Revenue,Caritas Recruitment,External Temporary Staff
Peterborough,http://opendatacommunities.org/id/unitary-authority/peterborough,Peterborough City Council,Adult Services & Communities - Adults,Day Opportunities / In House,Employees,04/11/2015 00:00,30050352,1050,Revenue,Caritas Recruitment,External Temporary Staff
Peterborough,http://opendatacommunities.org/id/unitary-authority/peterborough,Peterborough City Council,Children�s & Safeguarding,Access to Resources & Specialist Commissioning,Supplies & Services,04/11/2015 00:00,30050385,27500,Revenue,Wilds Lodge School,Boarding Out Allowances
Peterborough,http://opendatacommunities.org/id/unitary-authority/peterborough,Peterborough City Council,Children�s & Safeguarding,Children's Social Care,Employees,04/11/2015 00:00,30050406,1560.65,Revenue,Medicare First,External Temporary Staff
Peterborough,http://opendatacommunities.org/id/unitary-authority/peterborough,Peterborough City Council,Business Management and Commercial Operations,Clare Lodge,Employees,04/11/2015 00:00,30050409,1810,Revenue,Engage Education,Supply Teachers
Peterborough,http://opendatacommunities.org/id/unitary-authority/peterborough,Peterborough City Council,Corporate,Corporate,Capital,04/11/2015 00:00,30050420,14250,Capital,Commercial Rope Access Ltd,Building And Site Works
Peterborough,http://opendatacommunities.org/id/unitary-authority/peterborough,Peterborough City Council,Adult Services & Communities - Adults,Day Opportunities / In House,Employees,04/11/2015 00:00,30050431,595,Revenue,Caritas Recruitment,External Temporary Staff
Peterborough,http://opendatacommunities.org/id/unitary-authority/peterborough,Peterborough City Council,Adult Services & Communities - Adults,Day Opportunities / In House,Employees,04/11/2015 00:00,30050450,1295,Revenue,Caritas Recruitment,External Temporary Staff
Peterborough,http://opendatacommunities.org/id/unitary-authority/peterborough,Peterborough City Council,Adult Services & Communities - Adults,Day Opportunities / In House,Employees,04/11/2015 00:00,30050458,1295,Revenue,Caritas Recruitment,External Temporary Staff
Peterborough,http://opendatacommunities.org/id/unitary-authority/peterborough,Peterborough City Council,Adult Services & Communities - Adults,Day Opportunities / In House,Employees,04/11/2015 00:00,30050461,1295,Revenue,Caritas Recruitment,External Temporary Staff
Peterborough,http://opendatacommunities.org/id/unitary-authority/peterborough,Peterborough City Council,Corporate,Corporate,Employees,04/11/2015 00:00,30050462,827141.26,Balance Sheet,Teachers Pensions,Pensions
Peterborough,http://opendatacommunities.org/id/unitary-authority/peterborough,Peterborough City Council,Peterborough Highway Services,Transport & Infrastructure Commissioning,Supplies & Services,04/11/2015 00:00,30050495,2431.5,Revenue,Electric Pedals,Cycling
Peterborough,http://opendatacommunities.org/id/unitary-authority/peterborough,Peterborough City Council,Adult Services & Communities - Adults,Independent Sector Placements,Supplies & Services,04/11/2015 00:00,8000047534,666,Revenue,Axiom Care Ltd,Home Care
Peterborough,http://opendatacommunities.org/id/unitary-authority/peterborough,Peterborough City Council,Adult Services & Communities - Adults,Independent Sector Placements,Supplies & Services,04/11/2015 00:00,8000047538,576,Revenue,Axiom Care Ltd,Home Care
Peterborough,http://opendatacommunities.org/id/unitary-authority/peterborough,Peterborough City Council,Adult Services & Communities - Adults,Independent Sector Placements,Supplies & Services,04/11/2015 00:00,8000047540,671,Revenue,Axiom Care Ltd,Home Care
Peterborough,http://opendatacommunities.org/id/unitary-authority/peterborough,Peterborough City Council,Adult Services & Communities - Adults,Independent Sector Placements,Supplies & Services,04/11/2015 00:00,8000047544,558.11,Revenue,Axiom Crossroads Care,Home Care
Peterborough,http://opendatacommunities.org/id/unitary-authority/peterborough,Peterborough City Council,Adult Services & Communities - Adults,Independent Sector Placements,Supplies & Services,04/11/2015 00:00,8000047545,2391.9,Revenue,Axiom Crossroads Care,Home Care
Peterborough,http://opendatacommunities.org/id/unitary-authority/peterborough,Peterborough City Council,Adult Services & Communities - Adults,Independent Sector Placements,Supplies & Services,04/11/2015 00:00,8000047548,1036.49,Revenue,Axiom Crossroads Care,Home Care
Peterborough,http://opendatacommunities.org/id/unitary-authority/peterborough,Peterborough City Council,Adult Services & Communities - Adults,Independent Sector Placements,Supplies & Services,04/11/2015 00:00,8000047549,558.11,Revenue,Axiom Crossroads Care,Home Care
Peterborough,http://opendatacommunities.org/id/unitary-authority/peterborough,Peterborough City Council,Adult Services & Communities - Adults,Independent Sector Placements,Supplies & Services,04/11/2015 00:00,8000047550,558.11,Revenue,Axiom Crossroads Care,Home Care
Peterborough,http://opendatacommunities.org/id/unitary-authority/peterborough,Peterborough City Council,Adult Services & Communities - Adults,Independent Sector Placements,Supplies & Services,04/11/2015 00:00,8000047551,2232.44,Revenue,Axiom Crossroads Care,Home Care
Peterborough,http://opendatacommunities.org/id/unitary-authority/peterborough,Peterborough City Council,Adult Services & Communities - Adults,Independent Sector Placements,Supplies & Services,04/11/2015 00:00,8000047552,558.11,Revenue,Axiom Crossroads Care,Home Care
Peterborough,http://opendatacommunities.org/id/unitary-authority/peterborough,Peterborough City Council,Adult Services & Communities - Adults,Independent Sector Placements,Supplies & Services,04/11/2015 00:00,8000047553,1435.14,Revenue,Axiom Crossroads Care,Home Care
Peterborough,http://opendatacommunities.org/id/unitary-authority/peterborough,Peterborough City Council,Adult Services & Communities - Adults,Independent Sector Placements,Supplies & Services,04/11/2015 00:00,8000047554,2004.64,Revenue,Axiom Crossroads Care,Home Care
Peterborough,http://opendatacommunities.org/id/unitary-authority/peterborough,Peterborough City Council,Adult Services & Communities - Adults,Independent Sector Placements,Supplies & Services,04/11/2015 00:00,8000047558,558.11,Revenue,Axiom Crossroads Care,Home Care
Peterborough,http://opendatacommunities.org/id/unitary-authority/peterborough,Peterborough City Council,Adult Services & Communities - Adults,Independent Sector Placements,Supplies & Services,04/11/2015 00:00,8000047559,580.89,Revenue,Axiom Crossroads Care,Home Care
Peterborough,http://opendatacommunities.org/id/unitary-authority/peterborough,Peterborough City Council,Adult Services & Communities - Adults,Independent Sector Placements,Supplies & Services,04/11/2015 00:00,8000047562,558.11,Revenue,Axiom Crossroads Care,Home Care
Peterborough,http://opendatacommunities.org/id/unitary-authority/peterborough,Peterborough City Council,Adult Services & Communities - Adults,Independent Sector Placements,Supplies & Services,04/11/2015 00:00,8000047563,558.11,Revenue,Axiom Crossroads Care,Home Care
Peterborough,http://opendatacommunities.org/id/unitary-authority/peterborough,Peterborough City Council,Adult Services & Communities - Adults,Independent Sector Placements,Supplies & Services,04/11/2015 00:00,8000047564,717.57,Revenue,Axiom Crossroads Care,Home Care
Peterborough,http://opendatacommunities.org/id/unitary-authority/peterborough,Peterborough City Council,Adult Services & Communities - Adults,Independent Sector Placements,Supplies & Services,04/11/2015 00:00,8000047567,1423.75,Revenue,Axiom Crossroads Care,Home Care
Peterborough,http://opendatacommunities.org/id/unitary-authority/peterborough,Peterborough City Council,Adult Services & Communities - Adults,Independent Sector Placements,Supplies & Services,04/11/2015 00:00,8000047568,555.26,Revenue,Axiom Crossroads Care,Home Care
Peterborough,http://opendatacommunities.org/id/unitary-authority/peterborough,Peterborough City Council,Adult Services & Communities - Adults,Independent Sector Placements,Supplies & Services,04/11/2015 00:00,8000047576,831.47,Revenue,Axiom Crossroads Care,Home Care
Peterborough,http://opendatacommunities.org/id/unitary-authority/peterborough,Peterborough City Council,Adult Services & Communities - Adults,Independent Sector Placements,Supplies & Services,04/11/2015 00:00,8000047579,820.08,Revenue,Axiom Crossroads Care,Home Care
Peterborough,http://opendatacommunities.org/id/unitary-authority/peterborough,Peterborough City Council,Adult Services & Communities - Adults,Independent Sector Placements,Supplies & Services,04/11/2015 00:00,8000047582,1355.41,Revenue,Axiom Crossroads Care,Home Care
Peterborough,http://opendatacommunities.org/id/unitary-authority/peterborough,Peterborough City Council,Adult Services & Communities - Adults,Independent Sector Placements,Supplies & Services,04/11/2015 00:00,8000047584,1913.52,Revenue,Axiom Crossroads Care,Home Care
Peterborough,http://opendatacommunities.org/id/unitary-authority/peterborough,Peterborough City Council,Adult Services & Communities - Adults,Independent Sector Placements,Supplies & Services,04/11/2015 00:00,8000047586,512.55,Revenue,Axiom Crossroads Care,Home Care
Peterborough,http://opendatacommunities.org/id/unitary-authority/peterborough,Peterborough City Council,Adult Services & Communities - Adults,Independent Sector Placements,Supplies & Services,04/11/2015 00:00,8000047587,1275.68,Revenue,Axiom Crossroads Care,Home Care
Peterborough,http://opendatacommunities.org/id/unitary-authority/peterborough,Peterborough City Council,Adult Services & Communities - Adults,Independent Sector Placements,Supplies & Services,04/11/2015 00:00,8000047588,512.55,Revenue,Axiom Crossroads Care,Home Care
Peterborough,http://opendatacommunities.org/id/unitary-authority/peterborough,Peterborough City Council,Adult Services & Communities - Adults,Independent Sector Placements,Supplies & Services,04/11/2015 00:00,8000047589,546.72,Revenue,Axiom Crossroads Care,Home Care
Peterborough,http://opendatacommunities.org/id/unitary-authority/peterborough,Peterborough City Council,Adult Services & Communities - Adults,Independent Sector Placements,Supplies & Services,04/11/2015 00:00,8000047590,877.03,Revenue,Axiom Crossroads Care,Home Care
Peterborough,http://opendatacommunities.org/id/unitary-authority/peterborough,Peterborough City Council,Adult Services & Communities - Adults,Independent Sector Placements,Supplies & Services,04/11/2015 00:00,8000047594,717.57,Revenue,Axiom Crossroads Care,Home Care
Peterborough,http://opendatacommunities.org/id/unitary-authority/peterborough,Peterborough City Council,Adult Services & Communities - Adults,Independent Sector Placements,Supplies & Services,04/11/2015 00:00,8000047598,1867.96,Revenue,Axiom Crossroads Care,Home Care
Peterborough,http://opendatacommunities.org/id/unitary-authority/peterborough,Peterborough City Council,Adult Services & Communities - Adults,Independent Sector Placements,Supplies & Services,04/11/2015 00:00,8000047600,717.57,Revenue,Axiom Crossroads Care,Home Care
Peterborough,http://opendatacommunities.org/id/unitary-authority/peterborough,Peterborough City Council,Adult Services & Communities - Adults,Independent Sector Placements,Supplies & Services,04/11/2015 00:00,8000047604,1899.28,Revenue,Axiom Crossroads Care,Home Care
Peterborough,http://opendatacommunities.org/id/unitary-authority/peterborough,Peterborough City Council,Adult Services & Communities - Adults,Independent Sector Placements,Supplies & Services,04/11/2015 00:00,8000047608,1156.09,Revenue,Axiom Crossroads Care,Home Care
Peterborough,http://opendatacommunities.org/id/unitary-authority/peterborough,Peterborough City Council,Adult Services & Communities - Adults,Independent Sector Placements,Supplies & Services,04/11/2015 00:00,8000047610,717.57,Revenue,Axiom Crossroads Care,Home Care
Peterborough,http://opendatacommunities.org/id/unitary-authority/peterborough,Peterborough City Council,Adult Services & Communities - Adults,Independent Sector Placements,Supplies & Services,04/11/2015 00:00,8000047611,637.84,Revenue,Axiom Crossroads Care,Home Care
Peterborough,http://opendatacommunities.org/id/unitary-authority/peterborough,Peterborough City Council,Adult Services & Communities - Adults,Independent Sector Placements,Supplies & Services,04/11/2015 00:00,8000047612,717.57,Revenue,Axiom Crossroads Care,Home Care
Peterborough,http://opendatacommunities.org/id/unitary-authority/peterborough,Peterborough City Council,Adult Services & Communities - Adults,Independent Sector Placements,Supplies & Services,04/11/2015 00:00,8000047615,1275.68,Revenue,Axiom Crossroads Care,Home Care
Peterborough,http://opendatacommunities.org/id/unitary-authority/peterborough,Peterborough City Council,Adult Services & Communities - Adults,Independent Sector Placements,Supplies & Services,04/11/2015 00:00,8000047617,637.84,Revenue,Axiom Crossroads Care,Home Care
Peterborough,http://opendatacommunities.org/id/unitary-authority/peterborough,Peterborough City Council,Adult Services & Communities - Adults,Independent Sector Placements,Supplies & Services,04/11/2015 00:00,8000047618,597.98,Revenue,Axiom Crossroads Care,Home Care
Peterborough,http://opendatacommunities.org/id/unitary-authority/peterborough,Peterborough City Council,Adult Services & Communities - Adults,Independent Sector Placements,Supplies & Services,04/11/2015 00:00,8000047653,514.8,Revenue,Augusta Care Ltd,Home Care
Peterborough,http://opendatacommunities.org/id/unitary-authority/peterborough,Peterborough City Council,Adult Services & Communities - Adults,Independent Sector Placements,Supplies & Services,04/11/2015 00:00,8000047654,5824.8,Revenue,Augusta Care Ltd,Home Care
Peterborough,http://opendatacommunities.org/id/unitary-authority/peterborough,Peterborough City Council,Adult Services & Communities - Adults,Independent Sector Placements,Supplies & Services,04/11/2015 00:00,8000047655,5824.8,Revenue,Augusta Care Ltd,Home Care
Peterborough,http://opendatacommunities.org/id/unitary-authority/peterborough,Peterborough City Council,Adult Services & Communities - Adults,Independent Sector Placements,Supplies & Services,04/11/2015 00:00,8000047656,581.68,Revenue,Atlas Care Services Ltd,Home Care
Peterborough,http://opendatacommunities.org/id/unitary-authority/peterborough,Peterborough City Council,Adult Services & Communities - Adults,Independent Sector Placements,Supplies & Services,04/11/2015 00:00,8000047657,2963.62,Revenue,Atlas Care Services Ltd,Home Care
Peterborough,http://opendatacommunities.org/id/unitary-authority/peterborough,Peterborough City Council,Adult Services & Communities - Adults,Independent Sector Placements,Supplies & Services,04/11/2015 00:00,8000047660,779.9,Revenue,Atlas Care Services Ltd,Home Care
Peterborough,http://opendatacommunities.org/id/unitary-authority/peterborough,Peterborough City Council,Adult Services & Communities - Adults,Independent Sector Placements,Supplies & Services,04/11/2015 00:00,8000047662,559.46,Revenue,Atlas Care Services Ltd,Home Care
Peterborough,http://opendatacommunities.org/id/unitary-authority/peterborough,Peterborough City Council,Adult Services & Communities - Adults,Independent Sector Placements,Supplies & Services,04/11/2015 00:00,8000047663,1202.3,Revenue,Atlas Care Services Ltd,Home Care
Peterborough,http://opendatacommunities.org/id/unitary-authority/peterborough,Peterborough City Council,Adult Services & Communities - Adults,Independent Sector Placements,Supplies & Services,04/11/2015 00:00,8000047664,561.88,Revenue,Atlas Care Services Ltd,Home Care
Peterborough,http://opendatacommunities.org/id/unitary-authority/peterborough,Peterborough City Council,Adult Services & Communities - Adults,Independent Sector Placements,Supplies & Services,04/11/2015 00:00,8000047667,925.76,Revenue,Atlas Care Services Ltd,Home Care
Peterborough,http://opendatacommunities.org/id/unitary-authority/peterborough,Peterborough City Council,Adult Services & Communities - Adults,Independent Sector Placements,Supplies & Services,04/11/2015 00:00,8000047668,840.62,Revenue,Atlas Care Services Ltd,Home Care
Peterborough,http://opendatacommunities.org/id/unitary-authority/peterborough,Peterborough City Council,Adult Services & Communities - Adults,Independent Sector Placements,Supplies & Services,04/11/2015 00:00,8000047669,2020.7,Revenue,Atlas Care Services Ltd,Home Care
Peterborough,http://opendatacommunities.org/id/unitary-authority/peterborough,Peterborough City Council,Adult Services & Communities - Adults,Independent Sector Placements,Supplies & Services,04/11/2015 00:00,8000047671,729.74,Revenue,Atlas Care Services Ltd,Home Care
Peterborough,http://opendatacommunities.org/id/unitary-authority/peterborough,Peterborough City Council,Adult Services & Communities - Adults,Independent Sector Placements,Supplies & Services,04/11/2015 00:00,8000047672,1114.96,Revenue,Atlas Care Services Ltd,Home Care
Peterborough,http://opendatacommunities.org/id/unitary-authority/peterborough,Peterborough City Council,Adult Services & Communities - Adults,Independent Sector Placements,Supplies & Services,04/11/2015 00:00,8000047675,1213.74,Revenue,Atlas Care Services Ltd,Home Care
Peterborough,http://opendatacommunities.org/id/unitary-authority/peterborough,Peterborough City Council,Adult Services & Communities - Adults,Independent Sector Placements,Supplies & Services,04/11/2015 00:00,8000047676,793.1,Revenue,Atlas Care Services Ltd,Home Care
Peterborough,http://opendatacommunities.org/id/unitary-authority/peterborough,Peterborough City Council,Adult Services & Communities - Adults,Independent Sector Placements,Supplies & Services,04/11/2015 00:00,8000047681,783.64,Revenue,Atlas Care Services Ltd,Home Care
Peterborough,http://opendatacommunities.org/id/unitary-authority/peterborough,Peterborough City Council,Adult Services & Communities - Adults,Independent Sector Placements,Supplies & Services,04/11/2015 00:00,8000047684,2401.52,Revenue,Atlas Care Services Ltd,Home Care
Peterborough,http://opendatacommunities.org/id/unitary-authority/peterborough,Peterborough City Council,Adult Services & Communities - Adults,Independent Sector Placements,Supplies & Services,04/11/2015 00:00,8000047690,531.3,Revenue,Atlas Care Services Ltd,Home Care
Peterborough,http://opendatacommunities.org/id/unitary-authority/peterborough,Peterborough City Council,Adult Services & Communities - Adults,Independent Sector Placements,Supplies & Services,04/11/2015 00:00,8000047694,638.66,Revenue,Atlas Care Services Ltd,Home Care
Peterborough,http://opendatacommunities.org/id/unitary-authority/peterborough,Peterborough City Council,Adult Services & Communities - Adults,Independent Sector Placements,Supplies & Services,04/11/2015 00:00,8000047695,998.58,Revenue,Atlas Care Services Ltd,Home Care
Peterborough,http://opendatacommunities.org/id/unitary-authority/peterborough,Peterborough City Council,Adult Services & Communities - Adults,Independent Sector Placements,Supplies & Services,04/11/2015 00:00,8000047698,553.08,Revenue,Atlas Care Services Ltd,Home Care
Peterborough,http://opendatacommunities.org/id/unitary-authority/peterborough,Peterborough City Council,Adult Services & Communities - Adults,Independent Sector Placements,Supplies & Services,04/11/2015 00:00,8000047700,1329.02,Revenue,Atlas Care Services Ltd,Home Care
Peterborough,http://opendatacommunities.org/id/unitary-authority/peterborough,Peterborough City Council,Adult Services & Communities - Adults,Independent Sector Placements,Supplies & Services,04/11/2015 00:00,8000047701,826.76,Revenue,Atlas Care Services Ltd,Home Care
Peterborough,http://opendatacommunities.org/id/unitary-authority/peterborough,Peterborough City Council,Adult Services & Communities - Adults,Independent Sector Placements,Supplies & Services,04/11/2015 00:00,8000047702,551.98,Revenue,Atlas Care Services Ltd,Home Care
Peterborough,http://opendatacommunities.org/id/unitary-authority/peterborough,Peterborough City Council,Adult Services & Communities - Adults,Independent Sector Placements,Supplies & Services,04/11/2015 00:00,8000047704,542.74,Revenue,Atlas Care Services Ltd,Home Care
Peterborough,http://opendatacommunities.org/id/unitary-authority/peterborough,Peterborough City Council,Adult Services & Communities - Adults,Independent Sector Placements,Supplies & Services,04/11/2015 00:00,8000047705,760.76,Revenue,Atlas Care Services Ltd,Home Care
Peterborough,http://opendatacommunities.org/id/unitary-authority/peterborough,Peterborough City Council,Adult Services & Communities - Adults,Independent Sector Placements,Supplies & Services,04/11/2015 00:00,8000047709,652.74,Revenue,Atlas Care Services Ltd,Home Care
Peterborough,http://opendatacommunities.org/id/unitary-authority/peterborough,Peterborough City Council,Adult Services & Communities - Adults,Independent Sector Placements,Supplies & Services,04/11/2015 00:00,8000047713,620.18,Revenue,Atlas Care Services Ltd,Home Care
Peterborough,http://opendatacommunities.org/id/unitary-authority/peterborough,Peterborough City Council,Adult Services & Communities - Adults,Independent Sector Placements,Supplies & Services,04/11/2015 00:00,8000047715,534.82,Revenue,Atlas Care Services Ltd,Home Care
Peterborough,http://opendatacommunities.org/id/unitary-authority/peterborough,Peterborough City Council,Adult Services & Communities - Adults,Independent Sector Placements,Supplies & Services,04/11/2015 00:00,8000047718,1427.14,Revenue,Atlas Care Services Ltd,Home Care
Peterborough,http://opendatacommunities.org/id/unitary-authority/peterborough,Peterborough City Council,Adult Services & Communities - Adults,Independent Sector Placements,Supplies & Services,04/11/2015 00:00,8000047719,643.28,Revenue,Atlas Care Services Ltd,Home Care
Peterborough,http://opendatacommunities.org/id/unitary-authority/peterborough,Peterborough City Council,Adult Services & Communities - Adults,Independent Sector Placements,Supplies & Services,04/11/2015 00:00,8000047720,1496.44,Revenue,Atlas Care Services Ltd,Home Care
Peterborough,http://opendatacommunities.org/id/unitary-authority/peterborough,Peterborough City Council,Adult Services & Communities - Adults,Independent Sector Placements,Supplies & Services,04/11/2015 00:00,8000047721,652.96,Revenue,Atlas Care Services Ltd,Home Care
Peterborough,http://opendatacommunities.org/id/unitary-authority/peterborough,Peterborough City Council,Adult Services & Communities - Adults,Independent Sector Placements,Supplies & Services,04/11/2015 00:00,8000047722,648.34,Revenue,Atlas Care Services Ltd,Home Care
Peterborough,http://opendatacommunities.org/id/unitary-authority/peterborough,Peterborough City Council,Adult Services & Communities - Adults,Independent Sector Placements,Supplies & Services,04/11/2015 00:00,8000047727,5959.63,Revenue,Augusta Care Ltd,Home Care
Peterborough,http://opendatacommunities.org/id/unitary-authority/peterborough,Peterborough City Council,Adult Services & Communities - Adults,Independent Sector Placements,Supplies & Services,04/11/2015 00:00,8000047728,1736.6,Revenue,Allied Healthcare (UK) Ltd,Home Care
Peterborough,http://opendatacommunities.org/id/unitary-authority/peterborough,Peterborough City Council,Adult Services & Communities - Adults,Independent Sector Placements,Supplies & Services,04/11/2015 00:00,8000047773,1834.8,Revenue,Cozy Care,Home Care
Peterborough,http://opendatacommunities.org/id/unitary-authority/peterborough,Peterborough City Council,Adult Services & Communities - Adults,Independent Sector Placements,Supplies & Services,04/11/2015 00:00,8000047779,530.82,Revenue,Hales Group Ltd,Home Care
Peterborough,http://opendatacommunities.org/id/unitary-authority/peterborough,Peterborough City Council,Adult Services & Communities - Adults,Independent Sector Placements,Supplies & Services,04/11/2015 00:00,8000047784,1705.86,Revenue,Hales Group Ltd,Home Care
Peterborough,http://opendatacommunities.org/id/unitary-authority/peterborough,Peterborough City Council,Adult Services & Communities - Adults,Independent Sector Placements,Supplies & Services,04/11/2015 00:00,8000047787,1404.13,Revenue,Hales Group Ltd,Home Care
Peterborough,http://opendatacommunities.org/id/unitary-authority/peterborough,Peterborough City Council,Adult Services & Communities - Adults,Independent Sector Placements,Supplies & Services,04/11/2015 00:00,8000047788,673.14,Revenue,Hales Group Ltd,Home Care
Peterborough,http://opendatacommunities.org/id/unitary-authority/peterborough,Peterborough City Council,Adult Services & Communities - Adults,Independent Sector Placements,Supplies & Services,04/11/2015 00:00,8000047789,995.79,Revenue,Hales Group Ltd,Home Care
Peterborough,http://opendatacommunities.org/id/unitary-authority/peterborough,Peterborough City Council,Adult Services & Communities - Adults,Independent Sector Placements,Supplies & Services,04/11/2015 00:00,8000047791,550.66,Revenue,Hales Group Ltd,Home Care
Peterborough,http://opendatacommunities.org/id/unitary-authority/peterborough,Peterborough City Council,Adult Services & Communities - Adults,Independent Sector Placements,Supplies & Services,04/11/2015 00:00,8000047794,1080.52,Revenue,Hales Group Ltd,Home Care
Peterborough,http://opendatacommunities.org/id/unitary-authority/peterborough,Peterborough City Council,Adult Services & Communities - Adults,Independent Sector Placements,Supplies & Services,04/11/2015 00:00,8000047799,754.88,Revenue,Hales Group Ltd,Home Care
Peterborough,http://opendatacommunities.org/id/unitary-authority/peterborough,Peterborough City Council,Adult Services & Communities - Adults,Independent Sector Placements,Supplies & Services,04/11/2015 00:00,8000047802,1396.12,Revenue,Hales Group Ltd,Home Care
Peterborough,http://opendatacommunities.org/id/unitary-authority/peterborough,Peterborough City Council,Adult Services & Communities - Adults,Independent Sector Placements,Supplies & Services,04/11/2015 00:00,8000047803,504.77,Revenue,Hales Group Ltd,Home Care
Peterborough,http://opendatacommunities.org/id/unitary-authority/peterborough,Peterborough City Council,Adult Services & Communities - Adults,Independent Sector Placements,Supplies & Services,04/11/2015 00:00,8000047805,1829.31,Revenue,Hales Group Ltd,Home Care
Peterborough,http://opendatacommunities.org/id/unitary-authority/peterborough,Peterborough City Council,Adult Services & Communities - Adults,Independent Sector Placements,Supplies & Services,04/11/2015 00:00,8000047836,695.52,Revenue,Carers Trust Cambridgeshire,Home Care
Peterborough,http://opendatacommunities.org/id/unitary-authority/peterborough,Peterborough City Council,Adult Services & Communities - Adults,Independent Sector Placements,Supplies & Services,04/11/2015 00:00,8000047838,657.72,Revenue,Carers Trust Cambridgeshire,Home Care
Peterborough,http://opendatacommunities.org/id/unitary-authority/peterborough,Peterborough City Council,Adult Services & Communities - Adults,Independent Sector Placements,Supplies & Services,04/11/2015 00:00,8000047841,695.52,Revenue,Carers Trust Cambridgeshire,Home Care
Peterborough,http://opendatacommunities.org/id/unitary-authority/peterborough,Peterborough City Council,City Servs & Communications,Regulatory Services,Supplies & Services,04/11/2015 00:00,8000047934,682.72,Revenue,Redacted Personal Data,Boarding Out Allowances
Peterborough,http://opendatacommunities.org/id/unitary-authority/peterborough,Peterborough City Council,Children�s & Safeguarding,Access to Resources & Specialist Commissioning,Supplies & Services,04/11/2015 00:00,8000047934,562.6,Revenue,Redacted Personal Data,Boarding Out Allowances
Peterborough,http://opendatacommunities.org/id/unitary-authority/peterborough,Peterborough City Council,Children�s & Safeguarding,Access to Resources & Specialist Commissioning,Supplies & Services,04/11/2015 00:00,8000047934,600,Revenue,Redacted Personal Data,Boarding Out Allowances
Peterborough,http://opendatacommunities.org/id/unitary-authority/peterborough,Peterborough City Council,Children�s & Safeguarding,Access to Resources & Specialist Commissioning,Supplies & Services,04/11/2015 00:00,8000047934,613.6,Revenue,Redacted Personal Data,Boarding Out Allowances
Peterborough,http://opendatacommunities.org/id/unitary-authority/peterborough,Peterborough City Council,Children�s & Safeguarding,Access to Resources & Specialist Commissioning,Supplies & Services,04/11/2015 00:00,8000047934,580.02,Revenue,Redacted Personal Data,Boarding Out Allowances
Peterborough,http://opendatacommunities.org/id/unitary-authority/peterborough,Peterborough City Council,Children�s & Safeguarding,Access to Resources & Specialist Commissioning,Supplies & Services,04/11/2015 00:00,8000047934,580.02,Revenue,Redacted Personal Data,Boarding Out Allowances
Peterborough,http://opendatacommunities.org/id/unitary-authority/peterborough,Peterborough City Council,Children�s & Safeguarding,Access to Resources & Specialist Commissioning,Supplies & Services,04/11/2015 00:00,8000047934,580.02,Revenue,Redacted Personal Data,Boarding Out Allowances
Peterborough,http://opendatacommunities.org/id/unitary-authority/peterborough,Peterborough City Council,Children�s & Safeguarding,Access to Resources & Specialist Commissioning,Supplies & Services,04/11/2015 00:00,8000047934,622.16,Revenue,Redacted Personal Data,Boarding Out Allowances
Peterborough,http://opendatacommunities.org/id/unitary-authority/peterborough,Peterborough City Council,Children�s & Safeguarding,Access to Resources & Specialist Commissioning,Supplies & Services,04/11/2015 00:00,8000047934,580.02,Revenue,Redacted Personal Data,Boarding Out Allowances
Peterborough,http://opendatacommunities.org/id/unitary-authority/peterborough,Peterborough City Council,Children�s & Safeguarding,Access to Resources & Specialist Commissioning,Supplies & Services,04/11/2015 00:00,8000047934,580.02,Revenue,Redacted Personal Data,Boarding Out Allowances
Peterborough,http://opendatacommunities.org/id/unitary-authority/peterborough,Peterborough City Council,Children�s & Safeguarding,Access to Resources & Specialist Commissioning,Supplies & Services,04/11/2015 00:00,8000047934,580.02,Revenue,Redacted Personal Data,Boarding Out Allowances
Peterborough,http://opendatacommunities.org/id/unitary-authority/peterborough,Peterborough City Council,Children�s & Safeguarding,Access to Resources & Specialist Commissioning,Supplies & Services,04/11/2015 00:00,8000047934,524.16,Revenue,Redacted Personal Data,Boarding Out Allowances
Peterborough,http://opendatacommunities.org/id/unitary-authority/peterborough,Peterborough City Council,Children�s & Safeguarding,Access to Resources & Specialist Commissioning,Supplies & Services,04/11/2015 00:00,8000047934,580.02,Revenue,Redacted Personal Data,Boarding Out Allowances
Peterborough,http://opendatacommunities.org/id/unitary-authority/peterborough,Peterborough City Council,Children�s & Safeguarding,Access to Resources & Specialist Commissioning,Supplies & Services,04/11/2015 00:00,8000047934,580.02,Revenue,Redacted Personal Data,Boarding Out Allowances
Peterborough,http://opendatacommunities.org/id/unitary-authority/peterborough,Peterborough City Council,Children�s & Safeguarding,Access to Resources & Specialist Commissioning,Supplies & Services,04/11/2015 00:00,8000047934,580.02,Revenue,Redacted Personal Data,Boarding Out Allowances
Peterborough,http://opendatacommunities.org/id/unitary-authority/peterborough,Peterborough City Council,Children�s & Safeguarding,Access to Resources & Specialist Commissioning,Supplies & Services,04/11/2015 00:00,8000047934,580.02,Revenue,Redacted Personal Data,Boarding Out Allowances
Peterborough,http://opendatacommunities.org/id/unitary-authority/peterborough,Peterborough City Council,Children�s & Safeguarding,Access to Resources & Specialist Commissioning,Supplies & Services,04/11/2015 00:00,8000047934,885.08,Revenue,Redacted Personal Data,Boarding Out Allowances
Peterborough,http://opendatacommunities.org/id/unitary-authority/peterborough,Peterborough City Council,Children�s & Safeguarding,Access to Resources & Specialist Commissioning,Supplies & Services,04/11/2015 00:00,8000047934,524.16,Revenue,Redacted Personal Data,Boarding Out Allowances
Peterborough,http://opendatacommunities.org/id/unitary-authority/peterborough,Peterborough City Council,Children�s & Safeguarding,Access to Resources & Specialist Commissioning,Supplies & Services,04/11/2015 00:00,8000047934,580.02,Revenue,Redacted Personal Data,Boarding Out Allowances
Peterborough,http://opendatacommunities.org/id/unitary-authority/peterborough,Peterborough City Council,Children�s & Safeguarding,Access to Resources & Specialist Commissioning,Supplies & Services,04/11/2015 00:00,8000047934,580.02,Revenue,Redacted Personal Data,Boarding Out Allowances
Peterborough,http://opendatacommunities.org/id/unitary-authority/peterborough,Peterborough City Council,Children�s & Safeguarding,Access to Resources & Specialist Commissioning,Supplies & Services,04/11/2015 00:00,8000047934,580.02,Revenue,Redacted Personal Data,Boarding Out Allowances
Peterborough,http://opendatacommunities.org/id/unitary-authority/peterborough,Peterborough City Council,Children�s & Safeguarding,Access to Resources & Specialist Commissioning,Supplies & Services,04/11/2015 00:00,8000047934,782.6,Revenue,Redacted Personal Data,Boarding Out Allowances
Peterborough,http://opendatacommunities.org/id/unitary-authority/peterborough,Peterborough City Council,Children�s & Safeguarding,Access to Resources & Specialist Commissioning,Supplies & Services,04/11/2015 00:00,8000047934,885.08,Revenue,Redacted Personal Data,Boarding Out Allowances
Peterborough,http://opendatacommunities.org/id/unitary-authority/peterborough,Peterborough City Council,Children�s & Safeguarding,Access to Resources & Specialist Commissioning,Supplies & Services,04/11/2015 00:00,8000047934,524.16,Revenue,Redacted Personal Data,Boarding Out Allowances
Peterborough,http://opendatacommunities.org/id/unitary-authority/peterborough,Peterborough City Council,Children�s & Safeguarding,Access to Resources & Specialist Commissioning,Supplies & Services,04/11/2015 00:00,8000047934,524.16,Revenue,Redacted Personal Data,Boarding Out Allowances
Peterborough,http://opendatacommunities.org/id/unitary-authority/peterborough,Peterborough City Council,Children�s & Safeguarding,Access to Resources & Specialist Commissioning,Supplies & Services,04/11/2015 00:00,8000047934,622.16,Revenue,Redacted Personal Data,Boarding Out Allowances
Peterborough,http://opendatacommunities.org/id/unitary-authority/peterborough,Peterborough City Council,Children�s & Safeguarding,Access to Resources & Specialist Commissioning,Supplies & Services,04/11/2015 00:00,8000047934,524.16,Revenue,Redacted Personal Data,Boarding Out Allowances
Peterborough,http://opendatacommunities.org/id/unitary-authority/peterborough,Peterborough City Council,Children�s & Safeguarding,Access to Resources & Specialist Commissioning,Supplies & Services,04/11/2015 00:00,8000047934,580.02,Revenue,Redacted Personal Data,Boarding Out Allowances
Peterborough,http://opendatacommunities.org/id/unitary-authority/peterborough,Peterborough City Council,Children�s & Safeguarding,Access to Resources & Specialist Commissioning,Supplies & Services,04/11/2015 00:00,8000047934,524.16,Revenue,Redacted Personal Data,Boarding Out Allowances
Peterborough,http://opendatacommunities.org/id/unitary-authority/peterborough,Peterborough City Council,Children�s & Safeguarding,Access to Resources & Specialist Commissioning,Supplies & Services,04/11/2015 00:00,8000047934,524.16,Revenue,Redacted Personal Data,Boarding Out Allowances
Peterborough,http://opendatacommunities.org/id/unitary-authority/peterborough,Peterborough City Council,Children�s & Safeguarding,Access to Resources & Specialist Commissioning,Supplies & Services,04/11/2015 00:00,8000047934,524.16,Revenue,Redacted Personal Data,Boarding Out Allowances
Peterborough,http://opendatacommunities.org/id/unitary-authority/peterborough,Peterborough City Council,Children�s & Safeguarding,Access to Resources & Specialist Commissioning,Supplies & Services,04/11/2015 00:00,8000047934,580.02,Revenue,Redacted Personal Data,Boarding Out Allowances
Peterborough,http://opendatacommunities.org/id/unitary-authority/peterborough,Peterborough City Council,Children�s & Safeguarding,Access to Resources & Specialist Commissioning,Supplies & Services,04/11/2015 00:00,8000047934,622.16,Revenue,Redacted Personal Data,Boarding Out Allowances
Peterborough,http://opendatacommunities.org/id/unitary-authority/peterborough,Peterborough City Council,Children�s & Safeguarding,Access to Resources & Specialist Commissioning,Supplies & Services,04/11/2015 00:00,8000047934,524.16,Revenue,Redacted Personal Data,Boarding Out Allowances
Peterborough,http://opendatacommunities.org/id/unitary-authority/peterborough,Peterborough City Council,Children�s & Safeguarding,Access to Resources & Specialist Commissioning,Supplies & Services,04/11/2015 00:00,8000047934,580.02,Revenue,Redacted Personal Data,Boarding Out Allowances
Peterborough,http://opendatacommunities.org/id/unitary-authority/peterborough,Peterborough City Council,Children�s & Safeguarding,Access to Resources & Specialist Commissioning,Supplies & Services,04/11/2015 00:00,8000047934,622.16,Revenue,Redacted Personal Data,Boarding Out Allowances
Peterborough,http://opendatacommunities.org/id/unitary-authority/peterborough,Peterborough City Council,Children�s & Safeguarding,Access to Resources & Specialist Commissioning,Supplies & Services,04/11/2015 00:00,8000047934,580.02,Revenue,Redacted Personal Data,Boarding Out Allowances
Peterborough,http://opendatacommunities.org/id/unitary-authority/peterborough,Peterborough City Council,Children�s & Safeguarding,Access to Resources & Specialist Commissioning,Supplies & Services,04/11/2015 00:00,8000047934,622.16,Revenue,Redacted Personal Data,Boarding Out Allowances
Peterborough,http://opendatacommunities.org/id/unitary-authority/peterborough,Peterborough City Council,Children�s & Safeguarding,Access to Resources & Specialist Commissioning,Supplies & Services,04/11/2015 00:00,8000047934,622.16,Revenue,Redacted Personal Data,Boarding Out Allowances
Peterborough,http://opendatacommunities.org/id/unitary-authority/peterborough,Peterborough City Council,Children�s & Safeguarding,Access to Resources & Specialist Commissioning,Supplies & Services,04/11/2015 00:00,8000047934,622.16,Revenue,Redacted Personal Data,Boarding Out Allowances
Peterborough,http://opendatacommunities.org/id/unitary-authority/peterborough,Peterborough City Council,Children�s & Safeguarding,Access to Resources & Specialist Commissioning,Supplies & Services,04/11/2015 00:00,8000047934,646.15,Revenue,Redacted Personal Data,Boarding Out Allowances
Peterborough,http://opendatacommunities.org/id/unitary-authority/peterborough,Peterborough City Council,Children�s & Safeguarding,Access to Resources & Specialist Commissioning,Supplies & Services,04/11/2015 00:00,8000047934,646.15,Revenue,Redacted Personal Data,Boarding Out Allowances
Peterborough,http://opendatacommunities.org/id/unitary-authority/peterborough,Peterborough City Council,Children�s & Safeguarding,Access to Resources & Specialist Commissioning,Supplies & Services,04/11/2015 00:00,8000047934,632.38,Revenue,Redacted Personal Data,Boarding Out Allowances
Peterborough,http://opendatacommunities.org/id/unitary-authority/peterborough,Peterborough City Council,Children�s & Safeguarding,Access to Resources & Specialist Commissioning,Supplies & Services,04/11/2015 00:00,8000047934,632.38,Revenue,Redacted Personal Data,Boarding Out Allowances
Peterborough,http://opendatacommunities.org/id/unitary-authority/peterborough,Peterborough City Council,Children�s & Safeguarding,Access to Resources & Specialist Commissioning,Supplies & Services,04/11/2015 00:00,8000047934,792,Revenue,Redacted Personal Data,Boarding Out Allowances
Peterborough,http://opendatacommunities.org/id/unitary-authority/peterborough,Peterborough City Council,Children�s & Safeguarding,Access to Resources & Specialist Commissioning,Supplies & Services,04/11/2015 00:00,8000047934,792,Revenue,Redacted Personal Data,Boarding Out Allowances
Peterborough,http://opendatacommunities.org/id/unitary-authority/peterborough,Peterborough City Council,Children�s & Safeguarding,Access to Resources & Specialist Commissioning,Supplies & Services,04/11/2015 00:00,8000047934,844.48,Revenue,Redacted Personal Data,Boarding Out Allowances
Peterborough,http://opendatacommunities.org/id/unitary-authority/peterborough,Peterborough City Council,Children�s & Safeguarding,Access to Resources & Specialist Commissioning,Supplies & Services,04/11/2015 00:00,8000047934,524.16,Revenue,Redacted Personal Data,Boarding Out Allowances
Peterborough,http://opendatacommunities.org/id/unitary-authority/peterborough,Peterborough City Council,Children�s & Safeguarding,Access to Resources & Specialist Commissioning,Supplies & Services,04/11/2015 00:00,8000047934,524.16,Revenue,Redacted Personal Data,Boarding Out Allowances
Peterborough,http://opendatacommunities.org/id/unitary-authority/peterborough,Peterborough City Council,Children�s & Safeguarding,Access to Resources & Specialist Commissioning,Supplies & Services,04/11/2015 00:00,8000047934,538.68,Revenue,Redacted Personal Data,Boarding Out Allowances
Peterborough,http://opendatacommunities.org/id/unitary-authority/peterborough,Peterborough City Council,Children�s & Safeguarding,Access to Resources & Specialist Commissioning,Supplies & Services,04/11/2015 00:00,8000047934,580.02,Revenue,Redacted Personal Data,Boarding Out Allowances
Peterborough,http://opendatacommunities.org/id/unitary-authority/peterborough,Peterborough City Council,Children�s & Safeguarding,Access to Resources & Specialist Commissioning,Supplies & Services,04/11/2015 00:00,8000047934,524.16,Revenue,Redacted Personal Data,Boarding Out Allowances
Peterborough,http://opendatacommunities.org/id/unitary-authority/peterborough,Peterborough City Council,Children�s & Safeguarding,Access to Resources & Specialist Commissioning,Supplies & Services,04/11/2015 00:00,8000047934,580.02,Revenue,Redacted Personal Data,Boarding Out Allowances
Peterborough,http://opendatacommunities.org/id/unitary-authority/peterborough,Peterborough City Council,Children�s & Safeguarding,Access to Resources & Specialist Commissioning,Supplies & Services,04/11/2015 00:00,8000047934,580.02,Revenue,Redacted Personal Data,Boarding Out Allowances
Peterborough,http://opendatacommunities.org/id/unitary-authority/peterborough,Peterborough City Council,Children�s & Safeguarding,Access to Resources & Specialist Commissioning,Supplies & Services,04/11/2015 00:00,8000047934,524.16,Revenue,Redacted Personal Data,Boarding Out Allowances
Peterborough,http://opendatacommunities.org/id/unitary-authority/peterborough,Peterborough City Council,Children�s & Safeguarding,Access to Resources & Specialist Commissioning,Supplies & Services,04/11/2015 00:00,8000047934,580.02,Revenue,Redacted Personal Data,Boarding Out Allowances
Peterborough,http://opendatacommunities.org/id/unitary-authority/peterborough,Peterborough City Council,Children�s & Safeguarding,Access to Resources & Specialist Commissioning,Supplies & Services,04/11/2015 00:00,8000047934,622.16,Revenue,Redacted Personal Data,Boarding Out Allowances
Peterborough,http://opendatacommunities.org/id/unitary-authority/peterborough,Peterborough City Council,Children�s & Safeguarding,Access to Resources & Specialist Commissioning,Supplies & Services,04/11/2015 00:00,8000047934,900.9,Revenue,Redacted Personal Data,Boarding Out Allowances
Peterborough,http://opendatacommunities.org/id/unitary-authority/peterborough,Peterborough City Council,Children�s & Safeguarding,Access to Resources & Specialist Commissioning,Supplies & Services,04/11/2015 00:00,8000047934,580.02,Revenue,Redacted Personal Data,Boarding Out Allowances
Peterborough,http://opendatacommunities.org/id/unitary-authority/peterborough,Peterborough City Council,Children�s & Safeguarding,Access to Resources & Specialist Commissioning,Supplies & Services,04/11/2015 00:00,8000047934,532.91,Revenue,Redacted Personal Data,Boarding Out Allowances
Peterborough,http://opendatacommunities.org/id/unitary-authority/peterborough,Peterborough City Council,Children�s & Safeguarding,Access to Resources & Specialist Commissioning,Supplies & Services,04/11/2015 00:00,8000047934,531.88,Revenue,Redacted Personal Data,Boarding Out Allowances
Peterborough,http://opendatacommunities.org/id/unitary-authority/peterborough,Peterborough City Council,Children�s & Safeguarding,Access to Resources & Specialist Commissioning,Supplies & Services,04/11/2015 00:00,8000047934,545.88,Revenue,Redacted Personal Data,Boarding Out Allowances
Peterborough,http://opendatacommunities.org/id/unitary-authority/peterborough,Peterborough City Council,Children�s & Safeguarding,Access to Resources & Specialist Commissioning,Supplies & Services,04/11/2015 00:00,8000047934,545.88,Revenue,Redacted Personal Data,Boarding Out Allowances
Peterborough,http://opendatacommunities.org/id/unitary-authority/peterborough,Peterborough City Council,Children�s & Safeguarding,Access to Resources & Specialist Commissioning,Supplies & Services,04/11/2015 00:00,8000047934,545.88,Revenue,Redacted Personal Data,Boarding Out Allowances
Peterborough,http://opendatacommunities.org/id/unitary-authority/peterborough,Peterborough City Council,Children�s & Safeguarding,Access to Resources & Specialist Commissioning,Supplies & Services,04/11/2015 00:00,8000047934,545.88,Revenue,Redacted Personal Data,Boarding Out Allowances
Peterborough,http://opendatacommunities.org/id/unitary-authority/peterborough,Peterborough City Council,Children�s & Safeguarding,Access to Resources & Specialist Commissioning,Supplies & Services,04/11/2015 00:00,8000047934,794.46,Revenue,Redacted Personal Data,Boarding Out Allowances
Peterborough,http://opendatacommunities.org/id/unitary-authority/peterborough,Peterborough City Council,Children�s & Safeguarding,Access to Resources & Specialist Commissioning,Supplies & Services,04/11/2015 00:00,8000047934,794.46,Revenue,Redacted Personal Data,Boarding Out Allowances
Peterborough,http://opendatacommunities.org/id/unitary-authority/peterborough,Peterborough City Council,Children�s & Safeguarding,Access to Resources & Specialist Commissioning,Supplies & Services,04/11/2015 00:00,8000047934,689.92,Revenue,Redacted Personal Data,Boarding Out Allowances
Peterborough,http://opendatacommunities.org/id/unitary-authority/peterborough,Peterborough City Council,Children�s & Safeguarding,Access to Resources & Specialist Commissioning,Supplies & Services,04/11/2015 00:00,8000047934,831.74,Revenue,Redacted Personal Data,Boarding Out Allowances
Peterborough,http://opendatacommunities.org/id/unitary-authority/peterborough,Peterborough City Council,Children�s & Safeguarding,Access to Resources & Specialist Commissioning,Supplies & Services,04/11/2015 00:00,8000047934,664.72,Revenue,Redacted Personal Data,Boarding Out Allowances
Peterborough,http://opendatacommunities.org/id/unitary-authority/peterborough,Peterborough City Council,Children�s & Safeguarding,Access to Resources & Specialist Commissioning,Supplies & Services,04/11/2015 00:00,8000047934,664.72,Revenue,Redacted Personal Data,Boarding Out Allowances
Peterborough,http://opendatacommunities.org/id/unitary-authority/peterborough,Peterborough City Council,Children�s & Safeguarding,Access to Resources & Specialist Commissioning,Supplies & Services,04/11/2015 00:00,8000047934,987.54,Revenue,Redacted Personal Data,Boarding Out Allowances
Peterborough,http://opendatacommunities.org/id/unitary-authority/peterborough,Peterborough City Council,Children�s & Safeguarding,Access to Resources & Specialist Commissioning,Supplies & Services,04/11/2015 00:00,8000047934,985.72,Revenue,Redacted Personal Data,Boarding Out Allowances
Peterborough,http://opendatacommunities.org/id/unitary-authority/peterborough,Peterborough City Council,Children�s & Safeguarding,Access to Resources & Specialist Commissioning,Supplies & Services,04/11/2015 00:00,8000047934,680.72,Revenue,Redacted Personal Data,Boarding Out Allowances
Peterborough,http://opendatacommunities.org/id/unitary-authority/peterborough,Peterborough City Council,Children�s & Safeguarding,Access to Resources & Specialist Commissioning,Supplies & Services,04/11/2015 00:00,8000047934,680.72,Revenue,Redacted Personal Data,Boarding Out Allowances
Peterborough,http://opendatacommunities.org/id/unitary-authority/peterborough,Peterborough City Council,Children�s & Safeguarding,Access to Resources & Specialist Commissioning,Supplies & Services,04/11/2015 00:00,8000047934,928.5,Revenue,Redacted Personal Data,Boarding Out Allowances
Peterborough,http://opendatacommunities.org/id/unitary-authority/peterborough,Peterborough City Council,Children�s & Safeguarding,Access to Resources & Specialist Commissioning,Supplies & Services,04/11/2015 00:00,8000047934,928.5,Revenue,Redacted Personal Data,Boarding Out Allowances
Peterborough,http://opendatacommunities.org/id/unitary-authority/peterborough,Peterborough City Council,Children�s & Safeguarding,Access to Resources & Specialist Commissioning,Supplies & Services,04/11/2015 00:00,8000047934,723.52,Revenue,Redacted Personal Data,Boarding Out Allowances
Peterborough,http://opendatacommunities.org/id/unitary-authority/peterborough,Peterborough City Council,Children�s & Safeguarding,Child Health,Supplies & Services,04/11/2015 00:00,8000047934,501.34,Revenue,Redacted Personal Data,Financial Assistance
Peterborough,http://opendatacommunities.org/id/unitary-authority/peterborough,Peterborough City Council,Children�s & Safeguarding,Access to Resources & Specialist Commissioning,Supplies & Services,04/11/2015 00:00,8000047934,524.16,Revenue,Redacted Personal Data,Boarding Out Allowances
Peterborough,http://opendatacommunities.org/id/unitary-authority/peterborough,Peterborough City Council,Children�s & Safeguarding,Child Health,Supplies & Services,04/11/2015 00:00,8000047934,980.42,Revenue,Redacted Personal Data,Financial Assistance
Peterborough,http://opendatacommunities.org/id/unitary-authority/peterborough,Peterborough City Council,Children�s & Safeguarding,Access to Resources & Specialist Commissioning,Supplies & Services,04/11/2015 00:00,8000047934,580.02,Revenue,Redacted Personal Data,Boarding Out Allowances
Peterborough,http://opendatacommunities.org/id/unitary-authority/peterborough,Peterborough City Council,Children�s & Safeguarding,Access to Resources & Specialist Commissioning,Supplies & Services,04/11/2015 00:00,8000047934,580.02,Revenue,Redacted Personal Data,Boarding Out Allowances
Peterborough,http://opendatacommunities.org/id/unitary-authority/peterborough,Peterborough City Council,Children�s & Safeguarding,Access to Resources & Specialist Commissioning,Supplies & Services,04/11/2015 00:00,8000047934,900.9,Revenue,Redacted Personal Data,Boarding Out Allowances
Peterborough,http://opendatacommunities.org/id/unitary-authority/peterborough,Peterborough City Council,Children�s & Safeguarding,Access to Resources & Specialist Commissioning,Supplies & Services,04/11/2015 00:00,8000047934,723.52,Revenue,Redacted Personal Data,Boarding Out Allowances
Peterborough,http://opendatacommunities.org/id/unitary-authority/peterborough,Peterborough City Council,Children�s & Safeguarding,Access to Resources & Specialist Commissioning,Supplies & Services,04/11/2015 00:00,8000047934,622.16,Revenue,Redacted Personal Data,Boarding Out Allowances
Peterborough,http://opendatacommunities.org/id/unitary-authority/peterborough,Peterborough City Council,Children�s & Safeguarding,Access to Resources & Specialist Commissioning,Supplies & Services,04/11/2015 00:00,8000047934,673.12,Revenue,Redacted Personal Data,Boarding Out Allowances
Peterborough,http://opendatacommunities.org/id/unitary-authority/peterborough,Peterborough City Council,Children�s & Safeguarding,Access to Resources & Specialist Commissioning,Supplies & Services,04/11/2015 00:00,8000047934,673.12,Revenue,Redacted Personal Data,Boarding Out Allowances
Peterborough,http://opendatacommunities.org/id/unitary-authority/peterborough,Peterborough City Council,Children�s & Safeguarding,Access to Resources & Specialist Commissioning,Supplies & Services,04/11/2015 00:00,8000047934,851.48,Revenue,Redacted Personal Data,Boarding Out Allowances
Peterborough,http://opendatacommunities.org/id/unitary-authority/peterborough,Peterborough City Council,Children�s & Safeguarding,Access to Resources & Specialist Commissioning,Supplies & Services,04/11/2015 00:00,8000047934,1086.4,Revenue,Redacted Personal Data,Boarding Out Allowances
Peterborough,http://opendatacommunities.org/id/unitary-authority/peterborough,Peterborough City Council,Children�s & Safeguarding,Access to Resources & Specialist Commissioning,Supplies & Services,04/11/2015 00:00,8000047934,524.16,Revenue,Redacted Personal Data,Boarding Out Allowances
Peterborough,http://opendatacommunities.org/id/unitary-authority/peterborough,Peterborough City Council,Children�s & Safeguarding,Access to Resources & Specialist Commissioning,Supplies & Services,04/11/2015 00:00,8000047934,580.02,Revenue,Redacted Personal Data,Boarding Out Allowances
Peterborough,http://opendatacommunities.org/id/unitary-authority/peterborough,Peterborough City Council,Children�s & Safeguarding,Access to Resources & Specialist Commissioning,Supplies & Services,04/11/2015 00:00,8000047934,571.04,Revenue,Redacted Personal Data,Boarding Out Allowances
Peterborough,http://opendatacommunities.org/id/unitary-authority/peterborough,Peterborough City Council,Children�s & Safeguarding,Access to Resources & Specialist Commissioning,Supplies & Services,04/11/2015 00:00,8000047934,1988,Revenue,Redacted Personal Data,Boarding Out Allowances
Peterborough,http://opendatacommunities.org/id/unitary-authority/peterborough,Peterborough City Council,Children�s & Safeguarding,Access to Resources & Specialist Commissioning,Supplies & Services,04/11/2015 00:00,8000047934,524.16,Revenue,Redacted Personal Data,Boarding Out Allowances
Peterborough,http://opendatacommunities.org/id/unitary-authority/peterborough,Peterborough City Council,Children�s & Safeguarding,Access to Resources & Specialist Commissioning,Supplies & Services,04/11/2015 00:00,8000047934,622.16,Revenue,Redacted Personal Data,Boarding Out Allowances
Peterborough,http://opendatacommunities.org/id/unitary-authority/peterborough,Peterborough City Council,Children�s & Safeguarding,Access to Resources & Specialist Commissioning,Supplies & Services,04/11/2015 00:00,8000047934,524.16,Revenue,Redacted Personal Data,Boarding Out Allowances
Peterborough,http://opendatacommunities.org/id/unitary-authority/peterborough,Peterborough City Council,Children�s & Safeguarding,Access to Resources & Specialist Commissioning,Supplies & Services,04/11/2015 00:00,8000047934,827.47,Revenue,Redacted Personal Data,Boarding Out Allowances
Peterborough,http://opendatacommunities.org/id/unitary-authority/peterborough,Peterborough City Council,Children�s & Safeguarding,Access to Resources & Specialist Commissioning,Supplies & Services,04/11/2015 00:00,8000047934,664.72,Revenue,Redacted Personal Data,Boarding Out Allowances
Peterborough,http://opendatacommunities.org/id/unitary-authority/peterborough,Peterborough City Council,Children�s & Safeguarding,Access to Resources & Specialist Commissioning,Supplies & Services,04/11/2015 00:00,8000047934,580.02,Revenue,Redacted Personal Data,Boarding Out Allowances
Peterborough,http://opendatacommunities.org/id/unitary-authority/peterborough,Peterborough City Council,Children�s & Safeguarding,Access to Resources & Specialist Commissioning,Supplies & Services,04/11/2015 00:00,8000047934,580.02,Revenue,Redacted Personal Data,Boarding Out Allowances
Peterborough,http://opendatacommunities.org/id/unitary-authority/peterborough,Peterborough City Council,Children�s & Safeguarding,Access to Resources & Specialist Commissioning,Supplies & Services,04/11/2015 00:00,8000047934,673.12,Revenue,Redacted Personal Data,Boarding Out Allowances
Peterborough,http://opendatacommunities.org/id/unitary-authority/peterborough,Peterborough City Council,Children�s & Safeguarding,Access to Resources & Specialist Commissioning,Supplies & Services,04/11/2015 00:00,8000047934,524.16,Revenue,Redacted Personal Data,Boarding Out Allowances
Peterborough,http://opendatacommunities.org/id/unitary-authority/peterborough,Peterborough City Council,Children�s & Safeguarding,Access to Resources & Specialist Commissioning,Supplies & Services,04/11/2015 00:00,8000047934,806.72,Revenue,Redacted Personal Data,Boarding Out Allowances
Peterborough,http://opendatacommunities.org/id/unitary-authority/peterborough,Peterborough City Council,Children�s & Safeguarding,Access to Resources & Specialist Commissioning,Supplies & Services,04/11/2015 00:00,8000047934,552.61,Revenue,Redacted Personal Data,Boarding Out Allowances
Peterborough,http://opendatacommunities.org/id/unitary-authority/peterborough,Peterborough City Council,Children�s & Safeguarding,Access to Resources & Specialist Commissioning,Supplies & Services,04/11/2015 00:00,8000047934,552.61,Revenue,Redacted Personal Data,Boarding Out Allowances
Peterborough,http://opendatacommunities.org/id/unitary-authority/peterborough,Peterborough City Council,Children�s & Safeguarding,Access to Resources & Specialist Commissioning,Supplies & Services,04/11/2015 00:00,8000047934,901.02,Revenue,Redacted Personal Data,Boarding Out Allowances
Peterborough,http://opendatacommunities.org/id/unitary-authority/peterborough,Peterborough City Council,Children�s & Safeguarding,Access to Resources & Specialist Commissioning,Supplies & Services,04/11/2015 00:00,8000047934,1063.77,Revenue,Redacted Personal Data,Boarding Out Allowances
Peterborough,http://opendatacommunities.org/id/unitary-authority/peterborough,Peterborough City Council,Children�s & Safeguarding,Child Health,Supplies & Services,04/11/2015 00:00,8000047934,580.84,Revenue,Redacted Personal Data,Financial Assistance
Peterborough,http://opendatacommunities.org/id/unitary-authority/peterborough,Peterborough City Council,Children�s & Safeguarding,Access to Resources & Specialist Commissioning,Supplies & Services,04/11/2015 00:00,8000047934,580.02,Revenue,Redacted Personal Data,Boarding Out Allowances
Peterborough,http://opendatacommunities.org/id/unitary-authority/peterborough,Peterborough City Council,Children�s & Safeguarding,Access to Resources & Specialist Commissioning,Supplies & Services,04/11/2015 00:00,8000047934,645.72,Revenue,Redacted Personal Data,Boarding Out Allowances
Peterborough,http://opendatacommunities.org/id/unitary-authority/peterborough,Peterborough City Council,Children�s & Safeguarding,Access to Resources & Specialist Commissioning,Supplies & Services,04/11/2015 00:00,8000047934,819,Revenue,Redacted Personal Data,Boarding Out Allowances
Peterborough,http://opendatacommunities.org/id/unitary-authority/peterborough,Peterborough City Council,Children�s & Safeguarding,Access to Resources & Specialist Commissioning,Supplies & Services,04/11/2015 00:00,8000047934,819,Revenue,Redacted Personal Data,Boarding Out Allowances
Peterborough,http://opendatacommunities.org/id/unitary-authority/peterborough,Peterborough City Council,Children�s & Safeguarding,Access to Resources & Specialist Commissioning,Supplies & Services,04/11/2015 00:00,8000047934,901.02,Revenue,Redacted Personal Data,Boarding Out Allowances
Peterborough,http://opendatacommunities.org/id/unitary-authority/peterborough,Peterborough City Council,Children�s & Safeguarding,Access to Resources & Specialist Commissioning,Supplies & Services,04/11/2015 00:00,8000047934,788.9,Revenue,Redacted Personal Data,Boarding Out Allowances
Peterborough,http://opendatacommunities.org/id/unitary-authority/peterborough,Peterborough City Council,Children�s & Safeguarding,Access to Resources & Specialist Commissioning,Supplies & Services,04/11/2015 00:00,8000047934,788.9,Revenue,Redacted Personal Data,Boarding Out Allowances
Peterborough,http://opendatacommunities.org/id/unitary-authority/peterborough,Peterborough City Council,Children�s & Safeguarding,Access to Resources & Specialist Commissioning,Supplies & Services,04/11/2015 00:00,8000047934,900,Revenue,Redacted Personal Data,Boarding Out Allowances
Peterborough,http://opendatacommunities.org/id/unitary-authority/peterborough,Peterborough City Council,Children�s & Safeguarding,Access to Resources & Specialist Commissioning,Supplies & Services,04/11/2015 00:00,8000047934,840,Revenue,Redacted Personal Data,Boarding Out Allowances
Peterborough,http://opendatacommunities.org/id/unitary-authority/peterborough,Peterborough City Council,Children�s & Safeguarding,Access to Resources & Specialist Commissioning,Supplies & Services,04/11/2015 00:00,8000047934,840,Revenue,Redacted Personal Data,Boarding Out Allowances
Peterborough,http://opendatacommunities.org/id/unitary-authority/peterborough,Peterborough City Council,Children�s & Safeguarding,Access to Resources & Specialist Commissioning,Supplies & Services,04/11/2015 00:00,8000047934,806.72,Revenue,Redacted Personal Data,Boarding Out Allowances
Peterborough,http://opendatacommunities.org/id/unitary-authority/peterborough,Peterborough City Council,Children�s & Safeguarding,Child Health,Supplies & Services,04/11/2015 00:00,8000047934,1117,Revenue,Redacted Personal Data,Financial Assistance
Peterborough,http://opendatacommunities.org/id/unitary-authority/peterborough,Peterborough City Council,Children�s & Safeguarding,Access to Resources & Specialist Commissioning,Supplies & Services,04/11/2015 00:00,8000047934,1563.29,Revenue,Redacted Personal Data,Boarding Out Allowances
Peterborough,http://opendatacommunities.org/id/unitary-authority/peterborough,Peterborough City Council,Education and Resources,School Improvement,Supplies & Services,04/11/2015 00:00,8000047934,678.78,Revenue,Redacted Personal Data,Course Fees
Peterborough,http://opendatacommunities.org/id/unitary-authority/peterborough,Peterborough City Council,Adult Services & Communities - Adults,Independent Sector Placements,Supplies & Services,04/11/2015 00:00,8000047956,3064.8,Revenue,SOCIAL CARE SOLUTIONS LTD,Home Care
Peterborough,http://opendatacommunities.org/id/unitary-authority/peterborough,Peterborough City Council,Adult Services & Communities - Adults,Independent Sector Placements,Supplies & Services,04/11/2015 00:00,8000047957,3087.3,Revenue,SOCIAL CARE SOLUTIONS LTD,Home Care
Peterborough,http://opendatacommunities.org/id/unitary-authority/peterborough,Peterborough City Council,Adult Services & Communities - Adults,Independent Sector Placements,Supplies & Services,04/11/2015 00:00,8000047970,513.92,Revenue,Housing 21,Home Care
Peterborough,http://opendatacommunities.org/id/unitary-authority/peterborough,Peterborough City Council,Adult Services & Communities - Adults,Independent Sector Placements,Supplies & Services,04/11/2015 00:00,8000047978,517.22,Revenue,Housing 21,Home Care
Peterborough,http://opendatacommunities.org/id/unitary-authority/peterborough,Peterborough City Council,Adult Services & Communities - Adults,Independent Sector Placements,Supplies & Services,04/11/2015 00:00,8000047995,1657.66,Revenue,Housing 21,Home Care
Peterborough,http://opendatacommunities.org/id/unitary-authority/peterborough,Peterborough City Council,Adult Services & Communities - Adults,Independent Sector Placements,Supplies & Services,04/11/2015 00:00,8000047998,664.36,Revenue,Housing 21,Home Care
Peterborough,http://opendatacommunities.org/id/unitary-authority/peterborough,Peterborough City Council,Adult Services & Communities - Adults,Independent Sector Placements,Supplies & Services,04/11/2015 00:00,8000047999,661.85,Revenue,Housing 21,Home Care
Peterborough,http://opendatacommunities.org/id/unitary-authority/peterborough,Peterborough City Council,Adult Services & Communities - Adults,Independent Sector Placements,Supplies & Services,04/11/2015 00:00,8000048027,667,Revenue,Housing 21,Home Care
Peterborough,http://opendatacommunities.org/id/unitary-authority/peterborough,Peterborough City Council,Adult Services & Communities - Adults,Independent Sector Placements,Supplies & Services,04/11/2015 00:00,8000048047,711.74,Revenue,Housing 21,Home Care
Peterborough,http://opendatacommunities.org/id/unitary-authority/peterborough,Peterborough City Council,Adult Services & Communities - Adults,Independent Sector Placements,Supplies & Services,04/11/2015 00:00,8000048059,970.2,Revenue,Sagecare,Home Care
Peterborough,http://opendatacommunities.org/id/unitary-authority/peterborough,Peterborough City Council,Adult Services & Communities - Adults,Independent Sector Placements,Supplies & Services,04/11/2015 00:00,8000048223,1117.71,Revenue,Sagecare,Home Care
Peterborough,http://opendatacommunities.org/id/unitary-authority/peterborough,Peterborough City Council,Corporate,Corporate,Premises,09/11/2015 00:00,30031742,1030.79,Balance Sheet,British Gas Business,Electricity
Peterborough,http://opendatacommunities.org/id/unitary-authority/peterborough,Peterborough City Council,Corporate,Corporate,Premises,09/11/2015 00:00,30031744,982.4,Balance Sheet,British Gas Business,Electricity
Peterborough,http://opendatacommunities.org/id/unitary-authority/peterborough,Peterborough City Council,Corporate,Corporate,Premises,09/11/2015 00:00,30037404,1036.58,Balance Sheet,British Gas Business,Electricity
Peterborough,http://opendatacommunities.org/id/unitary-authority/peterborough,Peterborough City Council,Corporate,Corporate,Premises,09/11/2015 00:00,30038210,616.31,Balance Sheet,British Gas Business,Electricity
Peterborough,http://opendatacommunities.org/id/unitary-authority/peterborough,Peterborough City Council,Corporate,Corporate,Premises,09/11/2015 00:00,30043844,1252.52,Balance Sheet,British Gas Business,Electricity
Peterborough,http://opendatacommunities.org/id/unitary-authority/peterborough,Peterborough City Council,Corporate,Corporate,Supplies & Services,09/11/2015 00:00,30043924,794.82,Balance Sheet,Redacted Personal Data,Boarding Out Allowances
Peterborough,http://opendatacommunities.org/id/unitary-authority/peterborough,Peterborough City Council,Corporate,Corporate,Premises,09/11/2015 00:00,30044513,972.96,Balance Sheet,British Gas Business,Electricity
Peterborough,http://opendatacommunities.org/id/unitary-authority/peterborough,Peterborough City Council,Corporate,Corporate,Premises,09/11/2015 00:00,30044813,1104.06,Balance Sheet,British Gas Business,Electricity
Peterborough,http://opendatacommunities.org/id/unitary-authority/peterborough,Peterborough City Council,Corporate,Corporate,Premises,09/11/2015 00:00,30044897,536.16,Balance Sheet,British Gas Business,Electricity
Peterborough,http://opendatacommunities.org/id/unitary-authority/peterborough,Peterborough City Council,Corporate,Corporate,Third Party Payments,09/11/2015 00:00,30045488,-6350,Balance Sheet,Dial Peterborough,Third Party Payments - Contract
Peterborough,http://opendatacommunities.org/id/unitary-authority/peterborough,Peterborough City Council,Corporate,Corporate,Supplies & Services,09/11/2015 00:00,30049219,-2813.7,Balance Sheet,Foster Care Associates Ltd FCA,Boarding Out Allowances
Peterborough,http://opendatacommunities.org/id/unitary-authority/peterborough,Peterborough City Council,Adults and Communities - Communities,Housing and Health,Supplies & Services,09/11/2015 00:00,30050314,595.56,Revenue,DA Rosalia Hotel,Homelessness Bed & Breakfast Costs
Peterborough,http://opendatacommunities.org/id/unitary-authority/peterborough,Peterborough City Council,Adults and Communities - Communities,Housing and Health,Supplies & Services,09/11/2015 00:00,30050349,510.48,Revenue,DA Rosalia Hotel,Homelessness Bed & Breakfast Costs
Peterborough,http://opendatacommunities.org/id/unitary-authority/peterborough,Peterborough City Council,Adults and Communities - Communities,Housing and Health,Supplies & Services,09/11/2015 00:00,30050362,714.56,Revenue,DA Rosalia Hotel,Homelessness Bed & Breakfast Costs
Peterborough,http://opendatacommunities.org/id/unitary-authority/peterborough,Peterborough City Council,Education and Resources,Service Director Education,Employees,09/11/2015 00:00,30050369,925.43,Revenue,Capita Business Services Ltd,Pensions
Peterborough,http://opendatacommunities.org/id/unitary-authority/peterborough,Peterborough City Council,Corporate,Corporate,Capital,09/11/2015 00:00,30050396,8804.52,Capital,Salesforce.com,Computer Software
Peterborough,http://opendatacommunities.org/id/unitary-authority/peterborough,Peterborough City Council,Children�s & Safeguarding,Children's Social Care,Premises,09/11/2015 00:00,30050407,885,Revenue,Smooth Removals (Peterborough) Ltd,Other Occupancy Costs
Peterborough,http://opendatacommunities.org/id/unitary-authority/peterborough,Peterborough City Council,Amey Peterborough & Waste Management,Waste Management,Supplies & Services,09/11/2015 00:00,30050493,25780.77,Revenue,Material Change Ltd,Waste Disposal
Peterborough,http://opendatacommunities.org/id/unitary-authority/peterborough,Peterborough City Council,Children�s & Safeguarding,Access to Resources & Specialist Commissioning,Supplies & Services,09/11/2015 00:00,30050503,929.25,Revenue,Linkage Community Trust Limited,Boarding Out Allowances
Peterborough,http://opendatacommunities.org/id/unitary-authority/peterborough,Peterborough City Council,Corporate,Corporate,Capital,09/11/2015 00:00,30050507,620,Capital,Smooth Removals (Peterborough) Ltd,Building And Site Works
Peterborough,http://opendatacommunities.org/id/unitary-authority/peterborough,Peterborough City Council,Adults and Communities - Communities,Housing and Health,Supplies & Services,09/11/2015 00:00,30050512,595,Revenue,Woodcock Holmes,Financial Assistance
Peterborough,http://opendatacommunities.org/id/unitary-authority/peterborough,Peterborough City Council,Adults and Communities - Communities,Housing and Health,Supplies & Services,09/11/2015 00:00,30050514,500,Revenue,Peterborough City Letting (PCL),Financial Assistance
Peterborough,http://opendatacommunities.org/id/unitary-authority/peterborough,Peterborough City Council,Westcombe Engineering,Westcombe Engineering,Supplies & Services,09/11/2015 00:00,30050530,548.86,Revenue,Safetykleen UK Ltd,Cleaning
Peterborough,http://opendatacommunities.org/id/unitary-authority/peterborough,Peterborough City Council,Corporate,Corporate Services,Supplies & Services,09/11/2015 00:00,30050537,141800,Revenue,North Level Dist.  Int. Drainage Board,Drainage Levy
Peterborough,http://opendatacommunities.org/id/unitary-authority/peterborough,Peterborough City Council,Children�s & Safeguarding,Children's Social Care,Employees,09/11/2015 00:00,30050538,1072.26,Revenue,Sanctuary Personnel Ltd,External Temporary Staff
Peterborough,http://opendatacommunities.org/id/unitary-authority/peterborough,Peterborough City Council,Adult Services & Communities - Adults,Therapy/Reablement/Community Equipment,Employees,09/11/2015 00:00,30050550,2667.2,Revenue,Caritas Recruitment,External Temporary Staff
Peterborough,http://opendatacommunities.org/id/unitary-authority/peterborough,Peterborough City Council,Adult Services & Communities - Adults,Therapy/Reablement/Community Equipment,Employees,09/11/2015 00:00,30050552,2080,Revenue,Caritas Recruitment,External Temporary Staff
Peterborough,http://opendatacommunities.org/id/unitary-authority/peterborough,Peterborough City Council,Children�s & Safeguarding,Children's Social Care,Employees,09/11/2015 00:00,30050557,1787.1,Revenue,Sanctuary Personnel Ltd,External Temporary Staff
Peterborough,http://opendatacommunities.org/id/unitary-authority/peterborough,Peterborough City Council,Education and Resources,School Improvement,Supplies & Services,09/11/2015 00:00,30050562,2589,Revenue,National Governors Association  (NGA),Subscriptions
Peterborough,http://opendatacommunities.org/id/unitary-authority/peterborough,Peterborough City Council,Adults and Communities - Communities,Housing and Health,Supplies & Services,09/11/2015 00:00,30050570,695,Revenue,Belvoir Property Management,Financial Assistance
Peterborough,http://opendatacommunities.org/id/unitary-authority/peterborough,Peterborough City Council,Corporate,Corporate,Supplies & Services,09/11/2015 00:00,30050575,3890,Balance Sheet,Fieldwork Admin Team (IMPREST),Numerous
Peterborough,http://opendatacommunities.org/id/unitary-authority/peterborough,Peterborough City Council,Children�s & Safeguarding,Children's Social Care,Supplies & Services,09/11/2015 00:00,30050577,640,Revenue,Key2,Financial Assistance
Peterborough,http://opendatacommunities.org/id/unitary-authority/peterborough,Peterborough City Council,Education and Resources,PFI,Premises,09/11/2015 00:00,30050579,675.54,Revenue,Eastern Shires Purchasing Organisation,Gas
Peterborough,http://opendatacommunities.org/id/unitary-authority/peterborough,Peterborough City Council,Corporate,Corporate,Supplies & Services,09/11/2015 00:00,30050583,2511,Balance Sheet,Fieldwork Admin Team (IMPREST),Numerous
Peterborough,http://opendatacommunities.org/id/unitary-authority/peterborough,Peterborough City Council,Children�s & Safeguarding,Access to Resources & Specialist Commissioning,Supplies & Services,09/11/2015 00:00,30050589,3671,Revenue,Kirkstone House School,Boarding Out Allowances
Peterborough,http://opendatacommunities.org/id/unitary-authority/peterborough,Peterborough City Council,City Servs & Communications,Regulatory Services,Supplies & Services,09/11/2015 00:00,30050600,1554.8,Revenue,Northgate Information Solutions,Administration Expenses
Peterborough,http://opendatacommunities.org/id/unitary-authority/peterborough,Peterborough City Council,City Servs & Communications,Regulatory Services,Supplies & Services,09/11/2015 00:00,30050601,1007.4,Revenue,Northgate Information Solutions,Administration Expenses
Peterborough,http://opendatacommunities.org/id/unitary-authority/peterborough,Peterborough City Council,City Servs & Communications,Regulatory Services,Supplies & Services,09/11/2015 00:00,30050603,961.4,Revenue,Northgate Information Solutions,Administration Expenses
Peterborough,http://opendatacommunities.org/id/unitary-authority/peterborough,Peterborough City Council,Children�s & Safeguarding,Access to Resources & Specialist Commissioning,Supplies & Services,09/11/2015 00:00,30050617,3671,Revenue,Kirkstone House School,Boarding Out Allowances
Peterborough,http://opendatacommunities.org/id/unitary-authority/peterborough,Peterborough City Council,Children�s & Safeguarding,Access to Resources & Specialist Commissioning,Supplies & Services,09/11/2015 00:00,30050629,927.5,Revenue,Archways Care Limited,Boarding Out Allowances
Peterborough,http://opendatacommunities.org/id/unitary-authority/peterborough,Peterborough City Council,Education,Pupil Referral Unit,Supplies & Services,09/11/2015 00:00,30050631,552.34,Revenue,Fletton Student Support Centre (Imprest),Numerous
Peterborough,http://opendatacommunities.org/id/unitary-authority/peterborough,Peterborough City Council,Children�s & Safeguarding,Child Health,Supplies & Services,09/11/2015 00:00,30050634,775.55,Revenue,Cherry Lodge (Imprest),Numerous
Peterborough,http://opendatacommunities.org/id/unitary-authority/peterborough,Peterborough City Council,Children�s & Safeguarding,Children's Social Care,Supplies & Services,09/11/2015 00:00,30050635,1736.3,Revenue,Children & Families Looked After Children (Imprest),Financial Assistance
Peterborough,http://opendatacommunities.org/id/unitary-authority/peterborough,Peterborough City Council,Adult Services & Communities - Adults,Mental Capacity Act & DoLs,Premises,09/11/2015 00:00,30050639,1520,Revenue,Sanctuary Personnel Ltd,External Temporary Staff
Peterborough,http://opendatacommunities.org/id/unitary-authority/peterborough,Peterborough City Council,Education and Resources,Service Director Education,Employees,09/11/2015 00:00,30050665,26541.26,Revenue,Teachers Pensions,Pensions
Peterborough,http://opendatacommunities.org/id/unitary-authority/peterborough,Peterborough City Council,Children�s & Safeguarding,Access to Resources & Specialist Commissioning,Supplies & Services,09/11/2015 00:00,30050668,5829,Revenue,Credo Care Ltd,Boarding Out Allowances
Peterborough,http://opendatacommunities.org/id/unitary-authority/peterborough,Peterborough City Council,Adults and Communities - Communities,Housing and Health,Employees,09/11/2015 00:00,30050683,666.25,Revenue,Reed Specialist Recruitment,External Temporary Staff
Peterborough,http://opendatacommunities.org/id/unitary-authority/peterborough,Peterborough City Council,Performance & Information,Performance & Information,Employees,09/11/2015 00:00,30050687,566.3,Revenue,Reed Specialist Recruitment,External Temporary Staff
Peterborough,http://opendatacommunities.org/id/unitary-authority/peterborough,Peterborough City Council,Children�s & Safeguarding,Child Health,Supplies & Services,09/11/2015 00:00,30050711,1280,Revenue,Kingsgate Trading Ltd,Purchased Social Care Services
Peterborough,http://opendatacommunities.org/id/unitary-authority/peterborough,Peterborough City Council,Children�s & Safeguarding,Child Health,Supplies & Services,09/11/2015 00:00,30050711,815,Revenue,Kingsgate Trading Ltd,Purchased Social Care Services
Peterborough,http://opendatacommunities.org/id/unitary-authority/peterborough,Peterborough City Council,Children�s & Safeguarding,Access to Resources & Specialist Commissioning,Supplies & Services,09/11/2015 00:00,30050712,1630.35,Revenue,Transition Care Peterborough Ltd,Boarding Out Allowances
Peterborough,http://opendatacommunities.org/id/unitary-authority/peterborough,Peterborough City Council,Children�s & Safeguarding,Access to Resources & Specialist Commissioning,Supplies & Services,09/11/2015 00:00,30050713,1855.35,Revenue,Transition Care Peterborough Ltd,Boarding Out Allowances
Peterborough,http://opendatacommunities.org/id/unitary-authority/peterborough,Peterborough City Council,Children�s & Safeguarding,Child Health,Supplies & Services,09/11/2015 00:00,30050720,6875,Revenue,Dial Peterborough,Purchased Social Care Services
Peterborough,http://opendatacommunities.org/id/unitary-authority/peterborough,Peterborough City Council,Adult Services & Communities - Adults,Finance,Employees,09/11/2015 00:00,30050730,8325,Revenue,Chatham Associates Ltd,External Temporary Staff
Peterborough,http://opendatacommunities.org/id/unitary-authority/peterborough,Peterborough City Council,Corporate,Corporate,Capital,09/11/2015 00:00,30050756,2430.51,Capital,Garfield Builders Ltd,Building And Site Works
Peterborough,http://opendatacommunities.org/id/unitary-authority/peterborough,Peterborough City Council,Business Management and Commercial Operations,Clare Lodge,Employees,09/11/2015 00:00,30050757,845,Revenue,Wrixon Care Services,External Temporary Staff
Peterborough,http://opendatacommunities.org/id/unitary-authority/peterborough,Peterborough City Council,Business Management and Commercial Operations,Clare Lodge,Employees,09/11/2015 00:00,30050758,916.6,Revenue,Wrixon Care Services,External Temporary Staff
Peterborough,http://opendatacommunities.org/id/unitary-authority/peterborough,Peterborough City Council,Adults and Communities - Communities,Housing and Health,Supplies & Services,09/11/2015 00:00,30050775,595.56,Revenue,DA Rosalia Hotel,Homelessness Bed & Breakfast Costs
Peterborough,http://opendatacommunities.org/id/unitary-authority/peterborough,Peterborough City Council,Children�s & Safeguarding,Child Health,Supplies & Services,09/11/2015 00:00,30050789,1385,Revenue,Tansor Assessment Centre,Equipment
Peterborough,http://opendatacommunities.org/id/unitary-authority/peterborough,Peterborough City Council,Peterborough Highway Services,Transport & Infrastructure Commissioning,Supplies & Services,09/11/2015 00:00,30050792,2886,Revenue,Outspoken Training,Training
Peterborough,http://opendatacommunities.org/id/unitary-authority/peterborough,Peterborough City Council,Westcombe Engineering,Westcombe Engineering,Supplies & Services,09/11/2015 00:00,30050796,982.5,Revenue,SP Metalcraft Ltd,Items For Resale
Peterborough,http://opendatacommunities.org/id/unitary-authority/peterborough,Peterborough City Council,Children�s & Safeguarding,Access to Resources & Specialist Commissioning,Supplies & Services,09/11/2015 00:00,30050800,2174.35,Revenue,Transition Care Peterborough Ltd,Boarding Out Allowances
Peterborough,http://opendatacommunities.org/id/unitary-authority/peterborough,Peterborough City Council,Children�s & Safeguarding,Access to Resources & Specialist Commissioning,Supplies & Services,09/11/2015 00:00,30050804,2089.35,Revenue,Transition Care Peterborough Ltd,Boarding Out Allowances
Peterborough,http://opendatacommunities.org/id/unitary-authority/peterborough,Peterborough City Council,Adults and Communities - Communities,Housing and Health,Supplies & Services,09/11/2015 00:00,30050815,655,Revenue,Redacted Personal Data,Financial Assistance
Peterborough,http://opendatacommunities.org/id/unitary-authority/peterborough,Peterborough City Council,Children�s & Safeguarding,Access to Resources & Specialist Commissioning,Supplies & Services,09/11/2015 00:00,30050816,1943.66,Revenue,Kirkstone House School,Out Of Area Education Costs
Peterborough,http://opendatacommunities.org/id/unitary-authority/peterborough,Peterborough City Council,Adults and Communities - Communities,Housing and Health,Supplies & Services,09/11/2015 00:00,30050822,600,Revenue,Daily Lettings,Financial Assistance
Peterborough,http://opendatacommunities.org/id/unitary-authority/peterborough,Peterborough City Council,Corporate Property,Office Accomodation,Premises,09/11/2015 00:00,30050826,2290.19,Revenue,YMCA Cambridge & Peterborough,Service Charges - Premises
Peterborough,http://opendatacommunities.org/id/unitary-authority/peterborough,Peterborough City Council,Corporate,Corporate,Employees,09/11/2015 00:00,30050837,5778.38,Balance Sheet,The Prudential Assurance Company Ltd,Pensions
Peterborough,http://opendatacommunities.org/id/unitary-authority/peterborough,Peterborough City Council,Corporate,Corporate,Employees,09/11/2015 00:00,30050848,2479.41,Balance Sheet,The Prudential Assurance Company Ltd,Pensions
Peterborough,http://opendatacommunities.org/id/unitary-authority/peterborough,Peterborough City Council,Children�s & Safeguarding,Child Health,Premises,09/11/2015 00:00,30050862,514,Revenue,Britannia Fire & Security Ltd,Premises Maintenance
Peterborough,http://opendatacommunities.org/id/unitary-authority/peterborough,Peterborough City Council,Financial Services,Insurance,Supplies & Services,09/11/2015 00:00,30050867,1500,Revenue,Thompsons Solicitors,Insurance Claims
Peterborough,http://opendatacommunities.org/id/unitary-authority/peterborough,Peterborough City Council,Adult Services & Communities - Adults,Independent Sector Placements,Supplies & Services,09/11/2015 00:00,30050925,6854.4,Revenue,Augusta Care Ltd,Home Care
Peterborough,http://opendatacommunities.org/id/unitary-authority/peterborough,Peterborough City Council,Children�s & Safeguarding,Youth / Youth Offending,Supplies & Services,09/11/2015 00:00,30050942,6106.5,Revenue,C J Camps,Programmes
Peterborough,http://opendatacommunities.org/id/unitary-authority/peterborough,Peterborough City Council,City Servs & Communications,Parking Services,Supplies & Services,09/11/2015 00:00,30050946,866,Revenue,British Parking Association,Subscriptions
Peterborough,http://opendatacommunities.org/id/unitary-authority/peterborough,Peterborough City Council,Peterborough Highway Services,Network and Traffic Management,Supplies & Services,09/11/2015 00:00,30050960,6396.83,Revenue,Telent Technology Services Ltd,Contractors
Peterborough,http://opendatacommunities.org/id/unitary-authority/peterborough,Peterborough City Council,Adult Services & Communities - Adults,Independent Sector Placements,Supplies & Services,09/11/2015 00:00,30050988,979.71,Revenue,STAR RESIDENTIAL HOME LTD,Residential Care
Peterborough,http://opendatacommunities.org/id/unitary-authority/peterborough,Peterborough City Council,Adult Services & Communities - Adults,Independent Sector Placements,Supplies & Services,09/11/2015 00:00,30050989,1316.56,Revenue,STAR RESIDENTIAL HOME LTD,Residential Care
Peterborough,http://opendatacommunities.org/id/unitary-authority/peterborough,Peterborough City Council,Adult Services & Communities - Adults,Independent Sector Placements,Supplies & Services,09/11/2015 00:00,30050990,1270.08,Revenue,STAR RESIDENTIAL HOME LTD,Residential Care
Peterborough,http://opendatacommunities.org/id/unitary-authority/peterborough,Peterborough City Council,Adult Services & Communities - Adults,Independent Sector Placements,Supplies & Services,09/11/2015 00:00,30050991,2501.8,Revenue,STAR RESIDENTIAL HOME LTD,Residential Care
Peterborough,http://opendatacommunities.org/id/unitary-authority/peterborough,Peterborough City Council,Adult Services & Communities - Adults,Independent Sector Placements,Supplies & Services,09/11/2015 00:00,30050992,1197.88,Revenue,STAR RESIDENTIAL HOME LTD,Residential Care
Peterborough,http://opendatacommunities.org/id/unitary-authority/peterborough,Peterborough City Council,Adult Services & Communities - Adults,Independent Sector Placements,Supplies & Services,09/11/2015 00:00,30050995,2330.16,Revenue,STAR RESIDENTIAL HOME LTD,Residential Care
Peterborough,http://opendatacommunities.org/id/unitary-authority/peterborough,Peterborough City Council,Adult Services & Communities - Adults,Independent Sector Placements,Supplies & Services,09/11/2015 00:00,30050998,1263.6,Revenue,STAR RESIDENTIAL HOME LTD,Residential Care
Peterborough,http://opendatacommunities.org/id/unitary-authority/peterborough,Peterborough City Council,Cultural Services,Cultural Services,Supplies & Services,09/11/2015 00:00,30051017,3028.34,Revenue,Vivacity Culture and Leisure,Miscellaneous
Peterborough,http://opendatacommunities.org/id/unitary-authority/peterborough,Peterborough City Council,Information & Computer Technology,ICT,Supplies & Services,09/11/2015 00:00,30051031,3418.69,Revenue,Clarity Retail Systems Limited,Computer Software
Peterborough,http://opendatacommunities.org/id/unitary-authority/peterborough,Peterborough City Council,Corporate,Corporate,Capital,09/11/2015 00:00,30051046,3560,Capital,Vivacity Culture and Leisure,Building And Site Works
Peterborough,http://opendatacommunities.org/id/unitary-authority/peterborough,Peterborough City Council,Education,Pupil Referral Unit,Premises,09/11/2015 00:00,30051047,604.45,Revenue,British Gas Business,Electricity
Peterborough,http://opendatacommunities.org/id/unitary-authority/peterborough,Peterborough City Council,Education,School Infrastructure,Premises,09/11/2015 00:00,30051048,3560.85,Revenue,Anglian Water,Water
Peterborough,http://opendatacommunities.org/id/unitary-authority/peterborough,Peterborough City Council,Children�s & Safeguarding,Access to Resources & Specialist Commissioning,Supplies & Services,09/11/2015 00:00,30051049,3554.46,Revenue,Fostering Solutions,Boarding Out Allowances
Peterborough,http://opendatacommunities.org/id/unitary-authority/peterborough,Peterborough City Council,City Servs & Communications,Marketing & Communications,Employees,09/11/2015 00:00,30051051,3850,Revenue,Athene Communications,External Temporary Staff
Peterborough,http://opendatacommunities.org/id/unitary-authority/peterborough,Peterborough City Council,Children�s & Safeguarding,Access to Resources & Specialist Commissioning,Supplies & Services,09/11/2015 00:00,30051054,2137.85,Revenue,Sixteen Plus Limited,Boarding Out Allowances
Peterborough,http://opendatacommunities.org/id/unitary-authority/peterborough,Peterborough City Council,Children�s & Safeguarding,Access to Resources & Specialist Commissioning,Supplies & Services,09/11/2015 00:00,30051055,10500,Revenue,Sixteen Plus Limited,Boarding Out Allowances
Peterborough,http://opendatacommunities.org/id/unitary-authority/peterborough,Peterborough City Council,Children�s & Safeguarding,Access to Resources & Specialist Commissioning,Supplies & Services,09/11/2015 00:00,30051057,15278.57,Revenue,Meadows Care Ltd,Boarding Out Allowances
Peterborough,http://opendatacommunities.org/id/unitary-authority/peterborough,Peterborough City Council,Children�s & Safeguarding,Access to Resources & Specialist Commissioning,Supplies & Services,09/11/2015 00:00,30051058,3603.44,Revenue,Fostering Options Ltd,Boarding Out Allowances
Peterborough,http://opendatacommunities.org/id/unitary-authority/peterborough,Peterborough City Council,Children�s & Safeguarding,Access to Resources & Specialist Commissioning,Supplies & Services,09/11/2015 00:00,30051062,4450.46,Revenue,By The Bridge,Boarding Out Allowances
Peterborough,http://opendatacommunities.org/id/unitary-authority/peterborough,Peterborough City Council,Children�s & Safeguarding,Access to Resources & Specialist Commissioning,Supplies & Services,09/11/2015 00:00,30051063,3441.3,Revenue,Foster Care Associates Ltd FCA,Boarding Out Allowances
Peterborough,http://opendatacommunities.org/id/unitary-authority/peterborough,Peterborough City Council,Children�s & Safeguarding,Access to Resources & Specialist Commissioning,Supplies & Services,09/11/2015 00:00,30051065,4034.34,Revenue,Five Rivers,Boarding Out Allowances
Peterborough,http://opendatacommunities.org/id/unitary-authority/peterborough,Peterborough City Council,Children�s & Safeguarding,Access to Resources & Specialist Commissioning,Supplies & Services,09/11/2015 00:00,30051066,2834.89,Revenue,IAS TACT,Boarding Out Allowances
Peterborough,http://opendatacommunities.org/id/unitary-authority/peterborough,Peterborough City Council,Business Management and Commercial Operations,Clare Lodge,Premises,09/11/2015 00:00,30051067,16946.2,Revenue,EDF Energy Networks Ltd,Electricity
Peterborough,http://opendatacommunities.org/id/unitary-authority/peterborough,Peterborough City Council,Education and Resources,PFI,Premises,09/11/2015 00:00,30051068,4554.96,Revenue,Eastern Shires Purchasing Organisation,Gas
Peterborough,http://opendatacommunities.org/id/unitary-authority/peterborough,Peterborough City Council,Education,Pupil Referral Unit,Premises,09/11/2015 00:00,30051086,1634.46,Revenue,British Gas Business,Electricity
Peterborough,http://opendatacommunities.org/id/unitary-authority/peterborough,Peterborough City Council,Adult Services & Communities - Adults,Independent Sector Placements,Supplies & Services,09/11/2015 00:00,30051093,1092.64,Revenue,THE TUDORS,Residential Care
Peterborough,http://opendatacommunities.org/id/unitary-authority/peterborough,Peterborough City Council,Business Management and Commercial Operations,Commissioning,Premises,09/11/2015 00:00,30051096,8581.82,Revenue,British Gas Business,Electricity
Peterborough,http://opendatacommunities.org/id/unitary-authority/peterborough,Peterborough City Council,Education,Pupil Referral Unit,Premises,09/11/2015 00:00,30051097,1797.59,Revenue,British Gas Business,Electricity
Peterborough,http://opendatacommunities.org/id/unitary-authority/peterborough,Peterborough City Council,Business Management and Commercial Operations,Commissioning,Premises,09/11/2015 00:00,30051098,1343.11,Revenue,British Gas Business,Electricity
Peterborough,http://opendatacommunities.org/id/unitary-authority/peterborough,Peterborough City Council,Education and Resources,PFI,Premises,09/11/2015 00:00,30051100,1924.13,Revenue,Anglian Water,Water
Peterborough,http://opendatacommunities.org/id/unitary-authority/peterborough,Peterborough City Council,Adult Services & Communities - Adults,Independent Sector Placements,Supplies & Services,09/11/2015 00:00,30051101,16632,Revenue,Augusta Care Ltd,Home Care
Peterborough,http://opendatacommunities.org/id/unitary-authority/peterborough,Peterborough City Council,Cultural Services,Cultural Services,Premises,09/11/2015 00:00,30051102,33108.37,Revenue,EDF Energy Networks Ltd,Electricity
Peterborough,http://opendatacommunities.org/id/unitary-authority/peterborough,Peterborough City Council,Adult Services & Communities - Adults,Independent Sector Placements,Supplies & Services,09/11/2015 00:00,30051103,10348.8,Revenue,Augusta Care Ltd,Home Care
Peterborough,http://opendatacommunities.org/id/unitary-authority/peterborough,Peterborough City Council,Education,Pupil Referral Unit,Premises,09/11/2015 00:00,30051106,2486.63,Revenue,Anglian Water,Water
Peterborough,http://opendatacommunities.org/id/unitary-authority/peterborough,Peterborough City Council,Adult Services & Communities - Adults,Independent Sector Placements,Supplies & Services,09/11/2015 00:00,30051108,603.88,Revenue,Autism Care (UK) Ltd,Residential Care
Peterborough,http://opendatacommunities.org/id/unitary-authority/peterborough,Peterborough City Council,Adult Services & Communities - Adults,Independent Sector Placements,Supplies & Services,09/11/2015 00:00,30051109,990,Revenue,Mencap,Home Care
Peterborough,http://opendatacommunities.org/id/unitary-authority/peterborough,Peterborough City Council,Amey Peterborough & Waste Management,Waste & Operational Svs Mgmt,Premises,09/11/2015 00:00,30051112,5109.97,Revenue,YMCA Cambridge & Peterborough,Service Charges - Premises
Peterborough,http://opendatacommunities.org/id/unitary-authority/peterborough,Peterborough City Council,Corporate Property,Commercial Propety,Premises,09/11/2015 00:00,30051134,39000,Revenue,Savills (UK) Ltd,Rent
Peterborough,http://opendatacommunities.org/id/unitary-authority/peterborough,Peterborough City Council,Children�s & Safeguarding,Children's Social Care,Supplies & Services,09/11/2015 00:00,30051149,8400,Revenue,Cambs & P'boro NHS Foundation Trust,Consultants Fees
Peterborough,http://opendatacommunities.org/id/unitary-authority/peterborough,Peterborough City Council,Children�s & Safeguarding,Access to Resources & Specialist Commissioning,Supplies & Services,09/11/2015 00:00,30051154,3162,Revenue,IAS TACT,Boarding Out Allowances
Peterborough,http://opendatacommunities.org/id/unitary-authority/peterborough,Peterborough City Council,Children�s & Safeguarding,Access to Resources & Specialist Commissioning,Supplies & Services,09/11/2015 00:00,30051163,15000,Revenue,Barford Children's Services,Boarding Out Allowances
Peterborough,http://opendatacommunities.org/id/unitary-authority/peterborough,Peterborough City Council,Adult Services & Communities - Adults,Independent Sector Placements,Supplies & Services,09/11/2015 00:00,8000047626,772.8,Revenue,Axiom Housing Association,Home Care
Peterborough,http://opendatacommunities.org/id/unitary-authority/peterborough,Peterborough City Council,Adult Services & Communities - Adults,Independent Sector Placements,Supplies & Services,09/11/2015 00:00,8000047627,772.8,Revenue,Axiom Housing Association,Home Care
Peterborough,http://opendatacommunities.org/id/unitary-authority/peterborough,Peterborough City Council,Adult Services & Communities - Adults,Independent Sector Placements,Supplies & Services,09/11/2015 00:00,8000047634,1159.2,Revenue,Axiom Housing Association,Home Care
Peterborough,http://opendatacommunities.org/id/unitary-authority/peterborough,Peterborough City Council,Adult Services & Communities - Adults,Independent Sector Placements,Supplies & Services,09/11/2015 00:00,8000047636,552,Revenue,Axiom Housing Association,Home Care
Peterborough,http://opendatacommunities.org/id/unitary-authority/peterborough,Peterborough City Council,Adult Services & Communities - Adults,Independent Sector Placements,Supplies & Services,09/11/2015 00:00,8000047637,552,Revenue,Axiom Housing Association,Home Care
Peterborough,http://opendatacommunities.org/id/unitary-authority/peterborough,Peterborough City Council,Adult Services & Communities - Adults,Independent Sector Placements,Supplies & Services,09/11/2015 00:00,8000047638,579.6,Revenue,Axiom Housing Association,Home Care
Peterborough,http://opendatacommunities.org/id/unitary-authority/peterborough,Peterborough City Council,Adult Services & Communities - Adults,Independent Sector Placements,Supplies & Services,09/11/2015 00:00,8000047731,861.3,Revenue,Allied Healthcare (UK) Ltd,Home Care
Peterborough,http://opendatacommunities.org/id/unitary-authority/peterborough,Peterborough City Council,Adult Services & Communities - Adults,Independent Sector Placements,Supplies & Services,09/11/2015 00:00,8000047733,831.6,Revenue,Allied Healthcare (UK) Ltd,Home Care
Peterborough,http://opendatacommunities.org/id/unitary-authority/peterborough,Peterborough City Council,Adult Services & Communities - Adults,Independent Sector Placements,Supplies & Services,09/11/2015 00:00,8000047734,1712.7,Revenue,Allied Healthcare (UK) Ltd,Home Care
Peterborough,http://opendatacommunities.org/id/unitary-authority/peterborough,Peterborough City Council,Adult Services & Communities - Adults,Independent Sector Placements,Supplies & Services,09/11/2015 00:00,8000047736,501.6,Revenue,Allied Healthcare (UK) Ltd,Home Care
Peterborough,http://opendatacommunities.org/id/unitary-authority/peterborough,Peterborough City Council,Adult Services & Communities - Adults,Independent Sector Placements,Supplies & Services,09/11/2015 00:00,8000047739,554.4,Revenue,Allied Healthcare (UK) Ltd,Home Care
Peterborough,http://opendatacommunities.org/id/unitary-authority/peterborough,Peterborough City Council,Adult Services & Communities - Adults,Independent Sector Placements,Supplies & Services,09/11/2015 00:00,8000047741,1293.6,Revenue,Allied Healthcare (UK) Ltd,Home Care
Peterborough,http://opendatacommunities.org/id/unitary-authority/peterborough,Peterborough City Council,Adult Services & Communities - Adults,Independent Sector Placements,Supplies & Services,09/11/2015 00:00,8000047742,1003.2,Revenue,Allied Healthcare (UK) Ltd,Home Care
Peterborough,http://opendatacommunities.org/id/unitary-authority/peterborough,Peterborough City Council,Adult Services & Communities - Adults,Independent Sector Placements,Supplies & Services,09/11/2015 00:00,8000047743,752.4,Revenue,Allied Healthcare (UK) Ltd,Home Care
Peterborough,http://opendatacommunities.org/id/unitary-authority/peterborough,Peterborough City Council,Adult Services & Communities - Adults,Independent Sector Placements,Supplies & Services,09/11/2015 00:00,8000047745,620.4,Revenue,Allied Healthcare (UK) Ltd,Home Care
Peterborough,http://opendatacommunities.org/id/unitary-authority/peterborough,Peterborough City Council,Adult Services & Communities - Adults,Independent Sector Placements,Supplies & Services,09/11/2015 00:00,8000047746,646.8,Revenue,Allied Healthcare (UK) Ltd,Home Care
Peterborough,http://opendatacommunities.org/id/unitary-authority/peterborough,Peterborough City Council,Adult Services & Communities - Adults,Independent Sector Placements,Supplies & Services,09/11/2015 00:00,8000047748,891,Revenue,Allied Healthcare (UK) Ltd,Home Care
Peterborough,http://opendatacommunities.org/id/unitary-authority/peterborough,Peterborough City Council,Adult Services & Communities - Adults,Independent Sector Placements,Supplies & Services,09/11/2015 00:00,8000047752,828.3,Revenue,Allied Healthcare (UK) Ltd,Home Care
Peterborough,http://opendatacommunities.org/id/unitary-authority/peterborough,Peterborough City Council,Adult Services & Communities - Adults,Independent Sector Placements,Supplies & Services,09/11/2015 00:00,8000047755,900.9,Revenue,Allied Healthcare (UK) Ltd,Home Care
Peterborough,http://opendatacommunities.org/id/unitary-authority/peterborough,Peterborough City Council,Adult Services & Communities - Adults,Independent Sector Placements,Supplies & Services,09/11/2015 00:00,8000047762,1808.4,Revenue,Allied Healthcare (UK) Ltd,Home Care
Peterborough,http://opendatacommunities.org/id/unitary-authority/peterborough,Peterborough City Council,Adult Services & Communities - Adults,Independent Sector Placements,Supplies & Services,09/11/2015 00:00,8000047763,2079,Revenue,Allied Healthcare (UK) Ltd,Home Care
Peterborough,http://opendatacommunities.org/id/unitary-authority/peterborough,Peterborough City Council,Adult Services & Communities - Adults,Independent Sector Placements,Supplies & Services,09/11/2015 00:00,8000047766,1887.6,Revenue,Allied Healthcare (UK) Ltd,Home Care
Peterborough,http://opendatacommunities.org/id/unitary-authority/peterborough,Peterborough City Council,Adult Services & Communities - Adults,Independent Sector Placements,Supplies & Services,09/11/2015 00:00,8000047768,1986.6,Revenue,Allied Healthcare (UK) Ltd,Home Care
Peterborough,http://opendatacommunities.org/id/unitary-authority/peterborough,Peterborough City Council,Adult Services & Communities - Adults,Independent Sector Placements,Supplies & Services,09/11/2015 00:00,8000047806,630.24,Revenue,Hales Group Ltd,Home Care
Peterborough,http://opendatacommunities.org/id/unitary-authority/peterborough,Peterborough City Council,Adult Services & Communities - Adults,Independent Sector Placements,Supplies & Services,09/11/2015 00:00,8000047809,508.95,Revenue,Hales Group Ltd,Home Care
Peterborough,http://opendatacommunities.org/id/unitary-authority/peterborough,Peterborough City Council,Adult Services & Communities - Adults,Independent Sector Placements,Supplies & Services,09/11/2015 00:00,8000047813,722.02,Revenue,Hales Group Ltd,Home Care
Peterborough,http://opendatacommunities.org/id/unitary-authority/peterborough,Peterborough City Council,Adult Services & Communities - Adults,Independent Sector Placements,Supplies & Services,09/11/2015 00:00,8000047814,711.98,Revenue,Hales Group Ltd,Home Care
Peterborough,http://opendatacommunities.org/id/unitary-authority/peterborough,Peterborough City Council,Adult Services & Communities - Adults,Independent Sector Placements,Supplies & Services,09/11/2015 00:00,8000047815,854.78,Revenue,Hales Group Ltd,Home Care
Peterborough,http://opendatacommunities.org/id/unitary-authority/peterborough,Peterborough City Council,Adult Services & Communities - Adults,Independent Sector Placements,Supplies & Services,09/11/2015 00:00,8000047817,1836,Revenue,Hales Group Ltd,Home Care
Peterborough,http://opendatacommunities.org/id/unitary-authority/peterborough,Peterborough City Council,Adult Services & Communities - Adults,Independent Sector Placements,Supplies & Services,09/11/2015 00:00,8000047821,910.11,Revenue,Hales Group Ltd,Home Care
Peterborough,http://opendatacommunities.org/id/unitary-authority/peterborough,Peterborough City Council,Adult Services & Communities - Adults,Independent Sector Placements,Supplies & Services,09/11/2015 00:00,8000047824,1738.73,Revenue,Hales Group Ltd,Home Care
Peterborough,http://opendatacommunities.org/id/unitary-authority/peterborough,Peterborough City Council,Adult Services & Communities - Adults,Independent Sector Placements,Supplies & Services,09/11/2015 00:00,8000047826,737.91,Revenue,Hales Group Ltd,Home Care
Peterborough,http://opendatacommunities.org/id/unitary-authority/peterborough,Peterborough City Council,Adult Services & Communities - Adults,Independent Sector Placements,Supplies & Services,09/11/2015 00:00,8000047828,581.61,Revenue,Hales Group Ltd,Home Care
Peterborough,http://opendatacommunities.org/id/unitary-authority/peterborough,Peterborough City Council,Adult Services & Communities - Adults,Independent Sector Placements,Supplies & Services,09/11/2015 00:00,8000047829,2159.96,Revenue,Hales Group Ltd,Home Care
Peterborough,http://opendatacommunities.org/id/unitary-authority/peterborough,Peterborough City Council,Adult Services & Communities - Adults,Independent Sector Placements,Supplies & Services,09/11/2015 00:00,8000047845,1770.31,Revenue,Hales Group Ltd,Home Care
Peterborough,http://opendatacommunities.org/id/unitary-authority/peterborough,Peterborough City Council,Adult Services & Communities - Adults,Independent Sector Placements,Supplies & Services,09/11/2015 00:00,8000047848,612.18,Revenue,Hales Group Ltd,Home Care
Peterborough,http://opendatacommunities.org/id/unitary-authority/peterborough,Peterborough City Council,Adult Services & Communities - Adults,Independent Sector Placements,Supplies & Services,09/11/2015 00:00,8000047858,1164.4,Revenue,Hales Group Ltd,Home Care
Peterborough,http://opendatacommunities.org/id/unitary-authority/peterborough,Peterborough City Council,Adult Services & Communities - Adults,Independent Sector Placements,Supplies & Services,09/11/2015 00:00,8000047862,593.48,Revenue,Hales Group Ltd,Home Care
Peterborough,http://opendatacommunities.org/id/unitary-authority/peterborough,Peterborough City Council,Adult Services & Communities - Adults,Independent Sector Placements,Supplies & Services,09/11/2015 00:00,8000047864,1012.21,Revenue,Hales Group Ltd,Home Care
Peterborough,http://opendatacommunities.org/id/unitary-authority/peterborough,Peterborough City Council,Adult Services & Communities - Adults,Independent Sector Placements,Supplies & Services,09/11/2015 00:00,8000047866,759.64,Revenue,Hales Group Ltd,Home Care
Peterborough,http://opendatacommunities.org/id/unitary-authority/peterborough,Peterborough City Council,Adult Services & Communities - Adults,Independent Sector Placements,Supplies & Services,09/11/2015 00:00,8000047868,583.45,Revenue,Hales Group Ltd,Home Care
Peterborough,http://opendatacommunities.org/id/unitary-authority/peterborough,Peterborough City Council,Adult Services & Communities - Adults,Independent Sector Placements,Supplies & Services,09/11/2015 00:00,8000047869,676.02,Revenue,Hales Group Ltd,Home Care
Peterborough,http://opendatacommunities.org/id/unitary-authority/peterborough,Peterborough City Council,Adult Services & Communities - Adults,Independent Sector Placements,Supplies & Services,09/11/2015 00:00,8000047871,771.1,Revenue,Hales Group Ltd,Home Care
Peterborough,http://opendatacommunities.org/id/unitary-authority/peterborough,Peterborough City Council,Adult Services & Communities - Adults,Independent Sector Placements,Supplies & Services,09/11/2015 00:00,8000047876,604.09,Revenue,Hales Group Ltd,Home Care
Peterborough,http://opendatacommunities.org/id/unitary-authority/peterborough,Peterborough City Council,Adult Services & Communities - Adults,Independent Sector Placements,Supplies & Services,09/11/2015 00:00,8000047879,726.86,Revenue,Hales Group Ltd,Home Care
Peterborough,http://opendatacommunities.org/id/unitary-authority/peterborough,Peterborough City Council,Adult Services & Communities - Adults,Independent Sector Placements,Supplies & Services,09/11/2015 00:00,8000047882,507.63,Revenue,Hales Group Ltd,Home Care
Peterborough,http://opendatacommunities.org/id/unitary-authority/peterborough,Peterborough City Council,Adult Services & Communities - Adults,Independent Sector Placements,Supplies & Services,09/11/2015 00:00,8000047889,1427.71,Revenue,Hales Group Ltd,Home Care
Peterborough,http://opendatacommunities.org/id/unitary-authority/peterborough,Peterborough City Council,Adult Services & Communities - Adults,Independent Sector Placements,Supplies & Services,09/11/2015 00:00,8000047893,2148.56,Revenue,Hales Group Ltd,Home Care
Peterborough,http://opendatacommunities.org/id/unitary-authority/peterborough,Peterborough City Council,Adult Services & Communities - Adults,Independent Sector Placements,Supplies & Services,09/11/2015 00:00,8000047894,1576.05,Revenue,Hales Group Ltd,Home Care
Peterborough,http://opendatacommunities.org/id/unitary-authority/peterborough,Peterborough City Council,Adult Services & Communities - Adults,Independent Sector Placements,Supplies & Services,09/11/2015 00:00,8000047895,4602.8,Revenue,Hales Group Ltd,Home Care
Peterborough,http://opendatacommunities.org/id/unitary-authority/peterborough,Peterborough City Council,Adult Services & Communities - Adults,Independent Sector Placements,Supplies & Services,09/11/2015 00:00,8000047900,1389.66,Revenue,Hales Group Ltd,Home Care
Peterborough,http://opendatacommunities.org/id/unitary-authority/peterborough,Peterborough City Council,Adult Services & Communities - Adults,Independent Sector Placements,Supplies & Services,09/11/2015 00:00,8000047906,2048.24,Revenue,Hales Group Ltd,Home Care
Peterborough,http://opendatacommunities.org/id/unitary-authority/peterborough,Peterborough City Council,Adult Services & Communities - Adults,Independent Sector Placements,Supplies & Services,09/11/2015 00:00,8000047918,1285.81,Revenue,Hales Group Ltd,Home Care
Peterborough,http://opendatacommunities.org/id/unitary-authority/peterborough,Peterborough City Council,Children�s & Safeguarding,Access to Resources & Specialist Commissioning,Supplies & Services,09/11/2015 00:00,8000047934,1895.34,Revenue,Redacted Personal Data,Boarding Out Allowances
Peterborough,http://opendatacommunities.org/id/unitary-authority/peterborough,Peterborough City Council,Adult Services & Communities - Adults,Independent Sector Placements,Supplies & Services,09/11/2015 00:00,8000047964,648.34,Revenue,Housing 21,Home Care
Peterborough,http://opendatacommunities.org/id/unitary-authority/peterborough,Peterborough City Council,Adult Services & Communities - Adults,Independent Sector Placements,Supplies & Services,09/11/2015 00:00,8000047967,509.74,Revenue,Housing 21,Home Care
Peterborough,http://opendatacommunities.org/id/unitary-authority/peterborough,Peterborough City Council,Adult Services & Communities - Adults,Independent Sector Placements,Supplies & Services,09/11/2015 00:00,8000047973,933.46,Revenue,Housing 21,Home Care
Peterborough,http://opendatacommunities.org/id/unitary-authority/peterborough,Peterborough City Council,Adult Services & Communities - Adults,Independent Sector Placements,Supplies & Services,09/11/2015 00:00,8000047979,707.52,Revenue,Housing 21,Home Care
Peterborough,http://opendatacommunities.org/id/unitary-authority/peterborough,Peterborough City Council,Adult Services & Communities - Adults,Independent Sector Placements,Supplies & Services,09/11/2015 00:00,8000047986,589.82,Revenue,Housing 21,Home Care
Peterborough,http://opendatacommunities.org/id/unitary-authority/peterborough,Peterborough City Council,Adult Services & Communities - Adults,Independent Sector Placements,Supplies & Services,09/11/2015 00:00,8000048364,957.49,Revenue,MEARS GROUP,Home Care
Peterborough,http://opendatacommunities.org/id/unitary-authority/peterborough,Peterborough City Council,Adult Services & Communities - Adults,Independent Sector Placements,Supplies & Services,09/11/2015 00:00,8000048365,973.59,Revenue,MEARS GROUP,Home Care
Peterborough,http://opendatacommunities.org/id/unitary-authority/peterborough,Peterborough City Council,Adult Services & Communities - Adults,Independent Sector Placements,Supplies & Services,09/11/2015 00:00,8000048368,976.35,Revenue,MEARS GROUP,Home Care
Peterborough,http://opendatacommunities.org/id/unitary-authority/peterborough,Peterborough City Council,Adult Services & Communities - Adults,Independent Sector Placements,Supplies & Services,09/11/2015 00:00,8000048370,537.68,Revenue,PRESTIGE NURSING LIMITED,Home Care
Peterborough,http://opendatacommunities.org/id/unitary-authority/peterborough,Peterborough City Council,Adult Services & Communities - Adults,Independent Sector Placements,Supplies & Services,09/11/2015 00:00,8000048371,765.6,Revenue,PRESTIGE NURSING LIMITED,Home Care
Peterborough,http://opendatacommunities.org/id/unitary-authority/peterborough,Peterborough City Council,Adult Services & Communities - Adults,Independent Sector Placements,Supplies & Services,09/11/2015 00:00,8000048372,3128.15,Revenue,PRESTIGE NURSING LIMITED,Home Care
Peterborough,http://opendatacommunities.org/id/unitary-authority/peterborough,Peterborough City Council,Adult Services & Communities - Adults,Independent Sector Placements,Supplies & Services,09/11/2015 00:00,8000048373,810.04,Revenue,PRESTIGE NURSING LIMITED,Home Care
Peterborough,http://opendatacommunities.org/id/unitary-authority/peterborough,Peterborough City Council,Adult Services & Communities - Adults,Independent Sector Placements,Supplies & Services,09/11/2015 00:00,8000048376,569.58,Revenue,PRESTIGE NURSING LIMITED,Home Care
Peterborough,http://opendatacommunities.org/id/unitary-authority/peterborough,Peterborough City Council,Adult Services & Communities - Adults,Independent Sector Placements,Supplies & Services,09/11/2015 00:00,8000048378,514.58,Revenue,PRESTIGE NURSING LIMITED,Home Care
Peterborough,http://opendatacommunities.org/id/unitary-authority/peterborough,Peterborough City Council,Adult Services & Communities - Adults,Independent Sector Placements,Supplies & Services,09/11/2015 00:00,8000048380,569.14,Revenue,PRESTIGE NURSING LIMITED,Home Care
Peterborough,http://opendatacommunities.org/id/unitary-authority/peterborough,Peterborough City Council,Adult Services & Communities - Adults,Independent Sector Placements,Supplies & Services,09/11/2015 00:00,8000048381,833.8,Revenue,PRESTIGE NURSING LIMITED,Home Care
Peterborough,http://opendatacommunities.org/id/unitary-authority/peterborough,Peterborough City Council,Adult Services & Communities - Adults,Independent Sector Placements,Supplies & Services,09/11/2015 00:00,8000048382,760.54,Revenue,PRESTIGE NURSING LIMITED,Home Care
Peterborough,http://opendatacommunities.org/id/unitary-authority/peterborough,Peterborough City Council,Adult Services & Communities - Adults,Independent Sector Placements,Supplies & Services,09/11/2015 00:00,8000048383,745.14,Revenue,PRESTIGE NURSING LIMITED,Home Care
Peterborough,http://opendatacommunities.org/id/unitary-authority/peterborough,Peterborough City Council,Education and Resources,Home to School Transport,Transport,09/11/2015 00:00,8000048422,936,Revenue,Redacted Personal Data,Hired Transport
Peterborough,http://opendatacommunities.org/id/unitary-authority/peterborough,Peterborough City Council,Education and Resources,Home to School Transport,Transport,09/11/2015 00:00,8000048425,546.72,Revenue,Redacted Personal Data,Hired Transport
Peterborough,http://opendatacommunities.org/id/unitary-authority/peterborough,Peterborough City Council,Adult Services & Communities - Adults,Independent Sector Placements,Supplies & Services,09/11/2015 00:00,8000048432,1513.29,Revenue,Redacted Personal Data,Adult Social Care Direct Payments
Peterborough,http://opendatacommunities.org/id/unitary-authority/peterborough,Peterborough City Council,Corporate,Corporate,Supplies & Services,11/11/2015 00:00,30034147,555.07,Balance Sheet,Elgate Products Limited,Items For Resale
Peterborough,http://opendatacommunities.org/id/unitary-authority/peterborough,Peterborough City Council,Children�s & Safeguarding,Children's Social Care,Employees,11/11/2015 00:00,30049921,1302.4,Revenue,Medicare First,External Temporary Staff
Peterborough,http://opendatacommunities.org/id/unitary-authority/peterborough,Peterborough City Council,Children�s & Safeguarding,Children's Social Care,Employees,11/11/2015 00:00,30050272,1120,Revenue,Medicare First,External Temporary Staff
Peterborough,http://opendatacommunities.org/id/unitary-authority/peterborough,Peterborough City Council,Westcombe Engineering,Westcombe Engineering,Supplies & Services,11/11/2015 00:00,30050294,739.5,Revenue,Barron Clark Castings Ltd,Items For Resale
Peterborough,http://opendatacommunities.org/id/unitary-authority/peterborough,Peterborough City Council,Westcombe Engineering,Westcombe Engineering,Supplies & Services,11/11/2015 00:00,30050368,739.5,Revenue,Barron Clark Castings Ltd,Items For Resale
Peterborough,http://opendatacommunities.org/id/unitary-authority/peterborough,Peterborough City Council,Children�s & Safeguarding,Children's Social Care,Supplies & Services,11/11/2015 00:00,30050376,1528.7,Revenue,R S P LTD,Childcare
Peterborough,http://opendatacommunities.org/id/unitary-authority/peterborough,Peterborough City Council,Business Management and Commercial Operations,Clare Lodge,Employees,11/11/2015 00:00,30050425,1625,Revenue,Engage Education,Supply Teachers
Peterborough,http://opendatacommunities.org/id/unitary-authority/peterborough,Peterborough City Council,City Servs & Communications,"Markets, Tourism & Events",Supplies & Services,11/11/2015 00:00,30050440,5865,Revenue,Landsman's Ltd,Contractors
Peterborough,http://opendatacommunities.org/id/unitary-authority/peterborough,Peterborough City Council,Financial Services,Finance,Employees,11/11/2015 00:00,30050446,2000,Revenue,Hudson Global Rescources Limited,External Temporary Staff
Peterborough,http://opendatacommunities.org/id/unitary-authority/peterborough,Peterborough City Council,Information & Computer Technology,ICT,Supplies & Services,11/11/2015 00:00,30050528,3700,Revenue,Clear Skies Software Ltd,Computer Software
Peterborough,http://opendatacommunities.org/id/unitary-authority/peterborough,Peterborough City Council,Children�s & Safeguarding,Access to Resources & Specialist Commissioning,Supplies & Services,11/11/2015 00:00,30050616,3376.74,Revenue,Fostering Solutions,Boarding Out Allowances
Peterborough,http://opendatacommunities.org/id/unitary-authority/peterborough,Peterborough City Council,Children�s & Safeguarding,Access to Resources & Specialist Commissioning,Supplies & Services,11/11/2015 00:00,30050618,2637.18,Revenue,Fostering Solutions,Boarding Out Allowances
Peterborough,http://opendatacommunities.org/id/unitary-authority/peterborough,Peterborough City Council,Children�s & Safeguarding,Access to Resources & Specialist Commissioning,Supplies & Services,11/11/2015 00:00,30050621,3520.71,Revenue,St Christopher's Fellowship,Boarding Out Allowances
Peterborough,http://opendatacommunities.org/id/unitary-authority/peterborough,Peterborough City Council,Children�s & Safeguarding,Children's Social Care,Premises,11/11/2015 00:00,30050662,1500,Revenue,Sanctuary Personnel Ltd,External Temporary Staff
Peterborough,http://opendatacommunities.org/id/unitary-authority/peterborough,Peterborough City Council,Performance & Information,Performance & Information,Premises,11/11/2015 00:00,30050723,566.3,Revenue,Reed Specialist Recruitment,External Temporary Staff
Peterborough,http://opendatacommunities.org/id/unitary-authority/peterborough,Peterborough City Council,Energy,Environment Capital,Supplies & Services,11/11/2015 00:00,30050724,2469.5,Revenue,Leicester City Council,Disbursements
Peterborough,http://opendatacommunities.org/id/unitary-authority/peterborough,Peterborough City Council,Performance & Information,Performance & Information,Premises,11/11/2015 00:00,30050736,569.45,Revenue,Reed Specialist Recruitment,External Temporary Staff
Peterborough,http://opendatacommunities.org/id/unitary-authority/peterborough,Peterborough City Council,Adults and Communities - Communities,Housing and Health,Premises,11/11/2015 00:00,30050751,690.63,Revenue,Reed Specialist Recruitment,External Temporary Staff
Peterborough,http://opendatacommunities.org/id/unitary-authority/peterborough,Peterborough City Council,Business Management and Commercial Operations,Clare Lodge,Premises,11/11/2015 00:00,30050755,1662,Revenue,Textbook Teachers,Supply Teachers
Peterborough,http://opendatacommunities.org/id/unitary-authority/peterborough,Peterborough City Council,Children�s & Safeguarding,Child Health,Supplies & Services,11/11/2015 00:00,30050793,10890,Revenue,Associated Catering Equipment,Equipment Maintenance
Peterborough,http://opendatacommunities.org/id/unitary-authority/peterborough,Peterborough City Council,Children�s & Safeguarding,Access to Resources & Specialist Commissioning,Supplies & Services,11/11/2015 00:00,30050827,1414.35,Revenue,Transition Care Peterborough Ltd,Boarding Out Allowances
Peterborough,http://opendatacommunities.org/id/unitary-authority/peterborough,Peterborough City Council,Children�s & Safeguarding,Access to Resources & Specialist Commissioning,Supplies & Services,11/11/2015 00:00,30050828,1807.35,Revenue,Transition Care Peterborough Ltd,Boarding Out Allowances
Peterborough,http://opendatacommunities.org/id/unitary-authority/peterborough,Peterborough City Council,Adult Services & Communities - Adults,Independent Sector Placements,Supplies & Services,11/11/2015 00:00,30050927,-1334.14,Revenue,Avery House (Peterborough) t/a Brighterkind,Residential Care
Peterborough,http://opendatacommunities.org/id/unitary-authority/peterborough,Peterborough City Council,Adult Services & Communities - Adults,Independent Sector Placements,Supplies & Services,11/11/2015 00:00,30050930,-506.65,Revenue,Avery House (Peterborough) t/a Brighterkind,Residential Care
Peterborough,http://opendatacommunities.org/id/unitary-authority/peterborough,Peterborough City Council,Education,Pupil Referral Unit,Employees,11/11/2015 00:00,30051034,3542.7,Revenue,Vision for Education Ltd,Supply Teachers
Peterborough,http://opendatacommunities.org/id/unitary-authority/peterborough,Peterborough City Council,Children�s & Safeguarding,Access to Resources & Specialist Commissioning,Supplies & Services,11/11/2015 00:00,30051052,11493,Revenue,Royal National College for Blind,Boarding Out Allowances
Peterborough,http://opendatacommunities.org/id/unitary-authority/peterborough,Peterborough City Council,Adult Services & Communities - Adults,Independent Sector Placements,Supplies & Services,11/11/2015 00:00,30051095,532.23,Revenue,Barchester Healthcare (Werrington Lodge),Residential Care
Peterborough,http://opendatacommunities.org/id/unitary-authority/peterborough,Peterborough City Council,Children�s & Safeguarding,Access to Resources & Specialist Commissioning,Supplies & Services,11/11/2015 00:00,30051122,4336.5,Revenue,Foster Care Associates Ltd FCA,Boarding Out Allowances
Peterborough,http://opendatacommunities.org/id/unitary-authority/peterborough,Peterborough City Council,Adult Services & Communities - Adults,Independent Sector Placements,Transport,11/11/2015 00:00,30051141,520,Revenue,A2B Euro Cars,Hired Transport
Peterborough,http://opendatacommunities.org/id/unitary-authority/peterborough,Peterborough City Council,Adult Services & Communities - Adults,Independent Sector Placements,Supplies & Services,11/11/2015 00:00,30051194,784.85,Revenue,Avery House (Peterborough) t/a Brighterkind,Residential Care
Peterborough,http://opendatacommunities.org/id/unitary-authority/peterborough,Peterborough City Council,Children�s & Safeguarding,Access to Resources & Specialist Commissioning,Supplies & Services,11/11/2015 00:00,30051195,3484.89,Revenue,Foster Care Associates Ltd FCA,Boarding Out Allowances
Peterborough,http://opendatacommunities.org/id/unitary-authority/peterborough,Peterborough City Council,Adult Services & Communities - Adults,Independent Sector Placements,Supplies & Services,11/11/2015 00:00,30051197,1568.29,Revenue,Avery House (Peterborough) t/a Brighterkind,Residential Care
Peterborough,http://opendatacommunities.org/id/unitary-authority/peterborough,Peterborough City Council,Children�s & Safeguarding,Access to Resources & Specialist Commissioning,Supplies & Services,11/11/2015 00:00,30051198,3052.57,Revenue,Foster Care Associates Ltd FCA,Boarding Out Allowances
Peterborough,http://opendatacommunities.org/id/unitary-authority/peterborough,Peterborough City Council,Adult Services & Communities - Adults,Independent Sector Placements,Supplies & Services,11/11/2015 00:00,30051201,2023.2,Revenue,Benell Care Services Ltd,Residential Care
Peterborough,http://opendatacommunities.org/id/unitary-authority/peterborough,Peterborough City Council,Adult Services & Communities - Adults,Independent Sector Placements,Supplies & Services,11/11/2015 00:00,30051202,1295.28,Revenue,STAR RESIDENTIAL HOME LTD,Residential Care
Peterborough,http://opendatacommunities.org/id/unitary-authority/peterborough,Peterborough City Council,Adult Services & Communities - Adults,Independent Sector Placements,Supplies & Services,11/11/2015 00:00,30051204,2217.6,Revenue,STAR RESIDENTIAL HOME LTD,Residential Care
Peterborough,http://opendatacommunities.org/id/unitary-authority/peterborough,Peterborough City Council,Adult Services & Communities - Adults,Independent Sector Placements,Supplies & Services,11/11/2015 00:00,30051205,2799.4,Revenue,"ATCHISON, MR ALAN",Residential Care
Peterborough,http://opendatacommunities.org/id/unitary-authority/peterborough,Peterborough City Council,Adult Services & Communities - Adults,Independent Sector Placements,Supplies & Services,11/11/2015 00:00,30051207,1623.72,Revenue,STAR RESIDENTIAL HOME LTD,Residential Care
Peterborough,http://opendatacommunities.org/id/unitary-authority/peterborough,Peterborough City Council,Adult Services & Communities - Adults,Independent Sector Placements,Supplies & Services,11/11/2015 00:00,30051208,2538.48,Revenue,STAR RESIDENTIAL HOME LTD,Residential Care
Peterborough,http://opendatacommunities.org/id/unitary-authority/peterborough,Peterborough City Council,Adult Services & Communities - Adults,Independent Sector Placements,Supplies & Services,11/11/2015 00:00,30051209,2335.48,Revenue,STAR RESIDENTIAL HOME LTD,Residential Care
Peterborough,http://opendatacommunities.org/id/unitary-authority/peterborough,Peterborough City Council,Adult Services & Communities - Adults,Independent Sector Placements,Supplies & Services,11/11/2015 00:00,30051210,1528.24,Revenue,STAR RESIDENTIAL HOME LTD,Residential Care
Peterborough,http://opendatacommunities.org/id/unitary-authority/peterborough,Peterborough City Council,Adult Services & Communities - Adults,Independent Sector Placements,Supplies & Services,11/11/2015 00:00,30051211,1490.16,Revenue,STAR RESIDENTIAL HOME LTD,Residential Care
Peterborough,http://opendatacommunities.org/id/unitary-authority/peterborough,Peterborough City Council,Adult Services & Communities - Adults,Independent Sector Placements,Supplies & Services,11/11/2015 00:00,30051213,2542.8,Revenue,STAR RESIDENTIAL HOME LTD,Residential Care
Peterborough,http://opendatacommunities.org/id/unitary-authority/peterborough,Peterborough City Council,Adult Services & Communities - Adults,Independent Sector Placements,Supplies & Services,11/11/2015 00:00,30051214,3043.56,Revenue,STAR RESIDENTIAL HOME LTD,Residential Care
Peterborough,http://opendatacommunities.org/id/unitary-authority/peterborough,Peterborough City Council,Adult Services & Communities - Adults,Independent Sector Placements,Supplies & Services,11/11/2015 00:00,30051216,1466.1,Revenue,Bluebird Care Peterborough,Home Care
Peterborough,http://opendatacommunities.org/id/unitary-authority/peterborough,Peterborough City Council,Adult Services & Communities - Adults,Independent Sector Placements,Supplies & Services,11/11/2015 00:00,30051234,2453.52,Revenue,STAR RESIDENTIAL HOME LTD,Residential Care
Peterborough,http://opendatacommunities.org/id/unitary-authority/peterborough,Peterborough City Council,Adult Services & Communities - Adults,Independent Sector Placements,Supplies & Services,11/11/2015 00:00,30051235,1121.4,Revenue,PHILIA LODGE REST HOME,Residential Care
Peterborough,http://opendatacommunities.org/id/unitary-authority/peterborough,Peterborough City Council,Adult Services & Communities - Adults,Independent Sector Placements,Supplies & Services,11/11/2015 00:00,30051236,1332.8,Revenue,PHILIA LODGE REST HOME,Residential Care
Peterborough,http://opendatacommunities.org/id/unitary-authority/peterborough,Peterborough City Council,Adult Services & Communities - Adults,Independent Sector Placements,Supplies & Services,11/11/2015 00:00,30051237,1330.84,Revenue,PHILIA LODGE REST HOME,Residential Care
Peterborough,http://opendatacommunities.org/id/unitary-authority/peterborough,Peterborough City Council,Children�s & Safeguarding,Access to Resources & Specialist Commissioning,Supplies & Services,11/11/2015 00:00,30051238,3484.89,Revenue,Foster Care Associates Ltd FCA,Boarding Out Allowances
Peterborough,http://opendatacommunities.org/id/unitary-authority/peterborough,Peterborough City Council,Adult Services & Communities - Adults,Independent Sector Placements,Supplies & Services,11/11/2015 00:00,30051239,912.8,Revenue,PHILIA LODGE REST HOME,Residential Care
Peterborough,http://opendatacommunities.org/id/unitary-authority/peterborough,Peterborough City Council,Adult Services & Communities - Adults,Independent Sector Placements,Supplies & Services,11/11/2015 00:00,30051240,2380,Revenue,PHILIA LODGE REST HOME,Residential Care
Peterborough,http://opendatacommunities.org/id/unitary-authority/peterborough,Peterborough City Council,Adult Services & Communities - Adults,Independent Sector Placements,Supplies & Services,11/11/2015 00:00,30051241,790.72,Revenue,PHILIA LODGE REST HOME,Residential Care
Peterborough,http://opendatacommunities.org/id/unitary-authority/peterborough,Peterborough City Council,Children�s & Safeguarding,Access to Resources & Specialist Commissioning,Supplies & Services,11/11/2015 00:00,30051242,3556.01,Revenue,Foster Care Associates Ltd FCA,Boarding Out Allowances
Peterborough,http://opendatacommunities.org/id/unitary-authority/peterborough,Peterborough City Council,Children�s & Safeguarding,Access to Resources & Specialist Commissioning,Supplies & Services,11/11/2015 00:00,30051243,3556.01,Revenue,Foster Care Associates Ltd FCA,Boarding Out Allowances
Peterborough,http://opendatacommunities.org/id/unitary-authority/peterborough,Peterborough City Council,Children�s & Safeguarding,Access to Resources & Specialist Commissioning,Supplies & Services,11/11/2015 00:00,30051245,3555.7,Revenue,Foster Care Associates Ltd FCA,Boarding Out Allowances
Peterborough,http://opendatacommunities.org/id/unitary-authority/peterborough,Peterborough City Council,Adult Services & Communities - Adults,Independent Sector Placements,Supplies & Services,11/11/2015 00:00,30051246,1397.49,Revenue,Sagecare,Home Care
Peterborough,http://opendatacommunities.org/id/unitary-authority/peterborough,Peterborough City Council,Children�s & Safeguarding,Access to Resources & Specialist Commissioning,Supplies & Services,11/11/2015 00:00,30051247,3449.03,Revenue,Foster Care Associates Ltd FCA,Boarding Out Allowances
Peterborough,http://opendatacommunities.org/id/unitary-authority/peterborough,Peterborough City Council,Adult Services & Communities - Adults,Independent Sector Placements,Supplies & Services,11/11/2015 00:00,30051249,784.47,Revenue,Sagecare,Home Care
Peterborough,http://opendatacommunities.org/id/unitary-authority/peterborough,Peterborough City Council,Adult Services & Communities - Adults,Independent Sector Placements,Supplies & Services,11/11/2015 00:00,30051250,671.58,Revenue,Sagecare,Home Care
Peterborough,http://opendatacommunities.org/id/unitary-authority/peterborough,Peterborough City Council,Children�s & Safeguarding,Access to Resources & Specialist Commissioning,Supplies & Services,11/11/2015 00:00,30051252,3052.57,Revenue,Foster Care Associates Ltd FCA,Boarding Out Allowances
Peterborough,http://opendatacommunities.org/id/unitary-authority/peterborough,Peterborough City Council,Adult Services & Communities - Adults,Independent Sector Placements,Supplies & Services,11/11/2015 00:00,30051256,-2212.28,Revenue,THE TUDORS,Residential Care
Peterborough,http://opendatacommunities.org/id/unitary-authority/peterborough,Peterborough City Council,Children�s & Safeguarding,Access to Resources & Specialist Commissioning,Supplies & Services,11/11/2015 00:00,30051259,2960.99,Revenue,Foster Care Associates Ltd FCA,Boarding Out Allowances
Peterborough,http://opendatacommunities.org/id/unitary-authority/peterborough,Peterborough City Council,Children�s & Safeguarding,Access to Resources & Specialist Commissioning,Supplies & Services,11/11/2015 00:00,30051262,3052.57,Revenue,Foster Care Associates Ltd FCA,Boarding Out Allowances
Peterborough,http://opendatacommunities.org/id/unitary-authority/peterborough,Peterborough City Council,Adult Services & Communities - Adults,Independent Sector Placements,Supplies & Services,11/11/2015 00:00,30051264,-726.78,Revenue,THE TUDORS,Residential Care
Peterborough,http://opendatacommunities.org/id/unitary-authority/peterborough,Peterborough City Council,Children�s & Safeguarding,Access to Resources & Specialist Commissioning,Supplies & Services,11/11/2015 00:00,30051269,4292.69,Revenue,Foster Care Associates Ltd FCA,Boarding Out Allowances
Peterborough,http://opendatacommunities.org/id/unitary-authority/peterborough,Peterborough City Council,Children�s & Safeguarding,Access to Resources & Specialist Commissioning,Supplies & Services,11/11/2015 00:00,30051271,4096.34,Revenue,Foster Care Associates Ltd FCA,Boarding Out Allowances
Peterborough,http://opendatacommunities.org/id/unitary-authority/peterborough,Peterborough City Council,Children�s & Safeguarding,Access to Resources & Specialist Commissioning,Supplies & Services,11/11/2015 00:00,30051273,4096.34,Revenue,Foster Care Associates Ltd FCA,Boarding Out Allowances
Peterborough,http://opendatacommunities.org/id/unitary-authority/peterborough,Peterborough City Council,Adult Services & Communities - Adults,Independent Sector Placements,Supplies & Services,11/11/2015 00:00,30051278,3131.2,Revenue,HAZELWOOD LODGE LTD,Residential Care
Peterborough,http://opendatacommunities.org/id/unitary-authority/peterborough,Peterborough City Council,Adult Services & Communities - Adults,Independent Sector Placements,Supplies & Services,11/11/2015 00:00,30051279,3131.2,Revenue,HAZELWOOD LODGE LTD,Residential Care
Peterborough,http://opendatacommunities.org/id/unitary-authority/peterborough,Peterborough City Council,Adult Services & Communities - Adults,Independent Sector Placements,Supplies & Services,11/11/2015 00:00,30051280,3131.2,Revenue,HAZELWOOD LODGE LTD,Residential Care
Peterborough,http://opendatacommunities.org/id/unitary-authority/peterborough,Peterborough City Council,Adult Services & Communities - Adults,Independent Sector Placements,Supplies & Services,11/11/2015 00:00,30051283,844.41,Revenue,Fins Care Ltd t/a St Margarets Rest Home,Residential Care
Peterborough,http://opendatacommunities.org/id/unitary-authority/peterborough,Peterborough City Council,Adult Services & Communities - Adults,Independent Sector Placements,Supplies & Services,11/11/2015 00:00,30051285,1520.66,Revenue,BUPA Care Homes,Residential Care
Peterborough,http://opendatacommunities.org/id/unitary-authority/peterborough,Peterborough City Council,Adult Services & Communities - Adults,Independent Sector Placements,Supplies & Services,11/11/2015 00:00,30051286,2940,Revenue,BUPA Care Homes,Residential Care
Peterborough,http://opendatacommunities.org/id/unitary-authority/peterborough,Peterborough City Council,Adult Services & Communities - Adults,Independent Sector Placements,Supplies & Services,11/11/2015 00:00,30051287,1626.68,Revenue,BUPA Care Homes,Residential Care
Peterborough,http://opendatacommunities.org/id/unitary-authority/peterborough,Peterborough City Council,Adult Services & Communities - Adults,Independent Sector Placements,Supplies & Services,11/11/2015 00:00,30051322,-1301.34,Revenue,BUPA Care Homes,Residential Care
Peterborough,http://opendatacommunities.org/id/unitary-authority/peterborough,Peterborough City Council,Adult Services & Communities - Adults,Independent Sector Placements,Supplies & Services,11/11/2015 00:00,30051334,-2052.89,Revenue,BUPA Care Homes,Residential Care
Peterborough,http://opendatacommunities.org/id/unitary-authority/peterborough,Peterborough City Council,Adult Services & Communities - Adults,Independent Sector Placements,Supplies & Services,11/11/2015 00:00,30051335,-955.31,Revenue,BUPA Care Homes,Residential Care
Peterborough,http://opendatacommunities.org/id/unitary-authority/peterborough,Peterborough City Council,Adults and Communities - Communities,Housing and Health,Supplies & Services,11/11/2015 00:00,30051345,500,Revenue,Redacted Personal Data,Financial Assistance
Peterborough,http://opendatacommunities.org/id/unitary-authority/peterborough,Peterborough City Council,Adult Services & Communities - Adults,Independent Sector Placements,Supplies & Services,11/11/2015 00:00,30051347,3114.44,Revenue,"ATCHISON, MR ALAN",Residential Care
Peterborough,http://opendatacommunities.org/id/unitary-authority/peterborough,Peterborough City Council,Adult Services & Communities - Adults,Independent Sector Placements,Supplies & Services,11/11/2015 00:00,30051348,1616.72,Revenue,"ATCHISON, MR ALAN",Residential Care
Peterborough,http://opendatacommunities.org/id/unitary-authority/peterborough,Peterborough City Council,Adult Services & Communities - Adults,Independent Sector Placements,Supplies & Services,11/11/2015 00:00,30051349,2023.4,Revenue,"ATCHISON, MR ALAN",Residential Care
Peterborough,http://opendatacommunities.org/id/unitary-authority/peterborough,Peterborough City Council,Adult Services & Communities - Adults,Independent Sector Placements,Supplies & Services,11/11/2015 00:00,30051350,685.28,Revenue,"ATCHISON, MR ALAN",Residential Care
Peterborough,http://opendatacommunities.org/id/unitary-authority/peterborough,Peterborough City Council,Adult Services & Communities - Adults,Independent Sector Placements,Supplies & Services,11/11/2015 00:00,30051351,4006.2,Revenue,"ATCHISON, MR ALAN",Residential Care
Peterborough,http://opendatacommunities.org/id/unitary-authority/peterborough,Peterborough City Council,Adult Services & Communities - Adults,Independent Sector Placements,Supplies & Services,11/11/2015 00:00,30051352,2289.12,Revenue,"ATCHISON, MR ALAN",Residential Care
Peterborough,http://opendatacommunities.org/id/unitary-authority/peterborough,Peterborough City Council,Adult Services & Communities - Adults,Independent Sector Placements,Supplies & Services,11/11/2015 00:00,30051354,1553.72,Revenue,"ATCHISON, MR ALAN",Residential Care
Peterborough,http://opendatacommunities.org/id/unitary-authority/peterborough,Peterborough City Council,Adult Services & Communities - Adults,Independent Sector Placements,Supplies & Services,11/11/2015 00:00,30051355,2728,Revenue,"ATCHISON, MR ALAN",Residential Care
Peterborough,http://opendatacommunities.org/id/unitary-authority/peterborough,Peterborough City Council,Adult Services & Communities - Adults,Independent Sector Placements,Supplies & Services,11/11/2015 00:00,30051356,2766.32,Revenue,"ATCHISON, MR ALAN",Residential Care
Peterborough,http://opendatacommunities.org/id/unitary-authority/peterborough,Peterborough City Council,Adult Services & Communities - Adults,Independent Sector Placements,Supplies & Services,11/11/2015 00:00,30051357,660,Revenue,"ATCHISON, MR ALAN",Residential Care
Peterborough,http://opendatacommunities.org/id/unitary-authority/peterborough,Peterborough City Council,Adult Services & Communities - Adults,Independent Sector Placements,Supplies & Services,11/11/2015 00:00,30051358,3990.88,Revenue,"ATCHISON, MR ALAN",Residential Care
Peterborough,http://opendatacommunities.org/id/unitary-authority/peterborough,Peterborough City Council,Adult Services & Communities - Adults,Independent Sector Placements,Supplies & Services,11/11/2015 00:00,30051359,8089.63,Revenue,"ATCHISON, MR ALAN",Residential Care
Peterborough,http://opendatacommunities.org/id/unitary-authority/peterborough,Peterborough City Council,Adult Services & Communities - Adults,Independent Sector Placements,Supplies & Services,11/11/2015 00:00,30051361,4833.92,Revenue,"ATCHISON, MR ALAN",Residential Care
Peterborough,http://opendatacommunities.org/id/unitary-authority/peterborough,Peterborough City Council,Adult Services & Communities - Adults,Independent Sector Placements,Supplies & Services,11/11/2015 00:00,30051362,1814.96,Revenue,"ATCHISON, MR ALAN",Residential Care
Peterborough,http://opendatacommunities.org/id/unitary-authority/peterborough,Peterborough City Council,Adult Services & Communities - Adults,Independent Sector Placements,Supplies & Services,11/11/2015 00:00,30051363,3491.04,Revenue,"ATCHISON, MR ALAN",Residential Care
Peterborough,http://opendatacommunities.org/id/unitary-authority/peterborough,Peterborough City Council,Adult Services & Communities - Adults,Independent Sector Placements,Supplies & Services,11/11/2015 00:00,30051364,5785.6,Revenue,"ATCHISON, MR ALAN",Residential Care
Peterborough,http://opendatacommunities.org/id/unitary-authority/peterborough,Peterborough City Council,Adult Services & Communities - Adults,Independent Sector Placements,Supplies & Services,11/11/2015 00:00,30051365,660,Revenue,"ATCHISON, MR ALAN",Residential Care
Peterborough,http://opendatacommunities.org/id/unitary-authority/peterborough,Peterborough City Council,Adult Services & Communities - Adults,Independent Sector Placements,Supplies & Services,11/11/2015 00:00,30051367,2162.24,Revenue,"ATCHISON, MR ALAN",Residential Care
Peterborough,http://opendatacommunities.org/id/unitary-authority/peterborough,Peterborough City Council,Adult Services & Communities - Adults,Independent Sector Placements,Supplies & Services,11/11/2015 00:00,30051369,3033.52,Revenue,"ATCHISON, MR ALAN",Residential Care
Peterborough,http://opendatacommunities.org/id/unitary-authority/peterborough,Peterborough City Council,Adult Services & Communities - Adults,Independent Sector Placements,Supplies & Services,11/11/2015 00:00,30051373,1288.36,Revenue,Fins Care Ltd t/a St Margarets Rest Home,Residential Care
Peterborough,http://opendatacommunities.org/id/unitary-authority/peterborough,Peterborough City Council,Adult Services & Communities - Adults,Independent Sector Placements,Supplies & Services,11/11/2015 00:00,30051374,1089.1,Revenue,Fins Care Ltd t/a St Margarets Rest Home,Residential Care
Peterborough,http://opendatacommunities.org/id/unitary-authority/peterborough,Peterborough City Council,Adult Services & Communities - Adults,Independent Sector Placements,Supplies & Services,11/11/2015 00:00,30051376,1306.4,Revenue,Fins Care Ltd t/a St Margarets Rest Home,Residential Care
Peterborough,http://opendatacommunities.org/id/unitary-authority/peterborough,Peterborough City Council,Adult Services & Communities - Adults,Independent Sector Placements,Supplies & Services,11/11/2015 00:00,30051377,1806.53,Revenue,Fins Care Ltd t/a St Margarets Rest Home,Residential Care
Peterborough,http://opendatacommunities.org/id/unitary-authority/peterborough,Peterborough City Council,Adult Services & Communities - Adults,Independent Sector Placements,Supplies & Services,11/11/2015 00:00,30051378,1821.96,Revenue,Fins Care Ltd t/a St Margarets Rest Home,Residential Care
Peterborough,http://opendatacommunities.org/id/unitary-authority/peterborough,Peterborough City Council,Adult Services & Communities - Adults,Independent Sector Placements,Supplies & Services,11/11/2015 00:00,30051379,1341.6,Revenue,Fins Care Ltd t/a St Margarets Rest Home,Residential Care
Peterborough,http://opendatacommunities.org/id/unitary-authority/peterborough,Peterborough City Council,Adult Services & Communities - Adults,Independent Sector Placements,Supplies & Services,11/11/2015 00:00,30051380,1071.04,Revenue,Fins Care Ltd t/a St Margarets Rest Home,Residential Care
Peterborough,http://opendatacommunities.org/id/unitary-authority/peterborough,Peterborough City Council,Adult Services & Communities - Adults,Independent Sector Placements,Supplies & Services,11/11/2015 00:00,30051383,908.84,Revenue,Fins Care Ltd t/a St Margarets Rest Home,Residential Care
Peterborough,http://opendatacommunities.org/id/unitary-authority/peterborough,Peterborough City Council,Adult Services & Communities - Adults,Independent Sector Placements,Supplies & Services,11/11/2015 00:00,30051393,1821.96,Revenue,Fins Care Ltd t/a St Margarets Rest Home,Residential Care
Peterborough,http://opendatacommunities.org/id/unitary-authority/peterborough,Peterborough City Council,Adult Services & Communities - Adults,Independent Sector Placements,Supplies & Services,11/11/2015 00:00,30051394,1253.2,Revenue,Fins Care Ltd t/a St Margarets Rest Home,Residential Care
Peterborough,http://opendatacommunities.org/id/unitary-authority/peterborough,Peterborough City Council,Adult Services & Communities - Adults,Independent Sector Placements,Supplies & Services,11/11/2015 00:00,30051396,515.48,Revenue,Fins Care Ltd t/a St Margarets Rest Home,Residential Care
Peterborough,http://opendatacommunities.org/id/unitary-authority/peterborough,Peterborough City Council,Adult Services & Communities - Adults,Independent Sector Placements,Supplies & Services,11/11/2015 00:00,30051405,2025.78,Revenue,Longueville Court (Barchester),Residential Care
Peterborough,http://opendatacommunities.org/id/unitary-authority/peterborough,Peterborough City Council,Adult Services & Communities - Adults,Independent Sector Placements,Supplies & Services,11/11/2015 00:00,30051407,602.56,Revenue,Consensus Support Services Ltd,Residential Care
Peterborough,http://opendatacommunities.org/id/unitary-authority/peterborough,Peterborough City Council,Adult Services & Communities - Adults,Independent Sector Placements,Supplies & Services,11/11/2015 00:00,30051412,1216.26,Revenue,"ATCHISON, MR ALAN",Residential Care
Peterborough,http://opendatacommunities.org/id/unitary-authority/peterborough,Peterborough City Council,Adult Services & Communities - Adults,Independent Sector Placements,Supplies & Services,11/11/2015 00:00,30051424,1279.2,Revenue,Midco Care Limited,Home Care
Peterborough,http://opendatacommunities.org/id/unitary-authority/peterborough,Peterborough City Council,Adult Services & Communities - Adults,Independent Sector Placements,Supplies & Services,11/11/2015 00:00,30051429,549.6,Revenue,Midco Care Limited,Home Care
Peterborough,http://opendatacommunities.org/id/unitary-authority/peterborough,Peterborough City Council,Children�s & Safeguarding,Children's Social Care,Employees,11/11/2015 00:00,30051435,1560.65,Revenue,Medicare First,External Temporary Staff
Peterborough,http://opendatacommunities.org/id/unitary-authority/peterborough,Peterborough City Council,Adult Services & Communities - Adults,Independent Sector Placements,Supplies & Services,11/11/2015 00:00,30051440,799.8,Revenue,Midco Care Limited,Home Care
Peterborough,http://opendatacommunities.org/id/unitary-authority/peterborough,Peterborough City Council,Adult Services & Communities - Adults,Independent Sector Placements,Supplies & Services,11/11/2015 00:00,30051441,621,Revenue,Midco Care Limited,Home Care
Peterborough,http://opendatacommunities.org/id/unitary-authority/peterborough,Peterborough City Council,Adult Services & Communities - Adults,Independent Sector Placements,Supplies & Services,11/11/2015 00:00,30051443,828,Revenue,Midco Care Limited,Home Care
Peterborough,http://opendatacommunities.org/id/unitary-authority/peterborough,Peterborough City Council,Adult Services & Communities - Adults,Independent Sector Placements,Supplies & Services,11/11/2015 00:00,30051444,1618.5,Revenue,Midco Care Limited,Home Care
Peterborough,http://opendatacommunities.org/id/unitary-authority/peterborough,Peterborough City Council,Adult Services & Communities - Adults,Independent Sector Placements,Supplies & Services,11/11/2015 00:00,30051445,624,Revenue,Midco Care Limited,Home Care
Peterborough,http://opendatacommunities.org/id/unitary-authority/peterborough,Peterborough City Council,Adult Services & Communities - Adults,Independent Sector Placements,Supplies & Services,11/11/2015 00:00,30051447,1014,Revenue,Midco Care Limited,Home Care
Peterborough,http://opendatacommunities.org/id/unitary-authority/peterborough,Peterborough City Council,Adult Services & Communities - Adults,Independent Sector Placements,Supplies & Services,11/11/2015 00:00,30051448,1092,Revenue,Midco Care Limited,Home Care
Peterborough,http://opendatacommunities.org/id/unitary-authority/peterborough,Peterborough City Council,Adult Services & Communities - Adults,Independent Sector Placements,Supplies & Services,11/11/2015 00:00,30051450,1273,Revenue,Midco Care Limited,Home Care
Peterborough,http://opendatacommunities.org/id/unitary-authority/peterborough,Peterborough City Council,Adult Services & Communities - Adults,Independent Sector Placements,Supplies & Services,11/11/2015 00:00,30051451,1394.4,Revenue,Midco Care Limited,Home Care
Peterborough,http://opendatacommunities.org/id/unitary-authority/peterborough,Peterborough City Council,Adult Services & Communities - Adults,Independent Sector Placements,Supplies & Services,11/11/2015 00:00,30051461,833.78,Revenue,Longueville Court (Barchester),Residential Care
Peterborough,http://opendatacommunities.org/id/unitary-authority/peterborough,Peterborough City Council,Adult Services & Communities - Adults,Independent Sector Placements,Supplies & Services,11/11/2015 00:00,30051462,2708.8,Revenue,Longueville Court (Barchester),Residential Care
Peterborough,http://opendatacommunities.org/id/unitary-authority/peterborough,Peterborough City Council,Adult Services & Communities - Adults,Independent Sector Placements,Supplies & Services,11/11/2015 00:00,30051463,2253.98,Revenue,Longueville Court (Barchester),Residential Care
Peterborough,http://opendatacommunities.org/id/unitary-authority/peterborough,Peterborough City Council,Adult Services & Communities - Adults,Independent Sector Placements,Supplies & Services,11/11/2015 00:00,30051464,4000,Revenue,Longueville Court (Barchester),Residential Care
Peterborough,http://opendatacommunities.org/id/unitary-authority/peterborough,Peterborough City Council,Adult Services & Communities - Adults,Independent Sector Placements,Supplies & Services,11/11/2015 00:00,30051465,2708.8,Revenue,Longueville Court (Barchester),Residential Care
Peterborough,http://opendatacommunities.org/id/unitary-authority/peterborough,Peterborough City Council,Adult Services & Communities - Adults,Independent Sector Placements,Supplies & Services,11/11/2015 00:00,30051466,1053.33,Revenue,Longueville Court (Barchester),Residential Care
Peterborough,http://opendatacommunities.org/id/unitary-authority/peterborough,Peterborough City Council,Adult Services & Communities - Adults,Independent Sector Placements,Supplies & Services,11/11/2015 00:00,30051468,4059.4,Revenue,Longueville Court (Barchester),Residential Care
Peterborough,http://opendatacommunities.org/id/unitary-authority/peterborough,Peterborough City Council,Adult Services & Communities - Adults,Independent Sector Placements,Supplies & Services,11/11/2015 00:00,30051469,2319.46,Revenue,Longueville Court (Barchester),Residential Care
Peterborough,http://opendatacommunities.org/id/unitary-authority/peterborough,Peterborough City Council,Adult Services & Communities - Adults,Independent Sector Placements,Supplies & Services,11/11/2015 00:00,30051471,4000,Revenue,Longueville Court (Barchester),Residential Care
Peterborough,http://opendatacommunities.org/id/unitary-authority/peterborough,Peterborough City Council,Adult Services & Communities - Adults,Independent Sector Placements,Supplies & Services,11/11/2015 00:00,30051472,2952,Revenue,Longueville Court (Barchester),Residential Care
Peterborough,http://opendatacommunities.org/id/unitary-authority/peterborough,Peterborough City Council,Adult Services & Communities - Adults,Independent Sector Placements,Supplies & Services,11/11/2015 00:00,30051474,2359.35,Revenue,Longueville Court (Barchester),Residential Care
Peterborough,http://opendatacommunities.org/id/unitary-authority/peterborough,Peterborough City Council,Adult Services & Communities - Adults,Independent Sector Placements,Supplies & Services,11/11/2015 00:00,30051475,4000,Revenue,Longueville Court (Barchester),Residential Care
Peterborough,http://opendatacommunities.org/id/unitary-authority/peterborough,Peterborough City Council,Adult Services & Communities - Adults,Independent Sector Placements,Supplies & Services,11/11/2015 00:00,30051476,2664.92,Revenue,Longueville Court (Barchester),Residential Care
Peterborough,http://opendatacommunities.org/id/unitary-authority/peterborough,Peterborough City Council,Adult Services & Communities - Adults,Independent Sector Placements,Supplies & Services,11/11/2015 00:00,30051478,2952,Revenue,Longueville Court (Barchester),Residential Care
Peterborough,http://opendatacommunities.org/id/unitary-authority/peterborough,Peterborough City Council,Adult Services & Communities - Adults,Independent Sector Placements,Supplies & Services,11/11/2015 00:00,30051489,1169.34,Revenue,Longueville Court (Barchester),Residential Care
Peterborough,http://opendatacommunities.org/id/unitary-authority/peterborough,Peterborough City Council,Adults and Communities - Communities,Housing and Health,Supplies & Services,11/11/2015 00:00,30051490,1230,Revenue,Peterborough City Letting (PCL),Financial Assistance
Peterborough,http://opendatacommunities.org/id/unitary-authority/peterborough,Peterborough City Council,Adults and Communities - Communities,Housing and Health,Supplies & Services,11/11/2015 00:00,30051491,1045,Revenue,Woodcock Holmes,Financial Assistance
Peterborough,http://opendatacommunities.org/id/unitary-authority/peterborough,Peterborough City Council,Adults and Communities - Communities,Housing and Health,Supplies & Services,11/11/2015 00:00,30051501,650,Revenue,Property Line,Financial Assistance
Peterborough,http://opendatacommunities.org/id/unitary-authority/peterborough,Peterborough City Council,Adults and Communities - Communities,Housing and Health,Supplies & Services,11/11/2015 00:00,30051503,990,Revenue,Property Line,Financial Assistance
Peterborough,http://opendatacommunities.org/id/unitary-authority/peterborough,Peterborough City Council,Business Management and Commercial Operations,Clare Lodge,Supplies & Services,11/11/2015 00:00,30051515,1377.33,Revenue,Clare Lodge Secure Unit (Imprest),Numerous
Peterborough,http://opendatacommunities.org/id/unitary-authority/peterborough,Peterborough City Council,Children�s & Safeguarding,Children's Social Care,Supplies & Services,11/11/2015 00:00,30051516,1406.4,Revenue,Children & Families Looked After Children (Imprest),Financial Assistance
Peterborough,http://opendatacommunities.org/id/unitary-authority/peterborough,Peterborough City Council,Adult Services & Communities - Adults,Independent Sector Placements,Supplies & Services,11/11/2015 00:00,30051526,848.1,Revenue,Cozy Care,Home Care
Peterborough,http://opendatacommunities.org/id/unitary-authority/peterborough,Peterborough City Council,Corporate,Corporate,Supplies & Services,11/11/2015 00:00,30051535,4994.23,Balance Sheet,Fieldwork Admin Team (IMPREST),Numerous
Peterborough,http://opendatacommunities.org/id/unitary-authority/peterborough,Peterborough City Council,Corporate,Corporate,Supplies & Services,11/11/2015 00:00,30051538,57743,Capital,Rider Levett Bucknall UK Ltd,Consultants Fees
Peterborough,http://opendatacommunities.org/id/unitary-authority/peterborough,Peterborough City Council,Cultural Services,Cultural Services,Supplies & Services,11/11/2015 00:00,30051628,1341.12,Revenue,Redacted Personal Data,Hired Services
Peterborough,http://opendatacommunities.org/id/unitary-authority/peterborough,Peterborough City Council,Business Management and Commercial Operations,Early Years & Quality Improvement,Supplies & Services,11/11/2015 00:00,30052678,57201.49,Revenue,Seedlings Nursery,Grant Payment
Peterborough,http://opendatacommunities.org/id/unitary-authority/peterborough,Peterborough City Council,Business Management and Commercial Operations,Early Years & Quality Improvement,Supplies & Services,11/11/2015 00:00,30053319,18131.18,Revenue,The Peterborough School Ltd,Grant Payment
Peterborough,http://opendatacommunities.org/id/unitary-authority/peterborough,Peterborough City Council,Adult Services & Communities - Adults,Independent Sector Placements,Supplies & Services,11/11/2015 00:00,8000048068,558.81,Revenue,Sagecare,Home Care
Peterborough,http://opendatacommunities.org/id/unitary-authority/peterborough,Peterborough City Council,Adult Services & Communities - Adults,Independent Sector Placements,Supplies & Services,11/11/2015 00:00,8000048069,517.99,Revenue,Sagecare,Home Care
Peterborough,http://opendatacommunities.org/id/unitary-authority/peterborough,Peterborough City Council,Adult Services & Communities - Adults,Independent Sector Placements,Supplies & Services,11/11/2015 00:00,8000048070,727.65,Revenue,Sagecare,Home Care
Peterborough,http://opendatacommunities.org/id/unitary-authority/peterborough,Peterborough City Council,Adult Services & Communities - Adults,Independent Sector Placements,Supplies & Services,11/11/2015 00:00,8000048076,702.07,Revenue,Sagecare,Home Care
Peterborough,http://opendatacommunities.org/id/unitary-authority/peterborough,Peterborough City Council,Adult Services & Communities - Adults,Independent Sector Placements,Supplies & Services,11/11/2015 00:00,8000048087,1585.83,Revenue,Sagecare,Home Care
Peterborough,http://opendatacommunities.org/id/unitary-authority/peterborough,Peterborough City Council,Adult Services & Communities - Adults,Independent Sector Placements,Supplies & Services,11/11/2015 00:00,8000048088,508.91,Revenue,Sagecare,Home Care
Peterborough,http://opendatacommunities.org/id/unitary-authority/peterborough,Peterborough City Council,Adult Services & Communities - Adults,Independent Sector Placements,Supplies & Services,11/11/2015 00:00,8000048096,617.02,Revenue,Sagecare,Home Care
Peterborough,http://opendatacommunities.org/id/unitary-authority/peterborough,Peterborough City Council,Adult Services & Communities - Adults,Independent Sector Placements,Supplies & Services,11/11/2015 00:00,8000048102,803,Revenue,Sagecare,Home Care
Peterborough,http://opendatacommunities.org/id/unitary-authority/peterborough,Peterborough City Council,Adult Services & Communities - Adults,Independent Sector Placements,Supplies & Services,11/11/2015 00:00,8000048103,577.88,Revenue,Sagecare,Home Care
Peterborough,http://opendatacommunities.org/id/unitary-authority/peterborough,Peterborough City Council,Adult Services & Communities - Adults,Independent Sector Placements,Supplies & Services,11/11/2015 00:00,8000048105,1234.8,Revenue,Sagecare,Home Care
Peterborough,http://opendatacommunities.org/id/unitary-authority/peterborough,Peterborough City Council,Adult Services & Communities - Adults,Independent Sector Placements,Supplies & Services,11/11/2015 00:00,8000048106,1612.54,Revenue,Sagecare,Home Care
Peterborough,http://opendatacommunities.org/id/unitary-authority/peterborough,Peterborough City Council,Adult Services & Communities - Adults,Independent Sector Placements,Supplies & Services,11/11/2015 00:00,8000048107,1548.53,Revenue,Sagecare,Home Care
Peterborough,http://opendatacommunities.org/id/unitary-authority/peterborough,Peterborough City Council,Adult Services & Communities - Adults,Independent Sector Placements,Supplies & Services,11/11/2015 00:00,8000048108,756,Revenue,Sagecare,Home Care
Peterborough,http://opendatacommunities.org/id/unitary-authority/peterborough,Peterborough City Council,Adult Services & Communities - Adults,Independent Sector Placements,Supplies & Services,11/11/2015 00:00,8000048110,517.49,Revenue,Sagecare,Home Care
Peterborough,http://opendatacommunities.org/id/unitary-authority/peterborough,Peterborough City Council,Adult Services & Communities - Adults,Independent Sector Placements,Supplies & Services,11/11/2015 00:00,8000048113,733.17,Revenue,Sagecare,Home Care
Peterborough,http://opendatacommunities.org/id/unitary-authority/peterborough,Peterborough City Council,Adult Services & Communities - Adults,Independent Sector Placements,Supplies & Services,11/11/2015 00:00,8000048114,561.56,Revenue,Sagecare,Home Care
Peterborough,http://opendatacommunities.org/id/unitary-authority/peterborough,Peterborough City Council,Adult Services & Communities - Adults,Independent Sector Placements,Supplies & Services,11/11/2015 00:00,8000048115,523.15,Revenue,Sagecare,Home Care
Peterborough,http://opendatacommunities.org/id/unitary-authority/peterborough,Peterborough City Council,Adult Services & Communities - Adults,Independent Sector Placements,Supplies & Services,11/11/2015 00:00,8000048120,1209.31,Revenue,Sagecare,Home Care
Peterborough,http://opendatacommunities.org/id/unitary-authority/peterborough,Peterborough City Council,Adult Services & Communities - Adults,Independent Sector Placements,Supplies & Services,11/11/2015 00:00,8000048123,623.07,Revenue,Sagecare,Home Care
Peterborough,http://opendatacommunities.org/id/unitary-authority/peterborough,Peterborough City Council,Adult Services & Communities - Adults,Independent Sector Placements,Supplies & Services,11/11/2015 00:00,8000048126,602.67,Revenue,Sagecare,Home Care
Peterborough,http://opendatacommunities.org/id/unitary-authority/peterborough,Peterborough City Council,Adult Services & Communities - Adults,Independent Sector Placements,Supplies & Services,11/11/2015 00:00,8000048128,690.93,Revenue,Sagecare,Home Care
Peterborough,http://opendatacommunities.org/id/unitary-authority/peterborough,Peterborough City Council,Adult Services & Communities - Adults,Independent Sector Placements,Supplies & Services,11/11/2015 00:00,8000048130,704.34,Revenue,Sagecare,Home Care
Peterborough,http://opendatacommunities.org/id/unitary-authority/peterborough,Peterborough City Council,Adult Services & Communities - Adults,Independent Sector Placements,Supplies & Services,11/11/2015 00:00,8000048133,624.71,Revenue,Sagecare,Home Care
Peterborough,http://opendatacommunities.org/id/unitary-authority/peterborough,Peterborough City Council,Adult Services & Communities - Adults,Independent Sector Placements,Supplies & Services,11/11/2015 00:00,8000048137,1800.72,Revenue,Sagecare,Home Care
Peterborough,http://opendatacommunities.org/id/unitary-authority/peterborough,Peterborough City Council,Adult Services & Communities - Adults,Independent Sector Placements,Supplies & Services,11/11/2015 00:00,8000048142,628.99,Revenue,Sagecare,Home Care
Peterborough,http://opendatacommunities.org/id/unitary-authority/peterborough,Peterborough City Council,Adult Services & Communities - Adults,Independent Sector Placements,Supplies & Services,11/11/2015 00:00,8000048149,1393.42,Revenue,Sagecare,Home Care
Peterborough,http://opendatacommunities.org/id/unitary-authority/peterborough,Peterborough City Council,Adult Services & Communities - Adults,Independent Sector Placements,Supplies & Services,11/11/2015 00:00,8000048151,1324.93,Revenue,Sagecare,Home Care
Peterborough,http://opendatacommunities.org/id/unitary-authority/peterborough,Peterborough City Council,Adult Services & Communities - Adults,Independent Sector Placements,Supplies & Services,11/11/2015 00:00,8000048157,506.04,Revenue,Sagecare,Home Care
Peterborough,http://opendatacommunities.org/id/unitary-authority/peterborough,Peterborough City Council,Adult Services & Communities - Adults,Independent Sector Placements,Supplies & Services,11/11/2015 00:00,8000048160,780.45,Revenue,Sagecare,Home Care
Peterborough,http://opendatacommunities.org/id/unitary-authority/peterborough,Peterborough City Council,Adult Services & Communities - Adults,Independent Sector Placements,Supplies & Services,11/11/2015 00:00,8000048161,587.79,Revenue,Sagecare,Home Care
Peterborough,http://opendatacommunities.org/id/unitary-authority/peterborough,Peterborough City Council,Adult Services & Communities - Adults,Independent Sector Placements,Supplies & Services,11/11/2015 00:00,8000048162,625.53,Revenue,Sagecare,Home Care
Peterborough,http://opendatacommunities.org/id/unitary-authority/peterborough,Peterborough City Council,Adult Services & Communities - Adults,Independent Sector Placements,Supplies & Services,11/11/2015 00:00,8000048163,914.63,Revenue,Sagecare,Home Care
Peterborough,http://opendatacommunities.org/id/unitary-authority/peterborough,Peterborough City Council,Adult Services & Communities - Adults,Independent Sector Placements,Supplies & Services,11/11/2015 00:00,8000048165,581.75,Revenue,Sagecare,Home Care
Peterborough,http://opendatacommunities.org/id/unitary-authority/peterborough,Peterborough City Council,Adult Services & Communities - Adults,Independent Sector Placements,Supplies & Services,11/11/2015 00:00,8000048167,558.69,Revenue,Sagecare,Home Care
Peterborough,http://opendatacommunities.org/id/unitary-authority/peterborough,Peterborough City Council,Adult Services & Communities - Adults,Independent Sector Placements,Supplies & Services,11/11/2015 00:00,8000048170,658.6,Revenue,Sagecare,Home Care
Peterborough,http://opendatacommunities.org/id/unitary-authority/peterborough,Peterborough City Council,Adult Services & Communities - Adults,Independent Sector Placements,Supplies & Services,11/11/2015 00:00,8000048171,559.19,Revenue,Sagecare,Home Care
Peterborough,http://opendatacommunities.org/id/unitary-authority/peterborough,Peterborough City Council,Adult Services & Communities - Adults,Independent Sector Placements,Supplies & Services,11/11/2015 00:00,8000048175,1481.15,Revenue,Sagecare,Home Care
Peterborough,http://opendatacommunities.org/id/unitary-authority/peterborough,Peterborough City Council,Adult Services & Communities - Adults,Independent Sector Placements,Supplies & Services,11/11/2015 00:00,8000048180,1529.35,Revenue,Sagecare,Home Care
Peterborough,http://opendatacommunities.org/id/unitary-authority/peterborough,Peterborough City Council,Adult Services & Communities - Adults,Independent Sector Placements,Supplies & Services,11/11/2015 00:00,8000048188,576.44,Revenue,Sagecare,Home Care
Peterborough,http://opendatacommunities.org/id/unitary-authority/peterborough,Peterborough City Council,Adult Services & Communities - Adults,Independent Sector Placements,Supplies & Services,11/11/2015 00:00,8000048189,750.94,Revenue,Sagecare,Home Care
Peterborough,http://opendatacommunities.org/id/unitary-authority/peterborough,Peterborough City Council,Adult Services & Communities - Adults,Independent Sector Placements,Supplies & Services,11/11/2015 00:00,8000048191,1645.92,Revenue,Sagecare,Home Care
Peterborough,http://opendatacommunities.org/id/unitary-authority/peterborough,Peterborough City Council,Adult Services & Communities - Adults,Independent Sector Placements,Supplies & Services,11/11/2015 00:00,8000048193,778.18,Revenue,Sagecare,Home Care
Peterborough,http://opendatacommunities.org/id/unitary-authority/peterborough,Peterborough City Council,Adult Services & Communities - Adults,Independent Sector Placements,Supplies & Services,11/11/2015 00:00,8000048194,747.18,Revenue,Sagecare,Home Care
Peterborough,http://opendatacommunities.org/id/unitary-authority/peterborough,Peterborough City Council,Adult Services & Communities - Adults,Independent Sector Placements,Supplies & Services,11/11/2015 00:00,8000048196,821.66,Revenue,Sagecare,Home Care
Peterborough,http://opendatacommunities.org/id/unitary-authority/peterborough,Peterborough City Council,Adult Services & Communities - Adults,Independent Sector Placements,Supplies & Services,11/11/2015 00:00,8000048200,1473.05,Revenue,Sagecare,Home Care
Peterborough,http://opendatacommunities.org/id/unitary-authority/peterborough,Peterborough City Council,Adult Services & Communities - Adults,Independent Sector Placements,Supplies & Services,11/11/2015 00:00,8000048206,705.6,Revenue,Sagecare,Home Care
Peterborough,http://opendatacommunities.org/id/unitary-authority/peterborough,Peterborough City Council,Adult Services & Communities - Adults,Independent Sector Placements,Supplies & Services,11/11/2015 00:00,8000048210,2069.31,Revenue,Sagecare,Home Care
Peterborough,http://opendatacommunities.org/id/unitary-authority/peterborough,Peterborough City Council,Adult Services & Communities - Adults,Independent Sector Placements,Supplies & Services,11/11/2015 00:00,8000048212,516.47,Revenue,Sagecare,Home Care
Peterborough,http://opendatacommunities.org/id/unitary-authority/peterborough,Peterborough City Council,Adult Services & Communities - Adults,Independent Sector Placements,Supplies & Services,11/11/2015 00:00,8000048214,1451.06,Revenue,Sagecare,Home Care
Peterborough,http://opendatacommunities.org/id/unitary-authority/peterborough,Peterborough City Council,Adult Services & Communities - Adults,Independent Sector Placements,Supplies & Services,11/11/2015 00:00,8000048216,520.28,Revenue,Sagecare,Home Care
Peterborough,http://opendatacommunities.org/id/unitary-authority/peterborough,Peterborough City Council,Adult Services & Communities - Adults,Independent Sector Placements,Supplies & Services,11/11/2015 00:00,8000048225,691.11,Revenue,Sagecare,Home Care
Peterborough,http://opendatacommunities.org/id/unitary-authority/peterborough,Peterborough City Council,Business Management and Commercial Operations,Business Management and Commercial Operations,Transport,11/11/2015 00:00,8000048454,611.25,Revenue,Redacted Personal Data,Hired Transport
Peterborough,http://opendatacommunities.org/id/unitary-authority/peterborough,Peterborough City Council,Business Management and Commercial Operations,Business Management and Commercial Operations,Transport,11/11/2015 00:00,8000048455,714,Revenue,Redacted Personal Data,Hired Transport
Peterborough,http://opendatacommunities.org/id/unitary-authority/peterborough,Peterborough City Council,Business Management and Commercial Operations,Business Management and Commercial Operations,Transport,11/11/2015 00:00,8000048458,1033.62,Revenue,Redacted Personal Data,Hired Transport
Peterborough,http://opendatacommunities.org/id/unitary-authority/peterborough,Peterborough City Council,Education and Resources,Home to School Transport,Transport,11/11/2015 00:00,8000048459,698.25,Revenue,Redacted Personal Data,Hired Transport
Peterborough,http://opendatacommunities.org/id/unitary-authority/peterborough,Peterborough City Council,Education and Resources,Home to School Transport,Transport,11/11/2015 00:00,8000048460,961.41,Revenue,Redacted Personal Data,Hired Transport
Peterborough,http://opendatacommunities.org/id/unitary-authority/peterborough,Peterborough City Council,Business Management and Commercial Operations,Business Management and Commercial Operations,Transport,11/11/2015 00:00,8000048461,2257.5,Revenue,Redacted Personal Data,Hired Transport
Peterborough,http://opendatacommunities.org/id/unitary-authority/peterborough,Peterborough City Council,Business Management and Commercial Operations,Business Management and Commercial Operations,Transport,11/11/2015 00:00,8000048462,869.2,Revenue,Redacted Personal Data,Hired Transport
Peterborough,http://opendatacommunities.org/id/unitary-authority/peterborough,Peterborough City Council,Business Management and Commercial Operations,Business Management and Commercial Operations,Transport,11/11/2015 00:00,8000048466,893.62,Revenue,Redacted Personal Data,Hired Transport
Peterborough,http://opendatacommunities.org/id/unitary-authority/peterborough,Peterborough City Council,Business Management and Commercial Operations,Business Management and Commercial Operations,Transport,11/11/2015 00:00,8000048470,1057.5,Revenue,Redacted Personal Data,Hired Transport
Peterborough,http://opendatacommunities.org/id/unitary-authority/peterborough,Peterborough City Council,Adult Services & Communities - Adults,Independent Sector Placements,Supplies & Services,11/11/2015 00:00,8000048472,759,Revenue,Axiom Care Ltd,Home Care
Peterborough,http://opendatacommunities.org/id/unitary-authority/peterborough,Peterborough City Council,Adult Services & Communities - Adults,Independent Sector Placements,Supplies & Services,11/11/2015 00:00,8000048473,774,Revenue,Axiom Care Ltd,Home Care
Peterborough,http://opendatacommunities.org/id/unitary-authority/peterborough,Peterborough City Council,Adult Services & Communities - Adults,Independent Sector Placements,Supplies & Services,11/11/2015 00:00,8000048474,1195.95,Revenue,Axiom Care Ltd,Home Care
Peterborough,http://opendatacommunities.org/id/unitary-authority/peterborough,Peterborough City Council,Adult Services & Communities - Adults,Independent Sector Placements,Supplies & Services,11/11/2015 00:00,8000048475,546.72,Revenue,Axiom Care Ltd,Home Care
Peterborough,http://opendatacommunities.org/id/unitary-authority/peterborough,Peterborough City Council,Adult Services & Communities - Adults,Independent Sector Placements,Supplies & Services,11/11/2015 00:00,8000048480,558.11,Revenue,Axiom Care Ltd,Home Care
Peterborough,http://opendatacommunities.org/id/unitary-authority/peterborough,Peterborough City Council,Adult Services & Communities - Adults,Independent Sector Placements,Supplies & Services,11/11/2015 00:00,8000048482,555.26,Revenue,Axiom Care Ltd,Home Care
Peterborough,http://opendatacommunities.org/id/unitary-authority/peterborough,Peterborough City Council,Adult Services & Communities - Adults,Independent Sector Placements,Supplies & Services,11/11/2015 00:00,8000048483,1062.12,Revenue,Axiom Care Ltd,Home Care
Peterborough,http://opendatacommunities.org/id/unitary-authority/peterborough,Peterborough City Council,Adult Services & Communities - Adults,Independent Sector Placements,Supplies & Services,11/11/2015 00:00,8000048484,569.5,Revenue,Axiom Care Ltd,Home Care
Peterborough,http://opendatacommunities.org/id/unitary-authority/peterborough,Peterborough City Council,Adult Services & Communities - Adults,Independent Sector Placements,Supplies & Services,11/11/2015 00:00,8000048556,1834.8,Revenue,Cozy Care,Home Care
Peterborough,http://opendatacommunities.org/id/unitary-authority/peterborough,Peterborough City Council,Adult Services & Communities - Adults,Independent Sector Placements,Supplies & Services,11/11/2015 00:00,8000048559,828.3,Revenue,Cozy Care,Home Care
Peterborough,http://opendatacommunities.org/id/unitary-authority/peterborough,Peterborough City Council,Adult Services & Communities - Adults,Independent Sector Placements,Supplies & Services,11/11/2015 00:00,8000048573,554.4,Revenue,Cozy Care,Home Care
Peterborough,http://opendatacommunities.org/id/unitary-authority/peterborough,Peterborough City Council,Adult Services & Communities - Adults,Independent Sector Placements,Supplies & Services,11/11/2015 00:00,8000048575,778.8,Revenue,Cozy Care,Home Care
Peterborough,http://opendatacommunities.org/id/unitary-authority/peterborough,Peterborough City Council,Adult Services & Communities - Adults,Independent Sector Placements,Supplies & Services,11/11/2015 00:00,8000048577,1016.4,Revenue,Cozy Care,Home Care
Peterborough,http://opendatacommunities.org/id/unitary-authority/peterborough,Peterborough City Council,Adult Services & Communities - Adults,Independent Sector Placements,Supplies & Services,11/11/2015 00:00,8000048581,547.8,Revenue,Cozy Care,Home Care
Peterborough,http://opendatacommunities.org/id/unitary-authority/peterborough,Peterborough City Council,Corporate,Corporate,Capital,13/11/2015 00:00,30043515,2400,Balance Sheet,Container Projects LLP,Building And Site Works
Peterborough,http://opendatacommunities.org/id/unitary-authority/peterborough,Peterborough City Council,Corporate,Corporate,Third Party Payments,13/11/2015 00:00,30043829,1473,Balance Sheet,ASDA PHARMACY PETERBOROUGH,Third Party Payments - Contract
Peterborough,http://opendatacommunities.org/id/unitary-authority/peterborough,Peterborough City Council,Corporate,Corporate,Third Party Payments,13/11/2015 00:00,30043856,1174.5,Balance Sheet,Millfield Pharmacy,Third Party Payments - Contract
Peterborough,http://opendatacommunities.org/id/unitary-authority/peterborough,Peterborough City Council,Corporate,Corporate,Third Party Payments,13/11/2015 00:00,30043907,852.5,Balance Sheet,City Pharmacy,Third Party Payments - Contract
Peterborough,http://opendatacommunities.org/id/unitary-authority/peterborough,Peterborough City Council,Education,Pupil Referral Unit,Premises,13/11/2015 00:00,30050479,954,Revenue,Britannia Fire & Security Ltd,Premises Maintenance
Peterborough,http://opendatacommunities.org/id/unitary-authority/peterborough,Peterborough City Council,Children�s & Safeguarding,Children's Social Care,Employees,13/11/2015 00:00,30050580,1757.5,Revenue,Sanctuary Personnel Ltd,External Temporary Staff
Peterborough,http://opendatacommunities.org/id/unitary-authority/peterborough,Peterborough City Council,Peterborough Highway Services,Transport & Infrastructure Commissioning,Supplies & Services,13/11/2015 00:00,30050671,790,Revenue,Serious Comedy,Road Safety
Peterborough,http://opendatacommunities.org/id/unitary-authority/peterborough,Peterborough City Council,Business Management and Commercial Operations,Business Management and Commercial Operations - Public Health,Third Party Payments,13/11/2015 00:00,30050702,1438,Revenue,Westgate Surgery,Third Party Payments - Contract
Peterborough,http://opendatacommunities.org/id/unitary-authority/peterborough,Peterborough City Council,Business Management and Commercial Operations,Business Management and Commercial Operations - Public Health,Third Party Payments,13/11/2015 00:00,30050706,899,Revenue,Paston Health Centre,Third Party Payments - Contract
Peterborough,http://opendatacommunities.org/id/unitary-authority/peterborough,Peterborough City Council,Corporate,Corporate Services,Supplies & Services,13/11/2015 00:00,30050886,78045.5,Revenue,Welland & Deepings Internal Drainage Board,Drainage Levy
Peterborough,http://opendatacommunities.org/id/unitary-authority/peterborough,Peterborough City Council,Business Management and Commercial Operations,Business Management and Commercial Operations - Public Health,Third Party Payments,13/11/2015 00:00,30051006,2074,Revenue,Paston Health Centre,Third Party Payments - Contract
Peterborough,http://opendatacommunities.org/id/unitary-authority/peterborough,Peterborough City Council,Business Management and Commercial Operations,Business Management and Commercial Operations - Public Health,Third Party Payments,13/11/2015 00:00,30051010,1508,Revenue,Hampton Health,Third Party Payments - Contract
Peterborough,http://opendatacommunities.org/id/unitary-authority/peterborough,Peterborough City Council,Business Management and Commercial Operations,Commissioning,Supplies & Services,13/11/2015 00:00,30051330,520,Revenue,4Children,Training
Peterborough,http://opendatacommunities.org/id/unitary-authority/peterborough,Peterborough City Council,Adult Services & Communities - Adults,Independent Sector Placements,Supplies & Services,13/11/2015 00:00,30051372,1316.72,Revenue,Fins Care Ltd t/a St Margarets Rest Home,Residential Care
Peterborough,http://opendatacommunities.org/id/unitary-authority/peterborough,Peterborough City Council,Human Resources,HR,Supplies & Services,13/11/2015 00:00,30051513,22682.8,Revenue,Edenred,Childcare
Peterborough,http://opendatacommunities.org/id/unitary-authority/peterborough,Peterborough City Council,Adult Services & Communities - Adults,Independent Sector Placements,Supplies & Services,13/11/2015 00:00,30051574,824.6,Revenue,Housing 21,Home Care
Peterborough,http://opendatacommunities.org/id/unitary-authority/peterborough,Peterborough City Council,Adult Services & Communities - Adults,Independent Sector Placements,Supplies & Services,13/11/2015 00:00,30051576,1688.48,Revenue,Housing 21,Home Care
Peterborough,http://opendatacommunities.org/id/unitary-authority/peterborough,Peterborough City Council,Adult Services & Communities - Adults,Independent Sector Placements,Supplies & Services,13/11/2015 00:00,30051579,2449.68,Revenue,Housing 21,Home Care
Peterborough,http://opendatacommunities.org/id/unitary-authority/peterborough,Peterborough City Council,Adult Services & Communities - Adults,Independent Sector Placements,Supplies & Services,13/11/2015 00:00,30051580,750.82,Revenue,Housing 21,Home Care
Peterborough,http://opendatacommunities.org/id/unitary-authority/peterborough,Peterborough City Council,Adult Services & Communities - Adults,Independent Sector Placements,Supplies & Services,13/11/2015 00:00,30051581,982.64,Revenue,Housing 21,Home Care
Peterborough,http://opendatacommunities.org/id/unitary-authority/peterborough,Peterborough City Council,Adult Services & Communities - Adults,Independent Sector Placements,Supplies & Services,13/11/2015 00:00,30051583,1660.8,Revenue,Housing 21,Home Care
Peterborough,http://opendatacommunities.org/id/unitary-authority/peterborough,Peterborough City Council,Adult Services & Communities - Adults,Independent Sector Placements,Supplies & Services,13/11/2015 00:00,30051584,845.92,Revenue,Housing 21,Home Care
Peterborough,http://opendatacommunities.org/id/unitary-authority/peterborough,Peterborough City Council,Adult Services & Communities - Adults,Independent Sector Placements,Supplies & Services,13/11/2015 00:00,30051585,1069.84,Revenue,Housing 21,Home Care
Peterborough,http://opendatacommunities.org/id/unitary-authority/peterborough,Peterborough City Council,Adult Services & Communities - Adults,Independent Sector Placements,Supplies & Services,13/11/2015 00:00,30051587,531.81,Revenue,Housing 21,Home Care
Peterborough,http://opendatacommunities.org/id/unitary-authority/peterborough,Peterborough City Council,Adult Services & Communities - Adults,Independent Sector Placements,Supplies & Services,13/11/2015 00:00,30051588,653.1,Revenue,Housing 21,Home Care
Peterborough,http://opendatacommunities.org/id/unitary-authority/peterborough,Peterborough City Council,Adult Services & Communities - Adults,Independent Sector Placements,Supplies & Services,13/11/2015 00:00,30051589,611.82,Revenue,Housing 21,Home Care
Peterborough,http://opendatacommunities.org/id/unitary-authority/peterborough,Peterborough City Council,Adult Services & Communities - Adults,Independent Sector Placements,Supplies & Services,13/11/2015 00:00,30051592,812.59,Revenue,Housing 21,Home Care
Peterborough,http://opendatacommunities.org/id/unitary-authority/peterborough,Peterborough City Council,Adult Services & Communities - Adults,Independent Sector Placements,Supplies & Services,13/11/2015 00:00,30051594,1238.68,Revenue,Housing 21,Home Care
Peterborough,http://opendatacommunities.org/id/unitary-authority/peterborough,Peterborough City Council,Adult Services & Communities - Adults,Independent Sector Placements,Supplies & Services,13/11/2015 00:00,30051595,775.04,Revenue,Housing 21,Home Care
Peterborough,http://opendatacommunities.org/id/unitary-authority/peterborough,Peterborough City Council,Adult Services & Communities - Adults,Independent Sector Placements,Supplies & Services,13/11/2015 00:00,30051598,553.6,Revenue,Housing 21,Home Care
Peterborough,http://opendatacommunities.org/id/unitary-authority/peterborough,Peterborough City Council,Adult Services & Communities - Adults,Independent Sector Placements,Supplies & Services,13/11/2015 00:00,30051600,1691.94,Revenue,Housing 21,Home Care
Peterborough,http://opendatacommunities.org/id/unitary-authority/peterborough,Peterborough City Council,Adult Services & Communities - Adults,Independent Sector Placements,Supplies & Services,13/11/2015 00:00,30051601,2435.84,Revenue,Housing 21,Home Care
Peterborough,http://opendatacommunities.org/id/unitary-authority/peterborough,Peterborough City Council,Adult Services & Communities - Adults,Independent Sector Placements,Supplies & Services,13/11/2015 00:00,30051602,968.8,Revenue,Housing 21,Home Care
Peterborough,http://opendatacommunities.org/id/unitary-authority/peterborough,Peterborough City Council,Adult Services & Communities - Adults,Independent Sector Placements,Supplies & Services,13/11/2015 00:00,30051603,830.02,Revenue,Housing 21,Home Care
Peterborough,http://opendatacommunities.org/id/unitary-authority/peterborough,Peterborough City Council,Adult Services & Communities - Adults,Independent Sector Placements,Supplies & Services,13/11/2015 00:00,30051606,858.36,Revenue,Housing 21,Home Care
Peterborough,http://opendatacommunities.org/id/unitary-authority/peterborough,Peterborough City Council,Adult Services & Communities - Adults,Independent Sector Placements,Supplies & Services,13/11/2015 00:00,30051607,1069.84,Revenue,Housing 21,Home Care
Peterborough,http://opendatacommunities.org/id/unitary-authority/peterborough,Peterborough City Council,Adult Services & Communities - Adults,Independent Sector Placements,Supplies & Services,13/11/2015 00:00,30051609,631.33,Revenue,Housing 21,Home Care
Peterborough,http://opendatacommunities.org/id/unitary-authority/peterborough,Peterborough City Council,Adult Services & Communities - Adults,Independent Sector Placements,Supplies & Services,13/11/2015 00:00,30051610,1702.32,Revenue,Housing 21,Home Care
Peterborough,http://opendatacommunities.org/id/unitary-authority/peterborough,Peterborough City Council,Adult Services & Communities - Adults,Independent Sector Placements,Supplies & Services,13/11/2015 00:00,30051611,923.82,Revenue,Housing 21,Home Care
Peterborough,http://opendatacommunities.org/id/unitary-authority/peterborough,Peterborough City Council,Adult Services & Communities - Adults,Independent Sector Placements,Supplies & Services,13/11/2015 00:00,30051612,2435.84,Revenue,Housing 21,Home Care
Peterborough,http://opendatacommunities.org/id/unitary-authority/peterborough,Peterborough City Council,Adult Services & Communities - Adults,Independent Sector Placements,Supplies & Services,13/11/2015 00:00,30051615,501.7,Revenue,Housing 21,Home Care
Peterborough,http://opendatacommunities.org/id/unitary-authority/peterborough,Peterborough City Council,Adult Services & Communities - Adults,Independent Sector Placements,Supplies & Services,13/11/2015 00:00,30051616,1200.62,Revenue,Housing 21,Home Care
Peterborough,http://opendatacommunities.org/id/unitary-authority/peterborough,Peterborough City Council,Adult Services & Communities - Adults,Independent Sector Placements,Supplies & Services,13/11/2015 00:00,30051619,775.04,Revenue,Housing 21,Home Care
Peterborough,http://opendatacommunities.org/id/unitary-authority/peterborough,Peterborough City Council,Adult Services & Communities - Adults,Independent Sector Placements,Supplies & Services,13/11/2015 00:00,30051620,796.91,Revenue,Housing 21,Home Care
Peterborough,http://opendatacommunities.org/id/unitary-authority/peterborough,Peterborough City Council,Adult Services & Communities - Adults,Independent Sector Placements,Supplies & Services,13/11/2015 00:00,30051622,600.23,Revenue,Housing 21,Home Care
Peterborough,http://opendatacommunities.org/id/unitary-authority/peterborough,Peterborough City Council,Adult Services & Communities - Adults,Independent Sector Placements,Supplies & Services,13/11/2015 00:00,30051627,819.98,Revenue,Housing 21,Home Care
Peterborough,http://opendatacommunities.org/id/unitary-authority/peterborough,Peterborough City Council,Adult Services & Communities - Adults,Independent Sector Placements,Supplies & Services,13/11/2015 00:00,30051630,781.96,Revenue,Housing 21,Home Care
Peterborough,http://opendatacommunities.org/id/unitary-authority/peterborough,Peterborough City Council,Adult Services & Communities - Adults,Independent Sector Placements,Supplies & Services,13/11/2015 00:00,30051640,819.97,Revenue,FIELD HOUSE (EYE) LTD,Residential Care
Peterborough,http://opendatacommunities.org/id/unitary-authority/peterborough,Peterborough City Council,Adult Services & Communities - Adults,Independent Sector Placements,Supplies & Services,13/11/2015 00:00,30051641,661.25,Revenue,FIELD HOUSE (EYE) LTD,Residential Care
Peterborough,http://opendatacommunities.org/id/unitary-authority/peterborough,Peterborough City Council,Adult Services & Communities - Adults,Independent Sector Placements,Supplies & Services,13/11/2015 00:00,30051643,938.4,Revenue,FIELD HOUSE (EYE) LTD,Residential Care
Peterborough,http://opendatacommunities.org/id/unitary-authority/peterborough,Peterborough City Council,Adult Services & Communities - Adults,Independent Sector Placements,Supplies & Services,13/11/2015 00:00,30051644,670.8,Revenue,FIELD HOUSE (EYE) LTD,Residential Care
Peterborough,http://opendatacommunities.org/id/unitary-authority/peterborough,Peterborough City Council,Adult Services & Communities - Adults,Independent Sector Placements,Supplies & Services,13/11/2015 00:00,30051645,1837.13,Revenue,FIELD HOUSE (EYE) LTD,Residential Care
Peterborough,http://opendatacommunities.org/id/unitary-authority/peterborough,Peterborough City Council,Adult Services & Communities - Adults,Independent Sector Placements,Supplies & Services,13/11/2015 00:00,30051648,596.7,Revenue,FIELD HOUSE (EYE) LTD,Residential Care
Peterborough,http://opendatacommunities.org/id/unitary-authority/peterborough,Peterborough City Council,Adult Services & Communities - Adults,Independent Sector Placements,Supplies & Services,13/11/2015 00:00,30051649,1787.36,Revenue,FIELD HOUSE (EYE) LTD,Residential Care
Peterborough,http://opendatacommunities.org/id/unitary-authority/peterborough,Peterborough City Council,Adult Services & Communities - Adults,Independent Sector Placements,Supplies & Services,13/11/2015 00:00,30051657,1771,Revenue,FIELD HOUSE (EYE) LTD,Residential Care
Peterborough,http://opendatacommunities.org/id/unitary-authority/peterborough,Peterborough City Council,Children�s & Safeguarding,Access to Resources & Specialist Commissioning,Supplies & Services,13/11/2015 00:00,30051661,2886.41,Revenue,Fostering Solutions,Boarding Out Allowances
Peterborough,http://opendatacommunities.org/id/unitary-authority/peterborough,Peterborough City Council,Education and Resources,Service Director Education,Employees,13/11/2015 00:00,30051678,6037.5,Revenue,Lind Associates,External Temporary Staff
Peterborough,http://opendatacommunities.org/id/unitary-authority/peterborough,Peterborough City Council,Children�s & Safeguarding,Access to Resources & Specialist Commissioning,Supplies & Services,13/11/2015 00:00,30051700,26666.66,Revenue,Wilds Lodge School,Boarding Out Allowances
Peterborough,http://opendatacommunities.org/id/unitary-authority/peterborough,Peterborough City Council,Children�s & Safeguarding,Access to Resources & Specialist Commissioning,Supplies & Services,13/11/2015 00:00,30051706,27500,Revenue,Wilds Lodge School,Boarding Out Allowances
Peterborough,http://opendatacommunities.org/id/unitary-authority/peterborough,Peterborough City Council,Children�s & Safeguarding,Access to Resources & Specialist Commissioning,Supplies & Services,13/11/2015 00:00,30051730,26666.67,Revenue,Wilds Lodge School,Boarding Out Allowances
Peterborough,http://opendatacommunities.org/id/unitary-authority/peterborough,Peterborough City Council,Children�s & Safeguarding,Access to Resources & Specialist Commissioning,Supplies & Services,13/11/2015 00:00,30051745,26666.67,Revenue,Wilds Lodge School,Boarding Out Allowances
Peterborough,http://opendatacommunities.org/id/unitary-authority/peterborough,Peterborough City Council,Children�s & Safeguarding,Access to Resources & Specialist Commissioning,Supplies & Services,13/11/2015 00:00,30052126,4441.99,Revenue,Fosterplus Ltd,Boarding Out Allowances
Peterborough,http://opendatacommunities.org/id/unitary-authority/peterborough,Peterborough City Council,Children�s & Safeguarding,Access to Resources & Specialist Commissioning,Supplies & Services,13/11/2015 00:00,30052129,3774.87,Revenue,Fosterplus Ltd,Boarding Out Allowances
Peterborough,http://opendatacommunities.org/id/unitary-authority/peterborough,Peterborough City Council,Children�s & Safeguarding,Child Health,Supplies & Services,16/11/2015 00:00,30050419,40000,Revenue,Cambs & P'boro NHS Foundation Trust,Special Projects
Peterborough,http://opendatacommunities.org/id/unitary-authority/peterborough,Peterborough City Council,City Servs & Communications,Marketing & Communications,Supplies & Services,16/11/2015 00:00,30050445,786,Revenue,Peterborough Printing Services Ltd,Printing
Peterborough,http://opendatacommunities.org/id/unitary-authority/peterborough,Peterborough City Council,City Servs & Communications,Marketing & Communications,Supplies & Services,16/11/2015 00:00,30050449,863.5,Revenue,Peterborough Printing Services Ltd,Printing
Peterborough,http://opendatacommunities.org/id/unitary-authority/peterborough,Peterborough City Council,Adult Services & Communities - Adults,Mental Health,Employees,16/11/2015 00:00,30050460,5000,Revenue,Cambs & P'boro NHS Foundation Trust,External Temporary Staff
Peterborough,http://opendatacommunities.org/id/unitary-authority/peterborough,Peterborough City Council,City Servs & Communications,"Markets, Tourism & Events",Supplies & Services,16/11/2015 00:00,30050487,530.85,Revenue,F R Systems Ltd,Conferences/Events
Peterborough,http://opendatacommunities.org/id/unitary-authority/peterborough,Peterborough City Council,Corporate,Corporate,Capital,16/11/2015 00:00,30050492,16980.97,Capital,DSM demolition Ltd,Building And Site Works
Peterborough,http://opendatacommunities.org/id/unitary-authority/peterborough,Peterborough City Council,Children�s & Safeguarding,Access to Resources & Specialist Commissioning,Supplies & Services,16/11/2015 00:00,30050511,8320,Revenue,On Track Education Services Ltd,Boarding Out Allowances
Peterborough,http://opendatacommunities.org/id/unitary-authority/peterborough,Peterborough City Council,Children�s & Safeguarding,Access to Resources & Specialist Commissioning,Supplies & Services,16/11/2015 00:00,30050516,8320,Revenue,On Track Education Services Ltd,Boarding Out Allowances
Peterborough,http://opendatacommunities.org/id/unitary-authority/peterborough,Peterborough City Council,Children�s & Safeguarding,Children's Social Care,Employees,16/11/2015 00:00,30050660,1787.1,Revenue,Sanctuary Personnel Ltd,External Temporary Staff
Peterborough,http://opendatacommunities.org/id/unitary-authority/peterborough,Peterborough City Council,Legal & Democratic,Legal Services,Employees,16/11/2015 00:00,30050719,1158.13,Revenue,Go Management Ltd TA GoUmbrella,External Temporary Staff
Peterborough,http://opendatacommunities.org/id/unitary-authority/peterborough,Peterborough City Council,Children�s & Safeguarding,Child Health,Supplies & Services,16/11/2015 00:00,30050795,1473.75,Revenue,Circles Network,Purchased Social Care Services
Peterborough,http://opendatacommunities.org/id/unitary-authority/peterborough,Peterborough City Council,Business Management and Commercial Operations,Clare Lodge,Employees,16/11/2015 00:00,30050805,809,Revenue,Wrixon Care Services,External Temporary Staff
Peterborough,http://opendatacommunities.org/id/unitary-authority/peterborough,Peterborough City Council,Adults and Communities - Communities,Block Contracts,Third Party Payments,16/11/2015 00:00,30050877,1576.24,Revenue,Pilgrim Havens,Third Party Payments - Contract
Peterborough,http://opendatacommunities.org/id/unitary-authority/peterborough,Peterborough City Council,Children�s & Safeguarding,Child Health,Supplies & Services,16/11/2015 00:00,30051039,744.5,Revenue,The MSR Service,Equipment Maintenance
Peterborough,http://opendatacommunities.org/id/unitary-authority/peterborough,Peterborough City Council,Adult Services & Communities - Adults,Independent Sector Placements,Supplies & Services,16/11/2015 00:00,30051105,1244.2,Revenue,Avery Homes (Nelson) Ltd,Residential Care
